Workbook

Sheet CalculateurRE2020
C4: Calculateur RE2020
F5: Note concernant le PDF
C7: Valide jusqu'au: | E7: 2026-07-06 | F7: Vers. 1.02 /04-2026
D8: Dernière version: | E8: link
B9: Configuration du produit (cliquez sur les menus déroulants)
B10: Choisissez une configuration de solutions VELUX | E10: Fenêtre: | F10: GGLS (3-en-1, rotation)
E11: Taille: | F11: FFKF08 (1.880m x 1.398m)
E12: Vitrage: | F12: Tout confort (57)
E13: Gestion d'ouverture des fenêtres: | F13: Manuelle
E14: Installation: | F14: Standard
E15: Protections solaires: | F15: Volet roulant (SML, SSL, SSLS, SMG)
E16: Gestion d'ouverture des protections solaires: | F16: Aucun
B17: Renseignez les informations ci-dessous concernant votre projet pour vérifier la conformité des solutions choisies aux exigences de facteur solaire (Sws) maximum de la RE2020 | E17: Zone climatique et altitude: | F17: H2a toutes altitudes ou H1a, H1b, H2b altitude > 400 m ou H1c, H2c altitude > 800 m
E18: Exposition au bruit et usage de la pièce: | F18: Exposition BR1 - locaux destinés au sommeil
E19: Pente et orientation: | F19: Pente < 60°
B20: Résultats
B21: Fenêtre | E21: Description du produit | F21: ="Fenêtre de toit " &F10&", "&F11&" avec vitrage "&F12&". "&F13&". En pose "&F14& IF(F15='drop down content & text'!K2,""," avec "&F15&IF(F16='drop down content & text'!G8,""," "&F16)) -> Fenêtre de toit GGLS (3-en-1, rotation), FFKF08 (1.880m x 1.398m) avec vitrage Tout confort (57). Manuelle. En pose Standard avec Volet roulant (SML, SSL, SSLS, SMG)
E22: Product name short | F22: =VLOOKUP(F10,Product,2,FALSE)& " " & VLOOKUP(F11,Size,2,FALSE) & " " &VLOOKUP(F12,Glazing,2,FALSE) & " " & VLOOKUP(F14,Installation,2,FALSE) -> GGLS FFKF08 57 Standard | G22: Hide later | M22: XML download funktion
E23: Product | F23: =VLOOKUP(F15,Assessories,2,FALSE) -> Shutter | G23: Hide later | M23: PDF conversion
E24: TestID | F24: =VLOOKUP(F22,Results_all,53,FALSE) -> 1242 | G24: Hide later
E25: Valeur max de Sws autorisée | F25: =VLOOKUP(F17&" "&F18&" "&F19,climate_zones_Sws_max,5,FALSE) -> 0.25
E26: Gestion d'ouverture de la fenêtre | F26: =VLOOKUP(F13,Operation,2,FALSE) -> Ouverture manuelle
E27: Gestion d'ouverture de la protection mobile | F27: =VLOOKUP(F16,A_operation,2,FALSE) -> -
E28: Uw (90°) | F28: =_xlfn.IFNA(VLOOKUP(F22,Results_all,14,FALSE),'drop down content & text'!S2) -> 1.3
E29: Uw (0°) | F29: =_xlfn.IFNA(VLOOKUP(F22,Results_all,15,FALSE),'drop down content & text'!S2) -> 1.8
E30: Swc1 | F30: =_xlfn.IFNA(VLOOKUP(F22,Results_all,26,FALSE),'drop down content & text'!S2) -> 0.19
E31: Swc2 | F31: =_xlfn.IFNA(VLOOKUP(F22,Results_all,27,FALSE),'drop down content & text'!S2) -> 0.04
E32: Swc3 | F32: =_xlfn.IFNA(VLOOKUP(F22,Results_all,28,FALSE),'drop down content & text'!S2) -> 0
E33: Swe1 | F33: =_xlfn.IFNA(VLOOKUP(F22,Results_all,29,FALSE),'drop down content & text'!S2) -> 0.19
E34: Swe2 | F34: =_xlfn.IFNA(VLOOKUP(F22,Results_all,30,FALSE),'drop down content & text'!S2) -> 0.05
E35: Swe3 | F35: =_xlfn.IFNA(VLOOKUP(F22,Results_all,31,FALSE),'drop down content & text'!S2) -> 0
E36: TLw | F36: =_xlfn.IFNA(VLOOKUP(F22,Results_all,44,FALSE),'drop down content & text'!S2) -> 0.44
E37: TLw diff | F37: =_xlfn.IFNA(VLOOKUP(F22,Results_all,45,FALSE),'drop down content & text'!S2) -> 0
B38: Fenêtre avec protection solaire | E38: Uws (90°) | F38: =_xlfn.IFNA(IF(F23='drop down content & text'!L2,F28,VLOOKUP(F22,Results_all,IF(F23='drop down content & text'!L3,"16",IF(OR(F23='drop down content & text'!L4,F23='drop down content & text'!L5),"18",IF(F23='drop down content & text'!L6,"20",IF(F23='drop down content & text'!L7,"22",IF(OR(F23='drop down content & text'!L8,F23='drop down content & text'!L9),"24"))))),FALSE)),'drop down content & text'!S2) -> 1.2
E39: Uws(0°) | F39: =_xlfn.IFNA(IF(F23='drop down content & text'!L2,F29,VLOOKUP(F22,Results_all,IF(F23='drop down content & text'!L3,"17",IF(OR(F23='drop down content & text'!L4,F23='drop down content & text'!L5),"19",IF(F23='drop down content & text'!L6,"21",IF(F23='drop down content & text'!L7,"23",IF(OR(F23='drop down content & text'!L8,F23='drop down content & text'!L9),"25"))))),FALSE)),'drop down content & text'!S2) -> 1.5
E40: Sws1 | F40: =_xlfn.IFNA(IF(OR(F23='drop down content & text'!L2,F23='drop down content & text'!L6),F33,VLOOKUP(F22,Results_all,IF(OR(F23='drop down content & text'!L3,F23='drop down content & text'!L7),"32",IF(OR(F23='drop down content & text'!L4,F23='drop down content & text'!L8),"40",IF(OR(F23='drop down content & text'!L5,F23='drop down content & text'!L9),"36",))),FALSE)),'drop down content & text'!S2) -> 0
E41: Sws2 | F41: =_xlfn.IFNA(IF(OR(F23='drop down content & text'!L2,F23='drop down content & text'!L6),F34,VLOOKUP(F22,Results_all,IF(OR(F23='drop down content & text'!L3,F23='drop down content & text'!L7),"33",IF(OR(F23='drop down content & text'!L4,F23='drop down content & text'!L8),"41",IF(OR(F23='drop down content & text'!L5,F23='drop down content & text'!L9),"37",))),FALSE)),'drop down content & text'!S2) -> 0.07
E42: Sws3 | F42: =_xlfn.IFNA(IF(OR(F23='drop down content & text'!L2,F23='drop down content & text'!L6),F35,VLOOKUP(F22,Results_all,IF(OR(F23='drop down content & text'!L3,F23='drop down content & text'!L7),"34",IF(OR(F23='drop down content & text'!L4,F23='drop down content & text'!L8),"42",IF(OR(F23='drop down content & text'!L5,F23='drop down content & text'!L9),"38",))),FALSE)),'drop down content & text'!S2) -> 0
E43: Sws (Sws1+Sws2+Sws3) | F43: =_xlfn.IFNA(IF(OR(F23='drop down content & text'!L2,F23='drop down content & text'!L6,F23='drop down content & text'!L7,F23='drop down content & text'!L8,F23='drop down content & text'!L9),SUM(F40:F42),VLOOKUP(F22,Results_all,IF(F23='drop down content & text'!L3,"35",IF(F23='drop down content & text'!L4,"43",IF(F23='drop down content & text'!L5,"39",))),FALSE)),'drop down content & text'!S2) -> 0.07
E44: TLws | F44: =_xlfn.IFNA(IF(OR(F23='drop down content & text'!L2,F23='drop down content & text'!L6),F36,VLOOKUP(F22,Results_all,IF(OR(F23='drop down content & text'!L3,F23='drop down content & text'!L7),"46",IF(OR(F23='drop down content & text'!L4,F23='drop down content & text'!L8),"50",IF(OR(F23='drop down content & text'!L5,F23='drop down content & text'!L9),"48",))),FALSE)),'drop down content & text'!S2) -> 0
E45: TLws diff | F45: =_xlfn.IFNA(IF(OR(F23='drop down content & text'!L2,F23='drop down content & text'!L6),F37,VLOOKUP(F22,Results_all,IF(OR(F23='drop down content & text'!L3,F23='drop down content & text'!L7),"47",IF(OR(F23='drop down content & text'!L4,F23='drop down content & text'!L8),"51",IF(OR(F23='drop down content & text'!L5,F23='drop down content & text'!L9),"49",))),FALSE)),'drop down content & text'!S2) -> 0
B46: FDES | E46: Fenêtre | F46: =_xlfn.IFNA(VLOOKUP(F22,Results_all,52,FALSE)&IF(NOT(OR(F13="Fixe",F13="Manuelle"))," (fenêtre) "&'FDES (EPD)'!C10," "),'drop down content & text'!S2) -> https://base-inies.fr/consultation/infos-produit/42364
E47: Protections solaires | F47: =_xlfn.IFNA(VLOOKUP(F23,Assessories_FDES,2,FALSE),'drop down content & text'!S2) -> N.A
B48: Dimensions | E48: Largeur hors tout de la baie (m) | F48: =_xlfn.IFNA(VLOOKUP(F22,Results_all,54,FALSE),'drop down content & text'!S2) -> 1.88
E49: Hauteur hors tout de la baie (m) | F49: =_xlfn.IFNA(VLOOKUP(F22,Results_all,55,FALSE),'drop down content & text'!S2) -> 1.4
E50: Surface hors tout de la baie (m²) | F50: =_xlfn.IFNA(VLOOKUP(F22,Results_all,56,FALSE),'drop down content & text'!S2) -> 2.63
E51: Largeur du vitrage (m) | F51: =_xlfn.IFNA(VLOOKUP(F22,Results_all,57,FALSE),'drop down content & text'!S2) -> 1.444
E52: Hauteur du vitrage (m) | F52: =_xlfn.IFNA(VLOOKUP(F22,Results_all,58,FALSE),'drop down content & text'!S2) -> 1.2
E53: Périmètre du vitrage (m) | F53: =_xlfn.IFNA(VLOOKUP(F22,Results_all,59,FALSE),'drop down content & text'!S2) -> 10.11
E54: Surface du vitrage (m²) | F54: =_xlfn.IFNA(VLOOKUP(F22,Results_all,60,FALSE),'drop down content & text'!S2) -> 1.74
E55: Surface de cadre (m²) | F55: =_xlfn.IFNA(VLOOKUP(F22,Results_all,61,FALSE),'drop down content & text'!S2) -> 0.89
E56: RCL | F56: =_xlfn.IFNA(VLOOKUP(F22,Results_all,62,FALSE),'drop down content & text'!S2) -> 0.66

Sheet drop down content & text (hidden)
A1: Product type alias | B1: Product type | C1: Size alias | D1: Size | E1: Glazing alias | F1: Glazing | G1: Operation 1 | H1: Operation 2 | I1: Installation alias | J1: Installation | K1: Assessories alias | L1: Assesories | M1: Zone climatique et altitude | N1: Exposition au bruit et usage de la pièce | O1: Pente et orientation | Q1: Exipration warning EN | R1: Exipration warning FR | S1: Error text
A2: GGL (Rotation, Bois) | B2: GGL | C2: CK01 (0.550m x 0.698m) | D2: CK01 | E2: Standard (54F) | F2: 54F | G2: Manuelle | H2: Ouverture manuelle | I2: Standard | J2: Standard | K2: Aucun | L2: None | M2: H2a toutes altitudes ou H1a, H1b, H2b altitude > 400 m ou H1c, H2c altitude > 800 m | N2: Exposition BR1 - locaux destinés au sommeil | O2: Pente < 60° | Q2: WARNING: Data expired | R2: AVERTISSEMENT : Données expirées | S2: La combinaison de produits choisie n'est pas vendue en France ou n'est pas intégrée au calculateur
A3: GGU (Rotation, Polyurethane) | B3: GGU | C3: CK02 (0.550m x 0.778m) | D3: CK02 | E3: Tout confort (57) | F3: 57 | G3: Motorisée | H3: Ouverture manuelle | I3: Standard + bloc isolant BDX | J3: Standard + BDX | K3: Store pare-soleil extérieur (MHL, MSL, MML, MSLS, MAG, MSI, MIE,MAD) | L3: Awning | M3: H1a, H1b, H2b altitude <= 400 m ou H1c, H2c altitude <= 800 m ou H2d, H3 altitude > 400 m | N3: Exposition BR2 ou BR3 - locaux destinés au sommeil | O3: Pente>60° orientation autre que Nord | Q3: Please refresh the data | R3: Veuillez actualiser les données
A4: GIL (verrière d'angle, bois) | B4: GIL | C4: CK04 (0.550m x 0.978m) | D4: CK04 | E4: Triple vitrage acoustique (62) | F4: 62 | G4: Motorisée et automatisée avec VELUX Active ou Somfy Tahoma | H4: Gestion automatique en fonction de la température intérieure | I4: Encastrée | J4: Flush | K4: Volet roulant souple (SSS, SSSS) | L4: Softshutter | M4: H2d ou H3 altitude <= 400 m | N4: Exposition BR1 - hors locaux destinés au sommeil | O4: Pente>60° orientation Nord | Q4: WARNING: Data will expire on | R4: AVERTISSEMENT : Les données expireront le
A5: GIU (verrière d'angle, polyurethane) | B5: GIU | C5: FFKF06 (1.880m x 1.178m) | D5: FFKF06 | E5: Triple vitrage (66) | F5: 66 | G5: Fixe | H5: Non ouvrable | I5: Encastrée + bloc isolant BDX | J5: Flush + BDX | K5: Volet roulant (SML, SSL, SSLS, SMG) | L5: Shutter | N5: Exposition BR2 ou BR3 - hors locaux destinés au sommeil | Q5: Please prepare to refresh | R5: Veuillez vous préparer à actualiser
A6: GPL (Projection, bois) | B6: GPL | C6: FFKF08 (1.880m x 1.398m) | D6: FFKF08 | E6: Isolant (70) | F6: 70 | K6: Store intérieur (DKL) | L6: DKL
A7: GPU (Projection, bois) | B7: GPU | C7: MK04 (0.780m x 0.978m) | D7: MK04 | E7: Isolant (70Q) | F7: 70Q | G7: A operation 1 | H7: A operation 2 | K7: Store intérieur + Store pare-soleil extérieur | L7: Awning + DKL
A8: GFL (Fenêtre essentielle à rotation, bois) | B8: GFL | C8: MK06 (0.780m x 1.178m) | D8: MK06 | E8: Confort (76F) | F8: 76F | G8: Aucun | H8: - | K8: Store intérieur + Volet roulant souple | L8: Softshutter + DKL
A9: VFE (verrière d'angle, bois) | B9: VFE | C9: MK08 (0.780m x 1.398m ) | D9: MK08 | G9: Manuelle ou motorisée sans automatisation | H9: Ouverture manuelle | K9: Store intérieur + Volet roulant | L9: Shutter + DKL
A10: VIU (verrière d'angle, polyurethane) | B10: VIU | C10: MK31 (0.780m x 0.601m ) | D10: MK31 | G10: Motorisée et automatisée avec VELUX Active ou Somfy Tahoma | H10: Gestion crépusculaire sans détecteur de présence
A11: GGLS (3-en-1, rotation) | B11: GGLS | C11: MK34 (0.780m x 0.920m) | D11: MK34
A12: GPLS (3-en-1, projection) | B12: GPLS | C12: MK35 (0.780m x 0.955m) | D12: MK35
C13: PK06 (0.942m x 1.178m) | D13: PK06
C14: PK08 (0.942m x 1.398m) | D14: PK08
C15: PK10 (0.942m x 1.600m) | D15: PK10
C16: PK31 (0.942m x 0.601m) | D16: PK31
C17: PK34 (0.942m x 0.920m) | D17: PK34
C18: PK35 (0.942m x 0.955m) | D18: PK35
C19: SK06 (1.140m x 1.178m) | D19: SK06
C20: SK08 (1.140m x 1.398m) | D20: SK08
C21: SK31 (1.140m x 0.601m) | D21: SK31
C22: SK34 (1.140m x 0.920m) | D22: SK34
C23: SK35 (1.140m x 0.955m ) | D23: SK35
C24: UK04 (1.340m x 0.978m) | D24: UK04
C25: UK08 (1.340m x 1.398m) | D25: UK08
C26: UK31 (1.340m x 0.601m) | D26: UK31
C27: UK34 (1.340m x 0.920m) | D27: UK34
C28: UK35 (1.340m x 0.955m) | D28: UK35

Sheet FDES (EPD) (hidden)
B2: NB: EPDs for windows are manually maps to the tab "Product list (sale) w values"
B5: Links to EPDs, used in the calculator (via references)
B6: GGU | C6: https://base-inies.fr/consultation/infos-produit/42366 | D6: link to our EPD in INIES
B7: GPL | C7: https://base-inies.fr/consultation/infos-produit/42365 | D7: link to our EPD in INIES
B8: GPU | C8: https://base-inies.fr/consultation/infos-produit/42367 | D8: link to our EPD in INIES
B9: GGL, GFL, GGLS | C9: https://base-inies.fr/consultation/infos-produit/42364 | D9: link to our EPD in INIES
B10: Window operator | C10: https://base-inies.fr/consultation/infos-produit/31433 (moteur) | D10: link to industry EPD
B11: Assessories_FDES
B12: None | C12: -
B13: Awning | C13: https://base-inies.fr/consultation/infos-produit/27007 | D13: link to industry EPD
B14: Softshutter | C14: N.A
B15: Shutter | C15: N.A
B16: DKL | C16: https://base-inies.fr/consultation/infos-produit/26740 | D16: link to industry EPD
B17: Awning + DKL | C17: 1) Store intérieur: https://base-inies.fr/consultation/infos-produit/2674 2) Store pare-soleil extérieur: https://base-inies.fr/consultation/infos-produit/27007
B18: Softshutter + DKL | C18: 1) Store intérieur: https://base-inies.fr/consultation/infos-produit/2674 2) Volet roulant: N.A
B19: Shutter + DKL | C19: 1) Store intérieur: https://base-inies.fr/consultation/infos-produit/2674 2) Volet roulant: N.A
B20: No results | C20: Pas de FDES en ligne pour la solution choisie
B28: Zobber, zink versions excluded
B32: GPL CK04 57 | C32: https://base-inies.fr/consultation/infos-produit/42365
B33: GPL MK04 57 | C33: https://base-inies.fr/consultation/infos-produit/42365
B34: GPL MK06 57 | C34: https://base-inies.fr/consultation/infos-produit/42365
B35: GPL MK08 57 | C35: https://base-inies.fr/consultation/infos-produit/42365
B36: GPL PK06 57 | C36: https://base-inies.fr/consultation/infos-produit/42365
B37: GPL PK08 57 | C37: https://base-inies.fr/consultation/infos-produit/42365
B38: GPL PK10 57 | C38: https://base-inies.fr/consultation/infos-produit/42365
B39: GPL SK06 57 | C39: https://base-inies.fr/consultation/infos-produit/42365
B40: GPL SK08 57 | C40: https://base-inies.fr/consultation/infos-produit/42365
B41: GPL UK04 57 | C41: https://base-inies.fr/consultation/infos-produit/42365
B42: GPL UK08 57 | C42: https://base-inies.fr/consultation/infos-produit/42365
B43: GPL CK04 76F | C43: https://base-inies.fr/consultation/infos-produit/42365
B44: GPL MK04 76F | C44: https://base-inies.fr/consultation/infos-produit/42365
B45: GPL MK06 76F | C45: https://base-inies.fr/consultation/infos-produit/42365
B46: GPL MK08 76F | C46: https://base-inies.fr/consultation/infos-produit/42365
B47: GPL PK06 76F | C47: https://base-inies.fr/consultation/infos-produit/42365
B48: GPL PK08 76F | C48: https://base-inies.fr/consultation/infos-produit/42365
B49: GPL PK10 76F | C49: https://base-inies.fr/consultation/infos-produit/42365
B50: GPL SK06 76F | C50: https://base-inies.fr/consultation/infos-produit/42365
B51: GPL SK08 76F | C51: https://base-inies.fr/consultation/infos-produit/42365
B52: GPL UK04 76F | C52: https://base-inies.fr/consultation/infos-produit/42365
B53: GPL UK08 76F | C53: https://base-inies.fr/consultation/infos-produit/42365
B54: GGL CK01 54F | C54: https://base-inies.fr/consultation/infos-produit/42364
B55: GGL CK02 54F | C55: https://base-inies.fr/consultation/infos-produit/42364
B56: GGL CK04 54F | C56: https://base-inies.fr/consultation/infos-produit/42364
B57: GGL MK04 54F | C57: https://base-inies.fr/consultation/infos-produit/42364
B58: GGL MK06 54F | C58: https://base-inies.fr/consultation/infos-produit/42364
B59: GGL MK08 54F | C59: https://base-inies.fr/consultation/infos-produit/42364
B60: GGL PK06 54F | C60: https://base-inies.fr/consultation/infos-produit/42364
B61: GGL PK08 54F | C61: https://base-inies.fr/consultation/infos-produit/42364
B62: GGL PK10 54F | C62: https://base-inies.fr/consultation/infos-produit/42364
B63: GGL SK06 54F | C63: https://base-inies.fr/consultation/infos-produit/42364
B64: GGL SK08 54F | C64: https://base-inies.fr/consultation/infos-produit/42364
B65: GGL UK04 54F | C65: https://base-inies.fr/consultation/infos-produit/42364
B66: GGL UK08 54F | C66: https://base-inies.fr/consultation/infos-produit/42364
B67: GGL CK01 57 | C67: https://base-inies.fr/consultation/infos-produit/42364
B68: GGL CK02 57 | C68: https://base-inies.fr/consultation/infos-produit/42364
B69: GGL CK04 57 | C69: https://base-inies.fr/consultation/infos-produit/42364
B70: GGL MK04 57 | C70: https://base-inies.fr/consultation/infos-produit/42364
B71: GGL MK06 57 | C71: https://base-inies.fr/consultation/infos-produit/42364
B72: GGL MK08 57 | C72: https://base-inies.fr/consultation/infos-produit/42364
B73: GGL PK06 57 | C73: https://base-inies.fr/consultation/infos-produit/42364
B74: GGL PK08 57 | C74: https://base-inies.fr/consultation/infos-produit/42364
B75: GGL PK10 57 | C75: https://base-inies.fr/consultation/infos-produit/42364
B76: GGL SK06 57 | C76: https://base-inies.fr/consultation/infos-produit/42364
B77: GGL SK08 57 | C77: https://base-inies.fr/consultation/infos-produit/42364
B78: GGL UK04 57 | C78: https://base-inies.fr/consultation/infos-produit/42364
B79: GGL UK08 57 | C79: https://base-inies.fr/consultation/infos-produit/42364
B80: GGL CK01 76F | C80: https://base-inies.fr/consultation/infos-produit/42364
B81: GGL CK02 76F | C81: https://base-inies.fr/consultation/infos-produit/42364
B82: GGL CK04 76F | C82: https://base-inies.fr/consultation/infos-produit/42364
B83: GGL MK04 76F | C83: https://base-inies.fr/consultation/infos-produit/42364
B84: GGL MK06 76F | C84: https://base-inies.fr/consultation/infos-produit/42364
B85: GGL MK08 76F | C85: https://base-inies.fr/consultation/infos-produit/42364
B86: GGL PK06 76F | C86: https://base-inies.fr/consultation/infos-produit/42364
B87: GGL PK08 76F | C87: https://base-inies.fr/consultation/infos-produit/42364
B88: GGL PK10 76F | C88: https://base-inies.fr/consultation/infos-produit/42364
B89: GGL SK06 76F | C89: https://base-inies.fr/consultation/infos-produit/42364
B90: GGL SK08 76F | C90: https://base-inies.fr/consultation/infos-produit/42364
B91: GGL UK04 76F | C91: https://base-inies.fr/consultation/infos-produit/42364
B92: GGL UK08 76F | C92: https://base-inies.fr/consultation/infos-produit/42364
B93: GFL CK01 54F | C93: https://base-inies.fr/consultation/infos-produit/42364
B94: GFL CK02 54F | C94: https://base-inies.fr/consultation/infos-produit/42364
B95: GFL CK04 54F | C95: https://base-inies.fr/consultation/infos-produit/42364
B96: GFL MK04 54F | C96: https://base-inies.fr/consultation/infos-produit/42364
B97: GFL MK06 54F | C97: https://base-inies.fr/consultation/infos-produit/42364
B98: GFL MK08 54F | C98: https://base-inies.fr/consultation/infos-produit/42364
B99: GFL PK06 54F | C99: https://base-inies.fr/consultation/infos-produit/42364
B100: GFL PK08 54F | C100: https://base-inies.fr/consultation/infos-produit/42364
B101: GFL PK10 54F | C101: https://base-inies.fr/consultation/infos-produit/42364
B102: GFL SK06 54F | C102: https://base-inies.fr/consultation/infos-produit/42364
B103: GFL SK08 54F | C103: https://base-inies.fr/consultation/infos-produit/42364
B104: GFL UK04 54F | C104: https://base-inies.fr/consultation/infos-produit/42364
B105: GFL UK08 54F | C105: https://base-inies.fr/consultation/infos-produit/42364
B106: GGLS FFKF08 57 | C106: https://base-inies.fr/consultation/infos-produit/42364
B107: GGLS FFKF06 57 | C107: https://base-inies.fr/consultation/infos-produit/42364
B108: GGLS FFKF08 76F | C108: https://base-inies.fr/consultation/infos-produit/42364
B109: GGLS FFKF06 76F | C109: https://base-inies.fr/consultation/infos-produit/42364
B110: GGU CK02 57 | C110: https://base-inies.fr/consultation/infos-produit/42366
B111: GGU CK04 57 | C111: https://base-inies.fr/consultation/infos-produit/42366
B112: GGU MK04 57 | C112: https://base-inies.fr/consultation/infos-produit/42366
B113: GGU MK06 57 | C113: https://base-inies.fr/consultation/infos-produit/42366
B114: GGU MK08 57 | C114: https://base-inies.fr/consultation/infos-produit/42366
B115: GGU PK06 57 | C115: https://base-inies.fr/consultation/infos-produit/42366
B116: GGU PK08 57 | C116: https://base-inies.fr/consultation/infos-produit/42366
B117: GGU PK10 57 | C117: https://base-inies.fr/consultation/infos-produit/42366
B118: GGU SK06 57 | C118: https://base-inies.fr/consultation/infos-produit/42366
B119: GGU SK08 57 | C119: https://base-inies.fr/consultation/infos-produit/42366
B120: GGU UK04 57 | C120: https://base-inies.fr/consultation/infos-produit/42366
B121: GGU UK08 57 | C121: https://base-inies.fr/consultation/infos-produit/42366
B122: GGU CK02 76F | C122: https://base-inies.fr/consultation/infos-produit/42366
B123: GGU CK04 76F | C123: https://base-inies.fr/consultation/infos-produit/42366
B124: GGU MK04 76F | C124: https://base-inies.fr/consultation/infos-produit/42366
B125: GGU MK06 76F | C125: https://base-inies.fr/consultation/infos-produit/42366
B126: GGU MK08 76F | C126: https://base-inies.fr/consultation/infos-produit/42366
B127: GGU PK06 76F | C127: https://base-inies.fr/consultation/infos-produit/42366
B128: GGU PK08 76F | C128: https://base-inies.fr/consultation/infos-produit/42366
B129: GGU PK10 76F | C129: https://base-inies.fr/consultation/infos-produit/42366
B130: GGU SK06 76F | C130: https://base-inies.fr/consultation/infos-produit/42366
B131: GGU SK08 76F | C131: https://base-inies.fr/consultation/infos-produit/42366
B132: GGU UK04 76F | C132: https://base-inies.fr/consultation/infos-produit/42366
B133: GGU UK08 76F | C133: https://base-inies.fr/consultation/infos-produit/42366
B134: GPU CK04 57 | C134: https://base-inies.fr/consultation/infos-produit/42367
B135: GPU MK04 57 | C135: https://base-inies.fr/consultation/infos-produit/42367
B136: GPU MK06 57 | C136: https://base-inies.fr/consultation/infos-produit/42367
B137: GPU MK08 57 | C137: https://base-inies.fr/consultation/infos-produit/42367
B138: GPU PK06 57 | C138: https://base-inies.fr/consultation/infos-produit/42367
B139: GPU PK08 57 | C139: https://base-inies.fr/consultation/infos-produit/42367
B140: GPU PK10 57 | C140: https://base-inies.fr/consultation/infos-produit/42367
B141: GPU SK06 57 | C141: https://base-inies.fr/consultation/infos-produit/42367
B142: GPU SK08 57 | C142: https://base-inies.fr/consultation/infos-produit/42367
B143: GPU UK04 57 | C143: https://base-inies.fr/consultation/infos-produit/42367
B144: GPU UK08 57 | C144: https://base-inies.fr/consultation/infos-produit/42367
B145: GPU CK04 76F | C145: https://base-inies.fr/consultation/infos-produit/42367
B146: GPU MK04 76F | C146: https://base-inies.fr/consultation/infos-produit/42367
B147: GPU MK06 76F | C147: https://base-inies.fr/consultation/infos-produit/42367
B148: GPU MK08 76F | C148: https://base-inies.fr/consultation/infos-produit/42367
B149: GPU PK06 76F | C149: https://base-inies.fr/consultation/infos-produit/42367
B150: GPU PK08 76F | C150: https://base-inies.fr/consultation/infos-produit/42367
B151: GPU PK10 76F | C151: https://base-inies.fr/consultation/infos-produit/42367
B152: GPU SK06 76F | C152: https://base-inies.fr/consultation/infos-produit/42367
B153: GPU SK08 76F | C153: https://base-inies.fr/consultation/infos-produit/42367
B154: GPU UK04 76F | C154: https://base-inies.fr/consultation/infos-produit/42367
B155: GPU UK08 76F | C155: https://base-inies.fr/consultation/infos-produit/42367

Sheet results ready (hidden)
A1: 1 | B1: 2 | C1: 3 | D1: 4 | E1: 5 | F1: 6 | G1: 7 | H1: 8 | I1: 9 | J1: 10 | K1: 11 | L1: 12 | M1: 13 | N1: 14 | O1: 15 | P1: 16 | Q1: 17 | R1: 18 | S1: 19 | T1: 20 | U1: 21 | V1: 22 | W1: 23 | X1: 24 | Y1: 25 | Z1: 26 | AA1: 27 | AB1: 28 | AC1: 29 | AD1: 30 | AE1: 31 | AF1: 32 | AG1: 33 | AH1: 34 | AI1: 35 | AJ1: 36 | AK1: 37 | AL1: 38 | AM1: 39 | AN1: 40 | AO1: 41 | AP1: 42 | AQ1: 43 | AR1: 44 | AS1: 45 | AT1: 46 | AU1: 47 | AV1: 48 | AW1: 49 | AX1: 50 | AY1: 51 | AZ1: 52 | BA1: 53 | BB1: 54 | BC1: 55 | BD1: 56 | BE1: 57 | BF1: 58 | BG1: 59 | BH1: 60 | BI1: 61 | BJ1: 62
A2: Product defintion_lookup features | N2: Window | P2: Window + awning | R2: Window + shutter | T2: Window + DKL | V2: Window + awning + DKL | X2: Window + shutter + DKL | Z2: Window | AF2: Awning | AJ2: Shutter | AN2: Soft shutter | AR2: Window | AT2: Awning | AV2: Shutter | AX2: Soft shutter | AZ2: FDES | BB2: Geometry
A3: Product lookup | B3: Extra colum (don't delete) | C3: Variant | D3: Size | E3: PaneVariantCode | F3: Operation | G3: Installation | H3: ID | I3: Product mother | J3: Status | K3: Product mother variant | L3: Glazing mother Uw | M3: Glazing mother Sw etc | N3: Uw (90°) | O3: Uw (0°) | P3: Uws (90°) | Q3: Uws(0°) | R3: Uw (90°) | S3: Uw (0°) | T3: Uws (90°) | U3: Uws(0°) | V3: Uw (90°) | W3: Uw (0°) | X3: Uws (90°) | Y3: Uws(0°) | Z3: Swc1 | AA3: Swc2 | AB3: Swc3 | AC3: Swe1 | AD3: Swe2 | AE3: Swe3 | AF3: Sws1 | AG3: Sws2 | AH3: Sws3 | AI3: Sws (Sws1+Sws2+Sws3) | AJ3: Sws1 | AK3: Sws2 | AL3: Sws3 | AM3: Sws (Sws1+Sws2+Sws3) | AN3: Sws1 | AO3: Sws2 | AP3: Sws3 | AQ3: Sws (Sws1+Sws2+Sws3) | AR3: TLw | AS3: TLw diff | AT3: Tlws | AU3: Tlws diff | AV3: Tlws | AW3: Tlws diff | AX3: Tlws | AY3: Tlws diff | AZ3: FDES window | BA3: TestID | BB3: Lw | BC3: Lh | BD3: Aw | BE3: Lg,w | BF3: Lg,h | BG3: Lg | BH3: Ag | BI3: Af | BJ3: RCL
A4: GFL CK02 54F Standard | B4: GFL | C4: CK02 | D4: 54F | E4: MANUAL | F4: Standard | G4: GFL 54F | H4: GFL 54F | I4: ok | J4: GFL | K4: 54F | L4: GFL CK02 54F Standard | M4: 54F | N4: 1.6 | O4: 1.9 | P4: 1.5 | Q4: 1.7 | R4: 1.4 | S4: 1.6 | T4: 1.3 | U4: 1.5 | V4: 1.7 | W4: 1.4 | X4: 1.1 | Y4: 1.3 | Z4: 0.27 | AA4: 0.05 | AB4: 0 | AC4: 0.27 | AD4: 0.05 | AE4: 0 | AF4: 0.05 | AG4: 0.1 | AH4: 0 | AI4: 0.15 | AJ4: 0 | AK4: 0.08 | AL4: 0 | AM4: 0.08 | AN4: 0 | AO4: 0.09 | AP4: 0 | AQ4: 0.09 | AR4: 0.4 | AS4: 0 | AT4: 0.07 | AU4: 0 | AV4: 0 | AW4: 0 | AX4: 0 | AY4: 0 | AZ4: https://base-inies.fr/consultation/infos-produit/42364 | BA4: 933 | BB4: 0.55 | BC4: 0.78 | BD4: 0.43 | BE4: 0.37 | BF4: 0.58 | BG4: 1.91 | BH4: 0.22 | BI4: 0.21 | BJ4: 0.51
A5: GFL CK04 54F Standard | B5: GFL | C5: CK04 | D5: 54F | E5: MANUAL | F5: Standard | G5: GFL 54F | H5: GFL 54F | I5: ok | J5: GFL | K5: 54F | L5: GFL CK04 54F Standard | M5: 54F | N5: 1.6 | O5: 1.9 | P5: 1.5 | Q5: 1.7 | R5: 1.4 | S5: 1.6 | T5: 1.3 | U5: 1.5 | V5: 1.7 | W5: 1.4 | X5: 1.1 | Y5: 1.3 | Z5: 0.29 | AA5: 0.05 | AB5: 0 | AC5: 0.29 | AD5: 0.05 | AE5: 0 | AF5: 0.05 | AG5: 0.1 | AH5: 0 | AI5: 0.15 | AJ5: 0 | AK5: 0.08 | AL5: 0 | AM5: 0.08 | AN5: 0 | AO5: 0.09 | AP5: 0 | AQ5: 0.09 | AR5: 0.43 | AS5: 0 | AT5: 0.07 | AU5: 0 | AV5: 0 | AW5: 0 | AX5: 0 | AY5: 0 | AZ5: https://base-inies.fr/consultation/infos-produit/42364 | BA5: 934 | BB5: 0.55 | BC5: 0.98 | BD5: 0.54 | BE5: 0.37 | BF5: 0.78 | BG5: 2.31 | BH5: 0.29 | BI5: 0.25 | BJ5: 0.54
A6: GFL MK04 54F Standard | B6: GFL | C6: MK04 | D6: 54F | E6: MANUAL | F6: Standard | G6: GFL 54F | H6: GFL 54F | I6: ok | J6: GFL | K6: 54F | L6: GFL MK04 54F Standard | M6: 54F | N6: 1.5 | O6: 1.9 | P6: 1.4 | Q6: 1.7 | R6: 1.3 | S6: 1.5 | T6: 1.2 | U6: 1.5 | V6: 1.7 | W6: 1.4 | X6: 1.1 | Y6: 1.3 | Z6: 0.34 | AA6: 0.05 | AB6: 0 | AC6: 0.34 | AD6: 0.05 | AE6: 0 | AF6: 0.06 | AG6: 0.09 | AH6: 0 | AI6: 0.15 | AJ6: 0 | AK6: 0.08 | AL6: 0 | AM6: 0.08 | AN6: 0 | AO6: 0.08 | AP6: 0 | AQ6: 0.08 | AR6: 0.49 | AS6: 0 | AT6: 0.09 | AU6: 0 | AV6: 0 | AW6: 0 | AX6: 0 | AY6: 0 | AZ6: https://base-inies.fr/consultation/infos-produit/42364 | BA6: 935 | BB6: 0.78 | BC6: 0.98 | BD6: 0.76 | BE6: 0.6 | BF6: 0.78 | BG6: 2.77 | BH6: 0.47 | BI6: 0.29 | BJ6: 0.62
A7: GFL MK06 54F Standard | B7: GFL | C7: MK06 | D7: 54F | E7: MANUAL | F7: Standard | G7: GFL 54F | H7: GFL 54F | I7: ok | J7: GFL | K7: 54F | L7: GFL MK06 54F Standard | M7: 54F | N7: 1.5 | O7: 1.9 | P7: 1.4 | Q7: 1.7 | R7: 1.3 | S7: 1.5 | T7: 1.2 | U7: 1.5 | V7: 1.7 | W7: 1.4 | X7: 1.1 | Y7: 1.3 | Z7: 0.35 | AA7: 0.05 | AB7: 0 | AC7: 0.35 | AD7: 0.05 | AE7: 0 | AF7: 0.06 | AG7: 0.09 | AH7: 0 | AI7: 0.15 | AJ7: 0 | AK7: 0.08 | AL7: 0 | AM7: 0.08 | AN7: 0 | AO7: 0.08 | AP7: 0 | AQ7: 0.08 | AR7: 0.52 | AS7: 0 | AT7: 0.09 | AU7: 0 | AV7: 0 | AW7: 0 | AX7: 0 | AY7: 0 | AZ7: https://base-inies.fr/consultation/infos-produit/42364 | BA7: 936 | BB7: 0.78 | BC7: 1.18 | BD7: 0.92 | BE7: 0.6 | BF7: 0.98 | BG7: 3.17 | BH7: 0.59 | BI7: 0.33 | BJ7: 0.64
A8: GFL MK08 54F Standard | B8: GFL | C8: MK08 | D8: 54F | E8: MANUAL | F8: Standard | G8: GFL 54F | H8: GFL 54F | I8: ok | J8: GFL | K8: 54F | L8: GFL MK08 54F Standard | M8: 54F | N8: 1.5 | O8: 1.9 | P8: 1.4 | Q8: 1.7 | R8: 1.3 | S8: 1.5 | T8: 1.2 | U8: 1.5 | V8: 1.7 | W8: 1.4 | X8: 1.1 | Y8: 1.3 | Z8: 0.36 | AA8: 0.05 | AB8: 0 | AC8: 0.36 | AD8: 0.05 | AE8: 0 | AF8: 0.07 | AG8: 0.09 | AH8: 0 | AI8: 0.15 | AJ8: 0 | AK8: 0.08 | AL8: 0 | AM8: 0.08 | AN8: 0 | AO8: 0.08 | AP8: 0 | AQ8: 0.08 | AR8: 0.53 | AS8: 0 | AT8: 0.09 | AU8: 0 | AV8: 0 | AW8: 0 | AX8: 0 | AY8: 0 | AZ8: https://base-inies.fr/consultation/infos-produit/42364 | BA8: 937 | BB8: 0.78 | BC8: 1.4 | BD8: 1.09 | BE8: 0.6 | BF8: 1.2 | BG8: 3.61 | BH8: 0.72 | BI8: 0.37 | BJ8: 0.66
A9: GFL SK06 54F Standard | B9: GFL | C9: SK06 | D9: 54F | E9: MANUAL | F9: Standard | G9: GFL 54F | H9: GFL 54F | I9: ok | J9: GFL | K9: 54F | L9: GFL SK06 54F Standard | M9: 54F | N9: 1.4 | O9: 1.8 | P9: 1.3 | Q9: 1.7 | R9: 1.2 | S9: 1.5 | T9: 1.2 | U9: 1.4 | V9: 1.7 | W9: 1.3 | X9: 1 | Y9: 1.2 | Z9: 0.39 | AA9: 0.05 | AB9: 0 | AC9: 0.39 | AD9: 0.05 | AE9: 0 | AF9: 0.07 | AG9: 0.08 | AH9: 0 | AI9: 0.15 | AJ9: 0 | AK9: 0.07 | AL9: 0 | AM9: 0.07 | AN9: 0 | AO9: 0.08 | AP9: 0 | AQ9: 0.08 | AR9: 0.57 | AS9: 0 | AT9: 0.1 | AU9: 0 | AV9: 0 | AW9: 0 | AX9: 0 | AY9: 0 | AZ9: https://base-inies.fr/consultation/infos-produit/42364 | BA9: 938 | BB9: 1.14 | BC9: 1.18 | BD9: 1.34 | BE9: 0.96 | BF9: 0.98 | BG9: 3.89 | BH9: 0.94 | BI9: 0.4 | BJ9: 0.7
A10: GFL SK08 54F Standard | B10: GFL | C10: SK08 | D10: 54F | E10: MANUAL | F10: Standard | G10: GFL 54F | H10: GFL 54F | I10: ok | J10: GFL | K10: 54F | L10: GFL SK08 54F Standard | M10: 54F | N10: 1.4 | O10: 1.8 | P10: 1.3 | Q10: 1.7 | R10: 1.2 | S10: 1.5 | T10: 1.2 | U10: 1.4 | V10: 1.7 | W10: 1.3 | X10: 1 | Y10: 1.2 | Z10: 0.4 | AA10: 0.05 | AB10: 0 | AC10: 0.4 | AD10: 0.05 | AE10: 0 | AF10: 0.07 | AG10: 0.08 | AH10: 0 | AI10: 0.15 | AJ10: 0 | AK10: 0.07 | AL10: 0 | AM10: 0.07 | AN10: 0 | AO10: 0.07 | AP10: 0 | AQ10: 0.07 | AR10: 0.59 | AS10: 0 | AT10: 0.1 | AU10: 0 | AV10: 0 | AW10: 0 | AX10: 0 | AY10: 0 | AZ10: https://base-inies.fr/consultation/infos-produit/42364 | BA10: 939 | BB10: 1.14 | BC10: 1.4 | BD10: 1.59 | BE10: 0.96 | BF10: 1.2 | BG10: 4.33 | BH10: 1.15 | BI10: 0.44 | BJ10: 0.72
A11: GFL UK04 54F Standard | B11: GFL | C11: UK04 | D11: 54F | E11: MANUAL | F11: Standard | G11: GFL 54F | H11: GFL 54F | I11: ok | J11: GFL | K11: 54F | L11: GFL UK04 54F Standard | M11: 54F | N11: 1.4 | O11: 1.8 | P11: 1.3 | Q11: 1.7 | R11: 1.2 | S11: 1.5 | T11: 1.2 | U11: 1.4 | V11: 1.7 | W11: 1.3 | X11: 1 | Y11: 1.2 | Z11: 0.38 | AA11: 0.05 | AB11: 0 | AC11: 0.38 | AD11: 0.05 | AE11: 0 | AF11: 0.07 | AG11: 0.08 | AH11: 0 | AI11: 0.15 | AJ11: 0 | AK11: 0.07 | AL11: 0 | AM11: 0.07 | AN11: 0 | AO11: 0.08 | AP11: 0 | AQ11: 0.08 | AR11: 0.56 | AS11: 0 | AT11: 0.1 | AU11: 0 | AV11: 0 | AW11: 0 | AX11: 0 | AY11: 0 | AZ11: https://base-inies.fr/consultation/infos-produit/42364 | BA11: 940 | BB11: 1.34 | BC11: 0.98 | BD11: 1.31 | BE11: 1.16 | BF11: 0.78 | BG11: 3.89 | BH11: 0.91 | BI11: 0.4 | BJ11: 0.69
A12: GFL UK08 54F Standard | B12: GFL | C12: UK08 | D12: 54F | E12: MANUAL | F12: Standard | G12: GFL 54F | H12: GFL 54F | I12: ok | J12: GFL | K12: 54F | L12: GFL UK08 54F Standard | M12: 54F | N12: 1.4 | O12: 1.8 | P12: 1.3 | Q12: 1.6 | R12: 1.2 | S12: 1.5 | T12: 1.1 | U12: 1.4 | V12: 1.6 | W12: 1.3 | X12: 1 | Y12: 1.2 | Z12: 0.41 | AA12: 0.05 | AB12: 0 | AC12: 0.41 | AD12: 0.05 | AE12: 0 | AF12: 0.07 | AG12: 0.08 | AH12: 0 | AI12: 0.15 | AJ12: 0 | AK12: 0.07 | AL12: 0 | AM12: 0.07 | AN12: 0 | AO12: 0.07 | AP12: 0 | AQ12: 0.07 | AR12: 0.6 | AS12: 0 | AT12: 0.1 | AU12: 0 | AV12: 0 | AW12: 0 | AX12: 0 | AY12: 0 | AZ12: https://base-inies.fr/consultation/infos-produit/42364 | BA12: 941 | BB12: 1.34 | BC12: 1.4 | BD12: 1.87 | BE12: 1.16 | BF12: 1.2 | BG12: 4.73 | BH12: 1.39 | BI12: 0.48 | BJ12: 0.74
A13: GGL CK01 57 Standard | B13: GGL | C13: CK01 | D13: 57 | E13: MANUAL | F13: Standard | G13: GGL 57 | H13: GPL 70 | I13: ok | J13: GPL | K13: 70 | L13: GPL CK01 70 Standard | M13: 57 | N13: 1.6 | O13: 1.9 | P13: 1.5 | Q13: 1.7 | R13: 1.3 | S13: 1.6 | T13: 1.3 | U13: 1.5 | V13: 1.7 | W13: 1.4 | X13: 1.1 | Y13: 1.3 | Z13: 0.1 | AA13: 0.05 | AB13: 0 | AC13: 0.1 | AD13: 0.06 | AE13: 0 | AF13: 0.02 | AG13: 0.1 | AH13: 0 | AI13: 0.12 | AJ13: 0 | AK13: 0.08 | AL13: 0 | AM13: 0.08 | AN13: 0 | AO13: 0.08 | AP13: 0 | AQ13: 0.08 | AR13: 0.3 | AS13: 0 | AT13: 0.05 | AU13: 0 | AV13: 0 | AW13: 0 | AX13: 0 | AY13: 0 | AZ13: https://base-inies.fr/consultation/infos-produit/42364 | BA13: 942 | BB13: 0.55 | BC13: 0.7 | BD13: 0.38 | BE13: 0.37 | BF13: 0.5 | BG13: 1.75 | BH13: 0.18 | BI13: 0.2 | BJ13: 0.47
A14: GGL CK01 66 Standard | B14: GGL | C14: CK01 | D14: 66 | E14: MANUAL | F14: Standard | G14: GGL 66 | H14: GPL 66 | I14: ok | J14: GPL | K14: 66 | L14: GPL CK01 66 Standard | M14: 66 | N14: 1.4 | O14: 1.6 | P14: 1.3 | Q14: 1.4 | R14: 1.2 | S14: 1.3 | T14: 1.2 | U14: 1.3 | V14: 1.4 | W14: 1.2 | X14: 1 | Y14: 1.1 | Z14: 0.15 | AA14: 0.08 | AB14: 0 | AC14: 0.15 | AD14: 0.08 | AE14: 0 | AF14: 0.02 | AG14: 0.1 | AH14: 0 | AI14: 0.12 | AJ14: 0 | AK14: 0.07 | AL14: 0 | AM14: 0.07 | AN14: 0 | AO14: 0.07 | AP14: 0 | AQ14: 0.07 | AR14: 0.3 | AS14: 0 | AT14: 0.05 | AU14: 0 | AV14: 0 | AW14: 0 | AX14: 0 | AY14: 0 | AZ14: Pas de FDES en ligne pour la solution choisie | BA14: 943 | BB14: 0.55 | BC14: 0.7 | BD14: 0.38 | BE14: 0.37 | BF14: 0.5 | BG14: 1.75 | BH14: 0.18 | BI14: 0.2 | BJ14: 0.47
A15: GGL CK01 76F Standard | B15: GGL | C15: CK01 | D15: 76F | E15: MANUAL | F15: Standard | G15: GGL 76F | H15: GPL 70 | I15: ok | J15: GPL | K15: 70 | L15: GPL CK01 70 Standard | M15: 76 | N15: 1.6 | O15: 1.9 | P15: 1.5 | Q15: 1.7 | R15: 1.3 | S15: 1.6 | T15: 1.3 | U15: 1.5 | V15: 1.7 | W15: 1.4 | X15: 1.1 | Y15: 1.3 | Z15: 0.1 | AA15: 0.05 | AB15: 0 | AC15: 0.1 | AD15: 0.05 | AE15: 0 | AF15: 0.02 | AG15: 0.1 | AH15: 0 | AI15: 0.12 | AJ15: 0 | AK15: 0.08 | AL15: 0 | AM15: 0.08 | AN15: 0 | AO15: 0.08 | AP15: 0 | AQ15: 0.08 | AR15: 0.3 | AS15: 0 | AT15: 0.05 | AU15: 0 | AV15: 0 | AW15: 0 | AX15: 0 | AY15: 0 | AZ15: https://base-inies.fr/consultation/infos-produit/42364 | BA15: 944 | BB15: 0.55 | BC15: 0.7 | BD15: 0.38 | BE15: 0.37 | BF15: 0.5 | BG15: 1.75 | BH15: 0.18 | BI15: 0.2 | BJ15: 0.47
A16: GGL CK02 54F Standard | B16: GGL | C16: CK02 | D16: 54F | E16: MANUAL | F16: Standard | G16: GGL 54F | H16: GPL 54F | I16: ok | J16: GPL | K16: 54F | L16: GPL CK02 54F Standard | M16: 54F | N16: 1.7 | O16: 2 | P16: 1.5 | Q16: 1.8 | R16: 1.4 | S16: 1.6 | T16: 1.3 | U16: 1.5 | V16: 1.8 | W16: 1.4 | X16: 1.1 | Y16: 1.3 | Z16: 0.28 | AA16: 0.05 | AB16: 0 | AC16: 0.28 | AD16: 0.05 | AE16: 0 | AF16: 0.05 | AG16: 0.1 | AH16: 0 | AI16: 0.15 | AJ16: 0 | AK16: 0.08 | AL16: 0 | AM16: 0.08 | AN16: 0 | AO16: 0.08 | AP16: 0 | AQ16: 0.08 | AR16: 0.41 | AS16: 0 | AT16: 0.07 | AU16: 0 | AV16: 0 | AW16: 0 | AX16: 0 | AY16: 0 | AZ16: https://base-inies.fr/consultation/infos-produit/42364 | BA16: 946 | BB16: 0.55 | BC16: 0.78 | BD16: 0.43 | BE16: 0.37 | BF16: 0.58 | BG16: 1.91 | BH16: 0.22 | BI16: 0.21 | BJ16: 0.51
A17: GGL CK02 57 Standard | B17: GGL | C17: CK02 | D17: 57 | E17: ELECTRIC | F17: Standard | G17: GGL 57 | H17: GPL 70 | I17: ok | J17: GPL | K17: 70 | L17: GPL CK02 70 Standard | M17: 57 | N17: 1.6 | O17: 1.9 | P17: 1.5 | Q17: 1.7 | R17: 1.3 | S17: 1.6 | T17: 1.3 | U17: 1.5 | V17: 1.7 | W17: 1.4 | X17: 1.1 | Y17: 1.3 | Z17: 0.11 | AA17: 0.05 | AB17: 0 | AC17: 0.11 | AD17: 0.06 | AE17: 0 | AF17: 0.02 | AG17: 0.1 | AH17: 0 | AI17: 0.12 | AJ17: 0 | AK17: 0.08 | AL17: 0 | AM17: 0.08 | AN17: 0 | AO17: 0.08 | AP17: 0 | AQ17: 0.08 | AR17: 0.31 | AS17: 0 | AT17: 0.05 | AU17: 0 | AV17: 0 | AW17: 0 | AX17: 0 | AY17: 0 | AZ17: https://base-inies.fr/consultation/infos-produit/42364 | BA17: 947 | BB17: 0.55 | BC17: 0.78 | BD17: 0.43 | BE17: 0.37 | BF17: 0.58 | BG17: 1.91 | BH17: 0.22 | BI17: 0.21 | BJ17: 0.51
A18: GGL CK02 57 Standard | B18: GGL | C18: CK02 | D18: 57 | E18: MANUAL | F18: Standard | G18: GGL 57 | H18: GPL 70 | I18: ok | J18: GPL | K18: 70 | L18: GPL CK02 70 Standard | M18: 57 | N18: 1.6 | O18: 1.9 | P18: 1.5 | Q18: 1.7 | R18: 1.3 | S18: 1.6 | T18: 1.3 | U18: 1.5 | V18: 1.7 | W18: 1.4 | X18: 1.1 | Y18: 1.3 | Z18: 0.11 | AA18: 0.05 | AB18: 0 | AC18: 0.11 | AD18: 0.06 | AE18: 0 | AF18: 0.02 | AG18: 0.1 | AH18: 0 | AI18: 0.12 | AJ18: 0 | AK18: 0.08 | AL18: 0 | AM18: 0.08 | AN18: 0 | AO18: 0.08 | AP18: 0 | AQ18: 0.08 | AR18: 0.31 | AS18: 0 | AT18: 0.05 | AU18: 0 | AV18: 0 | AW18: 0 | AX18: 0 | AY18: 0 | AZ18: https://base-inies.fr/consultation/infos-produit/42364 | BA18: 948 | BB18: 0.55 | BC18: 0.78 | BD18: 0.43 | BE18: 0.37 | BF18: 0.58 | BG18: 1.91 | BH18: 0.22 | BI18: 0.21 | BJ18: 0.51
A19: GGL CK02 62 Standard | B19: GGL | C19: CK02 | D19: 62 | E19: MANUAL | F19: Standard | G19: GGL 62 | H19: GPL 62 | I19: ok | J19: GPL | K19: 62 | L19: GPL CK02 62 Standard | M19: 62 | N19: 1.4 | O19: 1.5 | P19: 1.3 | Q19: 1.4 | R19: 1.2 | S19: 1.3 | T19: 1.1 | U19: 1.2 | V19: 1.4 | W19: 1.1 | X19: 0.99 | Y19: 1.1 | Z19: 0.19 | AA19: 0.07 | AB19: 0 | AC19: 0.19 | AD19: 0.08 | AE19: 0 | AF19: 0.03 | AG19: 0.09 | AH19: 0 | AI19: 0.13 | AJ19: 0 | AK19: 0.07 | AL19: 0 | AM19: 0.07 | AN19: 0 | AO19: 0.07 | AP19: 0 | AQ19: 0.07 | AR19: 0.33 | AS19: 0 | AT19: 0.06 | AU19: 0 | AV19: 0 | AW19: 0 | AX19: 0 | AY19: 0 | AZ19: Pas de FDES en ligne pour la solution choisie | BA19: 949 | BB19: 0.55 | BC19: 0.78 | BD19: 0.43 | BE19: 0.37 | BF19: 0.58 | BG19: 1.91 | BH19: 0.22 | BI19: 0.21 | BJ19: 0.51
A20: GGL CK02 62 Standard | B20: GGL | C20: CK02 | D20: 62 | E20: ELECTRIC | F20: Standard | G20: GGL 62 | H20: GPL 62 | I20: ok | J20: GPL | K20: 62 | L20: GPL CK02 62 Standard | M20: 62 | N20: 1.4 | O20: 1.5 | P20: 1.3 | Q20: 1.4 | R20: 1.2 | S20: 1.3 | T20: 1.1 | U20: 1.2 | V20: 1.4 | W20: 1.1 | X20: 0.99 | Y20: 1.1 | Z20: 0.19 | AA20: 0.07 | AB20: 0 | AC20: 0.19 | AD20: 0.08 | AE20: 0 | AF20: 0.03 | AG20: 0.09 | AH20: 0 | AI20: 0.13 | AJ20: 0 | AK20: 0.07 | AL20: 0 | AM20: 0.07 | AN20: 0 | AO20: 0.07 | AP20: 0 | AQ20: 0.07 | AR20: 0.33 | AS20: 0 | AT20: 0.06 | AU20: 0 | AV20: 0 | AW20: 0 | AX20: 0 | AY20: 0 | AZ20: Pas de FDES en ligne pour la solution choisie | BA20: 950 | BB20: 0.55 | BC20: 0.78 | BD20: 0.43 | BE20: 0.37 | BF20: 0.58 | BG20: 1.91 | BH20: 0.22 | BI20: 0.21 | BJ20: 0.51
A21: GGL CK02 66 Standard | B21: GGL | C21: CK02 | D21: 66 | E21: MANUAL | F21: Standard | G21: GGL 66 | H21: GPL 66 | I21: ok | J21: GPL | K21: 66 | L21: GPL CK02 66 Standard | M21: 66 | N21: 1.4 | O21: 1.5 | P21: 1.3 | Q21: 1.4 | R21: 1.2 | S21: 1.3 | T21: 1.1 | U21: 1.3 | V21: 1.4 | W21: 1.2 | X21: 1 | Y21: 1.1 | Z21: 0.15 | AA21: 0.08 | AB21: 0 | AC21: 0.15 | AD21: 0.08 | AE21: 0 | AF21: 0.03 | AG21: 0.1 | AH21: 0 | AI21: 0.12 | AJ21: 0 | AK21: 0.07 | AL21: 0 | AM21: 0.07 | AN21: 0 | AO21: 0.07 | AP21: 0 | AQ21: 0.07 | AR21: 0.31 | AS21: 0 | AT21: 0.05 | AU21: 0 | AV21: 0 | AW21: 0 | AX21: 0 | AY21: 0 | AZ21: Pas de FDES en ligne pour la solution choisie | BA21: 951 | BB21: 0.55 | BC21: 0.78 | BD21: 0.43 | BE21: 0.37 | BF21: 0.58 | BG21: 1.91 | BH21: 0.22 | BI21: 0.21 | BJ21: 0.51
A22: GGL CK02 66 Standard | B22: GGL | C22: CK02 | D22: 66 | E22: ELECTRIC | F22: Standard | G22: GGL 66 | H22: GPL 66 | I22: ok | J22: GPL | K22: 66 | L22: GPL CK02 66 Standard | M22: 66 | N22: 1.4 | O22: 1.5 | P22: 1.3 | Q22: 1.4 | R22: 1.2 | S22: 1.3 | T22: 1.1 | U22: 1.3 | V22: 1.4 | W22: 1.2 | X22: 1 | Y22: 1.1 | Z22: 0.15 | AA22: 0.08 | AB22: 0 | AC22: 0.15 | AD22: 0.08 | AE22: 0 | AF22: 0.03 | AG22: 0.1 | AH22: 0 | AI22: 0.12 | AJ22: 0 | AK22: 0.07 | AL22: 0 | AM22: 0.07 | AN22: 0 | AO22: 0.07 | AP22: 0 | AQ22: 0.07 | AR22: 0.31 | AS22: 0 | AT22: 0.05 | AU22: 0 | AV22: 0 | AW22: 0 | AX22: 0 | AY22: 0 | AZ22: Pas de FDES en ligne pour la solution choisie | BA22: 945 | BB22: 0.55 | BC22: 0.78 | BD22: 0.43 | BE22: 0.37 | BF22: 0.58 | BG22: 1.91 | BH22: 0.22 | BI22: 0.21 | BJ22: 0.51
A23: GGL CK02 66 Standard | B23: GGL | C23: CK02 | D23: 66 | E23: SOLAR | F23: Standard | G23: GGL 66 | H23: GPL 66 | I23: ok | J23: GPL | K23: 66 | L23: GPL CK02 66 Standard | M23: 66 | N23: 1.4 | O23: 1.5 | P23: 1.3 | Q23: 1.4 | R23: 1.2 | S23: 1.3 | T23: 1.1 | U23: 1.3 | V23: 1.4 | W23: 1.2 | X23: 1 | Y23: 1.1 | Z23: 0.15 | AA23: 0.08 | AB23: 0 | AC23: 0.15 | AD23: 0.08 | AE23: 0 | AF23: 0.03 | AG23: 0.1 | AH23: 0 | AI23: 0.12 | AJ23: 0 | AK23: 0.07 | AL23: 0 | AM23: 0.07 | AN23: 0 | AO23: 0.07 | AP23: 0 | AQ23: 0.07 | AR23: 0.31 | AS23: 0 | AT23: 0.05 | AU23: 0 | AV23: 0 | AW23: 0 | AX23: 0 | AY23: 0 | AZ23: Pas de FDES en ligne pour la solution choisie | BA23: 952 | BB23: 0.55 | BC23: 0.78 | BD23: 0.43 | BE23: 0.37 | BF23: 0.58 | BG23: 1.91 | BH23: 0.22 | BI23: 0.21 | BJ23: 0.51
A24: GGL CK02 70 Standard | B24: GGL | C24: CK02 | D24: 70 | E24: MANUAL | F24: Standard | G24: GGL 70 | H24: GPL 70 | I24: ok | J24: GPL | K24: 70 | L24: GPL CK02 70 Standard | M24: 70 | N24: 1.6 | O24: 1.9 | P24: 1.5 | Q24: 1.7 | R24: 1.3 | S24: 1.6 | T24: 1.3 | U24: 1.5 | V24: 1.7 | W24: 1.4 | X24: 1.1 | Y24: 1.3 | Z24: 0.19 | AA24: 0.06 | AB24: 0 | AC24: 0.19 | AD24: 0.06 | AE24: 0 | AF24: 0.04 | AG24: 0.1 | AH24: 0 | AI24: 0.14 | AJ24: 0 | AK24: 0.08 | AL24: 0 | AM24: 0.08 | AN24: 0 | AO24: 0.08 | AP24: 0 | AQ24: 0.08 | AR24: 0.35 | AS24: 0 | AT24: 0.06 | AU24: 0 | AV24: 0 | AW24: 0 | AX24: 0 | AY24: 0 | AZ24: Pas de FDES en ligne pour la solution choisie | BA24: 957 | BB24: 0.55 | BC24: 0.78 | BD24: 0.43 | BE24: 0.37 | BF24: 0.58 | BG24: 1.91 | BH24: 0.22 | BI24: 0.21 | BJ24: 0.51
A25: GGL CK02 70 Standard | B25: GGL | C25: CK02 | D25: 70 | E25: MANUALBOTTOM | F25: Standard | G25: GGL 70 | H25: GPL 70 | I25: ok | J25: GPL | K25: 70 | L25: GPL CK02 70 Standard | M25: 70 | N25: 1.6 | O25: 1.9 | P25: 1.5 | Q25: 1.7 | R25: 1.3 | S25: 1.6 | T25: 1.3 | U25: 1.5 | V25: 1.7 | W25: 1.4 | X25: 1.1 | Y25: 1.3 | Z25: 0.19 | AA25: 0.06 | AB25: 0 | AC25: 0.19 | AD25: 0.06 | AE25: 0 | AF25: 0.04 | AG25: 0.1 | AH25: 0 | AI25: 0.14 | AJ25: 0 | AK25: 0.08 | AL25: 0 | AM25: 0.08 | AN25: 0 | AO25: 0.08 | AP25: 0 | AQ25: 0.08 | AR25: 0.35 | AS25: 0 | AT25: 0.06 | AU25: 0 | AV25: 0 | AW25: 0 | AX25: 0 | AY25: 0 | AZ25: Pas de FDES en ligne pour la solution choisie | BA25: 958 | BB25: 0.55 | BC25: 0.78 | BD25: 0.43 | BE25: 0.37 | BF25: 0.58 | BG25: 1.91 | BH25: 0.22 | BI25: 0.21 | BJ25: 0.51
A26: GGL CK02 70Q Standard | B26: GGL | C26: CK02 | D26: 70Q | E26: MANUAL | F26: Standard | G26: GGL 70Q | H26: GPL 70 | I26: ok | J26: GPL | K26: 70 | L26: GPL CK02 70 Standard | M26: 70 | N26: 1.6 | O26: 1.9 | P26: 1.5 | Q26: 1.7 | R26: 1.3 | S26: 1.6 | T26: 1.3 | U26: 1.5 | V26: 1.7 | W26: 1.4 | X26: 1.1 | Y26: 1.3 | Z26: 0.19 | AA26: 0.06 | AB26: 0 | AC26: 0.19 | AD26: 0.06 | AE26: 0 | AF26: 0.04 | AG26: 0.1 | AH26: 0 | AI26: 0.14 | AJ26: 0 | AK26: 0.08 | AL26: 0 | AM26: 0.08 | AN26: 0 | AO26: 0.08 | AP26: 0 | AQ26: 0.08 | AR26: 0.35 | AS26: 0 | AT26: 0.06 | AU26: 0 | AV26: 0 | AW26: 0 | AX26: 0 | AY26: 0 | AZ26: Pas de FDES en ligne pour la solution choisie | BA26: 959 | BB26: 0.55 | BC26: 0.78 | BD26: 0.43 | BE26: 0.37 | BF26: 0.58 | BG26: 1.91 | BH26: 0.22 | BI26: 0.21 | BJ26: 0.51
A27: GGL CK02 76F Standard | B27: GGL | C27: CK02 | D27: 76F | E27: ELECTRIC | F27: Standard | G27: GGL 76F | H27: GPL 70 | I27: ok | J27: GPL | K27: 70 | L27: GPL CK02 70 Standard | M27: 76 | N27: 1.6 | O27: 1.9 | P27: 1.5 | Q27: 1.7 | R27: 1.3 | S27: 1.6 | T27: 1.3 | U27: 1.5 | V27: 1.7 | W27: 1.4 | X27: 1.1 | Y27: 1.3 | Z27: 0.11 | AA27: 0.05 | AB27: 0 | AC27: 0.11 | AD27: 0.05 | AE27: 0 | AF27: 0.02 | AG27: 0.1 | AH27: 0 | AI27: 0.12 | AJ27: 0 | AK27: 0.08 | AL27: 0 | AM27: 0.08 | AN27: 0 | AO27: 0.08 | AP27: 0 | AQ27: 0.08 | AR27: 0.31 | AS27: 0 | AT27: 0.05 | AU27: 0 | AV27: 0 | AW27: 0 | AX27: 0 | AY27: 0 | AZ27: https://base-inies.fr/consultation/infos-produit/42364 | BA27: 954 | BB27: 0.55 | BC27: 0.78 | BD27: 0.43 | BE27: 0.37 | BF27: 0.58 | BG27: 1.91 | BH27: 0.22 | BI27: 0.21 | BJ27: 0.51
A28: GGL CK02 76F Standard | B28: GGL | C28: CK02 | D28: 76F | E28: MANUAL | F28: Standard | G28: GGL 76F | H28: GPL 70 | I28: ok | J28: GPL | K28: 70 | L28: GPL CK02 70 Standard | M28: 76 | N28: 1.6 | O28: 1.9 | P28: 1.5 | Q28: 1.7 | R28: 1.3 | S28: 1.6 | T28: 1.3 | U28: 1.5 | V28: 1.7 | W28: 1.4 | X28: 1.1 | Y28: 1.3 | Z28: 0.11 | AA28: 0.05 | AB28: 0 | AC28: 0.11 | AD28: 0.05 | AE28: 0 | AF28: 0.02 | AG28: 0.1 | AH28: 0 | AI28: 0.12 | AJ28: 0 | AK28: 0.08 | AL28: 0 | AM28: 0.08 | AN28: 0 | AO28: 0.08 | AP28: 0 | AQ28: 0.08 | AR28: 0.31 | AS28: 0 | AT28: 0.05 | AU28: 0 | AV28: 0 | AW28: 0 | AX28: 0 | AY28: 0 | AZ28: https://base-inies.fr/consultation/infos-produit/42364 | BA28: 962 | BB28: 0.55 | BC28: 0.78 | BD28: 0.43 | BE28: 0.37 | BF28: 0.58 | BG28: 1.91 | BH28: 0.22 | BI28: 0.21 | BJ28: 0.51
A29: GGL CK02 76F Standard | B29: GGL | C29: CK02 | D29: 76F | E29: SOLAR | F29: Standard | G29: GGL 76F | H29: GPL 70 | I29: ok | J29: GPL | K29: 70 | L29: GPL CK02 70 Standard | M29: 76 | N29: 1.6 | O29: 1.9 | P29: 1.5 | Q29: 1.7 | R29: 1.3 | S29: 1.6 | T29: 1.3 | U29: 1.5 | V29: 1.7 | W29: 1.4 | X29: 1.1 | Y29: 1.3 | Z29: 0.11 | AA29: 0.05 | AB29: 0 | AC29: 0.11 | AD29: 0.05 | AE29: 0 | AF29: 0.02 | AG29: 0.1 | AH29: 0 | AI29: 0.12 | AJ29: 0 | AK29: 0.08 | AL29: 0 | AM29: 0.08 | AN29: 0 | AO29: 0.08 | AP29: 0 | AQ29: 0.08 | AR29: 0.31 | AS29: 0 | AT29: 0.05 | AU29: 0 | AV29: 0 | AW29: 0 | AX29: 0 | AY29: 0 | AZ29: https://base-inies.fr/consultation/infos-produit/42364 | BA29: 960 | BB29: 0.55 | BC29: 0.78 | BD29: 0.43 | BE29: 0.37 | BF29: 0.58 | BG29: 1.91 | BH29: 0.22 | BI29: 0.21 | BJ29: 0.51
A30: GGL CK04 54F Standard | B30: GGL | C30: CK04 | D30: 54F | E30: MANUAL | F30: Standard | G30: GGL 54F | H30: GPL 54F | I30: ok | J30: GPL | K30: 54F | L30: GPL CK04 54F Standard | M30: 54F | N30: 1.6 | O30: 2 | P30: 1.5 | Q30: 1.8 | R30: 1.4 | S30: 1.6 | T30: 1.3 | U30: 1.5 | V30: 1.8 | W30: 1.4 | X30: 1.1 | Y30: 1.3 | Z30: 0.3 | AA30: 0.05 | AB30: 0 | AC30: 0.3 | AD30: 0.05 | AE30: 0 | AF30: 0.05 | AG30: 0.1 | AH30: 0 | AI30: 0.15 | AJ30: 0 | AK30: 0.08 | AL30: 0 | AM30: 0.08 | AN30: 0 | AO30: 0.08 | AP30: 0 | AQ30: 0.08 | AR30: 0.44 | AS30: 0 | AT30: 0.08 | AU30: 0 | AV30: 0 | AW30: 0 | AX30: 0 | AY30: 0 | AZ30: https://base-inies.fr/consultation/infos-produit/42364 | BA30: 963 | BB30: 0.55 | BC30: 0.98 | BD30: 0.54 | BE30: 0.37 | BF30: 0.78 | BG30: 2.31 | BH30: 0.29 | BI30: 0.25 | BJ30: 0.54
A31: GGL CK04 57 Standard | B31: GGL | C31: CK04 | D31: 57 | E31: ELECTRIC | F31: Standard | G31: GGL 57 | H31: GPL 70 | I31: ok | J31: GPL | K31: 70 | L31: GPL CK04 70 Standard | M31: 57 | N31: 1.6 | O31: 1.9 | P31: 1.4 | Q31: 1.7 | R31: 1.3 | S31: 1.6 | T31: 1.3 | U31: 1.5 | V31: 1.7 | W31: 1.4 | X31: 1.1 | Y31: 1.3 | Z31: 0.11 | AA31: 0.05 | AB31: 0 | AC31: 0.11 | AD31: 0.06 | AE31: 0 | AF31: 0.02 | AG31: 0.1 | AH31: 0 | AI31: 0.12 | AJ31: 0 | AK31: 0.07 | AL31: 0 | AM31: 0.07 | AN31: 0 | AO31: 0.08 | AP31: 0 | AQ31: 0.08 | AR31: 0.33 | AS31: 0 | AT31: 0.06 | AU31: 0 | AV31: 0 | AW31: 0 | AX31: 0 | AY31: 0 | AZ31: https://base-inies.fr/consultation/infos-produit/42364 | BA31: 964 | BB31: 0.55 | BC31: 0.98 | BD31: 0.54 | BE31: 0.37 | BF31: 0.78 | BG31: 2.31 | BH31: 0.29 | BI31: 0.25 | BJ31: 0.54
A32: GGL CK04 57 Standard | B32: GGL | C32: CK04 | D32: 57 | E32: MANUAL | F32: Standard | G32: GGL 57 | H32: GPL 70 | I32: ok | J32: GPL | K32: 70 | L32: GPL CK04 70 Standard | M32: 57 | N32: 1.6 | O32: 1.9 | P32: 1.4 | Q32: 1.7 | R32: 1.3 | S32: 1.6 | T32: 1.3 | U32: 1.5 | V32: 1.7 | W32: 1.4 | X32: 1.1 | Y32: 1.3 | Z32: 0.11 | AA32: 0.05 | AB32: 0 | AC32: 0.11 | AD32: 0.06 | AE32: 0 | AF32: 0.02 | AG32: 0.1 | AH32: 0 | AI32: 0.12 | AJ32: 0 | AK32: 0.07 | AL32: 0 | AM32: 0.07 | AN32: 0 | AO32: 0.08 | AP32: 0 | AQ32: 0.08 | AR32: 0.33 | AS32: 0 | AT32: 0.06 | AU32: 0 | AV32: 0 | AW32: 0 | AX32: 0 | AY32: 0 | AZ32: https://base-inies.fr/consultation/infos-produit/42364 | BA32: 965 | BB32: 0.55 | BC32: 0.98 | BD32: 0.54 | BE32: 0.37 | BF32: 0.78 | BG32: 2.31 | BH32: 0.29 | BI32: 0.25 | BJ32: 0.54
A33: GGL CK04 62 Standard | B33: GGL | C33: CK04 | D33: 62 | E33: MANUAL | F33: Standard | G33: GGL 62 | H33: GPL 62 | I33: ok | J33: GPL | K33: 62 | L33: GPL CK04 62 Standard | M33: 62 | N33: 1.3 | O33: 1.5 | P33: 1.2 | Q33: 1.4 | R33: 1.1 | S33: 1.3 | T33: 1.1 | U33: 1.2 | V33: 1.4 | W33: 1.1 | X33: 0.97 | Y33: 1.1 | Z33: 0.2 | AA33: 0.08 | AB33: 0 | AC33: 0.2 | AD33: 0.08 | AE33: 0 | AF33: 0.03 | AG33: 0.09 | AH33: 0 | AI33: 0.13 | AJ33: 0 | AK33: 0.06 | AL33: 0 | AM33: 0.06 | AN33: 0 | AO33: 0.07 | AP33: 0 | AQ33: 0.07 | AR33: 0.36 | AS33: 0 | AT33: 0.06 | AU33: 0 | AV33: 0 | AW33: 0 | AX33: 0 | AY33: 0 | AZ33: Pas de FDES en ligne pour la solution choisie | BA33: 966 | BB33: 0.55 | BC33: 0.98 | BD33: 0.54 | BE33: 0.37 | BF33: 0.78 | BG33: 2.31 | BH33: 0.29 | BI33: 0.25 | BJ33: 0.54
A34: GGL CK04 62 Standard | B34: GGL | C34: CK04 | D34: 62 | E34: ELECTRIC | F34: Standard | G34: GGL 62 | H34: GPL 62 | I34: ok | J34: GPL | K34: 62 | L34: GPL CK04 62 Standard | M34: 62 | N34: 1.3 | O34: 1.5 | P34: 1.2 | Q34: 1.4 | R34: 1.1 | S34: 1.3 | T34: 1.1 | U34: 1.2 | V34: 1.4 | W34: 1.1 | X34: 0.97 | Y34: 1.1 | Z34: 0.2 | AA34: 0.08 | AB34: 0 | AC34: 0.2 | AD34: 0.08 | AE34: 0 | AF34: 0.03 | AG34: 0.09 | AH34: 0 | AI34: 0.13 | AJ34: 0 | AK34: 0.06 | AL34: 0 | AM34: 0.06 | AN34: 0 | AO34: 0.07 | AP34: 0 | AQ34: 0.07 | AR34: 0.36 | AS34: 0 | AT34: 0.06 | AU34: 0 | AV34: 0 | AW34: 0 | AX34: 0 | AY34: 0 | AZ34: Pas de FDES en ligne pour la solution choisie | BA34: 967 | BB34: 0.55 | BC34: 0.98 | BD34: 0.54 | BE34: 0.37 | BF34: 0.78 | BG34: 2.31 | BH34: 0.29 | BI34: 0.25 | BJ34: 0.54
A35: GGL CK04 66 Standard | B35: GGL | C35: CK04 | D35: 66 | E35: MANUAL | F35: Standard | G35: GGL 66 | H35: GPL 66 | I35: ok | J35: GPL | K35: 66 | L35: GPL CK04 66 Standard | M35: 66 | N35: 1.3 | O35: 1.5 | P35: 1.2 | Q35: 1.4 | R35: 1.2 | S35: 1.3 | T35: 1.1 | U35: 1.2 | V35: 1.4 | W35: 1.1 | X35: 0.99 | Y35: 1.1 | Z35: 0.16 | AA35: 0.08 | AB35: 0 | AC35: 0.16 | AD35: 0.08 | AE35: 0 | AF35: 0.03 | AG35: 0.09 | AH35: 0 | AI35: 0.12 | AJ35: 0 | AK35: 0.07 | AL35: 0 | AM35: 0.07 | AN35: 0 | AO35: 0.07 | AP35: 0 | AQ35: 0.07 | AR35: 0.33 | AS35: 0 | AT35: 0.06 | AU35: 0 | AV35: 0 | AW35: 0 | AX35: 0 | AY35: 0 | AZ35: Pas de FDES en ligne pour la solution choisie | BA35: 968 | BB35: 0.55 | BC35: 0.98 | BD35: 0.54 | BE35: 0.37 | BF35: 0.78 | BG35: 2.31 | BH35: 0.29 | BI35: 0.25 | BJ35: 0.54
A36: GGL CK04 66 Standard | B36: GGL | C36: CK04 | D36: 66 | E36: ELECTRIC | F36: Standard | G36: GGL 66 | H36: GPL 66 | I36: ok | J36: GPL | K36: 66 | L36: GPL CK04 66 Standard | M36: 66 | N36: 1.3 | O36: 1.5 | P36: 1.2 | Q36: 1.4 | R36: 1.2 | S36: 1.3 | T36: 1.1 | U36: 1.2 | V36: 1.4 | W36: 1.1 | X36: 0.99 | Y36: 1.1 | Z36: 0.16 | AA36: 0.08 | AB36: 0 | AC36: 0.16 | AD36: 0.08 | AE36: 0 | AF36: 0.03 | AG36: 0.09 | AH36: 0 | AI36: 0.12 | AJ36: 0 | AK36: 0.07 | AL36: 0 | AM36: 0.07 | AN36: 0 | AO36: 0.07 | AP36: 0 | AQ36: 0.07 | AR36: 0.33 | AS36: 0 | AT36: 0.06 | AU36: 0 | AV36: 0 | AW36: 0 | AX36: 0 | AY36: 0 | AZ36: Pas de FDES en ligne pour la solution choisie | BA36: 969 | BB36: 0.55 | BC36: 0.98 | BD36: 0.54 | BE36: 0.37 | BF36: 0.78 | BG36: 2.31 | BH36: 0.29 | BI36: 0.25 | BJ36: 0.54
A37: GGL CK04 66 Standard | B37: GGL | C37: CK04 | D37: 66 | E37: SOLAR | F37: Standard | G37: GGL 66 | H37: GPL 66 | I37: ok | J37: GPL | K37: 66 | L37: GPL CK04 66 Standard | M37: 66 | N37: 1.3 | O37: 1.5 | P37: 1.2 | Q37: 1.4 | R37: 1.2 | S37: 1.3 | T37: 1.1 | U37: 1.2 | V37: 1.4 | W37: 1.1 | X37: 0.99 | Y37: 1.1 | Z37: 0.16 | AA37: 0.08 | AB37: 0 | AC37: 0.16 | AD37: 0.08 | AE37: 0 | AF37: 0.03 | AG37: 0.09 | AH37: 0 | AI37: 0.12 | AJ37: 0 | AK37: 0.07 | AL37: 0 | AM37: 0.07 | AN37: 0 | AO37: 0.07 | AP37: 0 | AQ37: 0.07 | AR37: 0.33 | AS37: 0 | AT37: 0.06 | AU37: 0 | AV37: 0 | AW37: 0 | AX37: 0 | AY37: 0 | AZ37: Pas de FDES en ligne pour la solution choisie | BA37: 970 | BB37: 0.55 | BC37: 0.98 | BD37: 0.54 | BE37: 0.37 | BF37: 0.78 | BG37: 2.31 | BH37: 0.29 | BI37: 0.25 | BJ37: 0.54
A38: GGL CK04 70 Standard | B38: GGL | C38: CK04 | D38: 70 | E38: MANUAL | F38: Standard | G38: GGL 70 | H38: GPL 70 | I38: ok | J38: GPL | K38: 70 | L38: GPL CK04 70 Standard | M38: 70 | N38: 1.6 | O38: 1.9 | P38: 1.4 | Q38: 1.7 | R38: 1.3 | S38: 1.6 | T38: 1.3 | U38: 1.5 | V38: 1.7 | W38: 1.4 | X38: 1.1 | Y38: 1.3 | Z38: 0.21 | AA38: 0.06 | AB38: 0 | AC38: 0.21 | AD38: 0.06 | AE38: 0 | AF38: 0.04 | AG38: 0.1 | AH38: 0 | AI38: 0.14 | AJ38: 0 | AK38: 0.07 | AL38: 0 | AM38: 0.07 | AN38: 0 | AO38: 0.08 | AP38: 0 | AQ38: 0.08 | AR38: 0.37 | AS38: 0 | AT38: 0.06 | AU38: 0 | AV38: 0 | AW38: 0 | AX38: 0 | AY38: 0 | AZ38: Pas de FDES en ligne pour la solution choisie | BA38: 973 | BB38: 0.55 | BC38: 0.98 | BD38: 0.54 | BE38: 0.37 | BF38: 0.78 | BG38: 2.31 | BH38: 0.29 | BI38: 0.25 | BJ38: 0.54
A39: GGL CK04 70Q Standard | B39: GGL | C39: CK04 | D39: 70Q | E39: MANUAL | F39: Standard | G39: GGL 70Q | H39: GPL 70 | I39: ok | J39: GPL | K39: 70 | L39: GPL CK04 70 Standard | M39: 70 | N39: 1.6 | O39: 1.9 | P39: 1.4 | Q39: 1.7 | R39: 1.3 | S39: 1.6 | T39: 1.3 | U39: 1.5 | V39: 1.7 | W39: 1.4 | X39: 1.1 | Y39: 1.3 | Z39: 0.21 | AA39: 0.06 | AB39: 0 | AC39: 0.21 | AD39: 0.06 | AE39: 0 | AF39: 0.04 | AG39: 0.1 | AH39: 0 | AI39: 0.14 | AJ39: 0 | AK39: 0.07 | AL39: 0 | AM39: 0.07 | AN39: 0 | AO39: 0.08 | AP39: 0 | AQ39: 0.08 | AR39: 0.37 | AS39: 0 | AT39: 0.06 | AU39: 0 | AV39: 0 | AW39: 0 | AX39: 0 | AY39: 0 | AZ39: Pas de FDES en ligne pour la solution choisie | BA39: 974 | BB39: 0.55 | BC39: 0.98 | BD39: 0.54 | BE39: 0.37 | BF39: 0.78 | BG39: 2.31 | BH39: 0.29 | BI39: 0.25 | BJ39: 0.54
A40: GGL CK04 76F Standard | B40: GGL | C40: CK04 | D40: 76F | E40: MANUAL | F40: Standard | G40: GGL 76F | H40: GPL 70 | I40: ok | J40: GPL | K40: 70 | L40: GPL CK04 70 Standard | M40: 76 | N40: 1.6 | O40: 1.9 | P40: 1.4 | Q40: 1.7 | R40: 1.3 | S40: 1.6 | T40: 1.3 | U40: 1.5 | V40: 1.7 | W40: 1.4 | X40: 1.1 | Y40: 1.3 | Z40: 0.11 | AA40: 0.05 | AB40: 0 | AC40: 0.11 | AD40: 0.05 | AE40: 0 | AF40: 0.02 | AG40: 0.1 | AH40: 0 | AI40: 0.12 | AJ40: 0 | AK40: 0.07 | AL40: 0 | AM40: 0.07 | AN40: 0 | AO40: 0.08 | AP40: 0 | AQ40: 0.08 | AR40: 0.34 | AS40: 0 | AT40: 0.06 | AU40: 0 | AV40: 0 | AW40: 0 | AX40: 0 | AY40: 0 | AZ40: https://base-inies.fr/consultation/infos-produit/42364 | BA40: 977 | BB40: 0.55 | BC40: 0.98 | BD40: 0.54 | BE40: 0.37 | BF40: 0.78 | BG40: 2.31 | BH40: 0.29 | BI40: 0.25 | BJ40: 0.54
A41: GGL CK04 76F Standard | B41: GGL | C41: CK04 | D41: 76F | E41: SOLAR | F41: Standard | G41: GGL 76F | H41: GPL 70 | I41: ok | J41: GPL | K41: 70 | L41: GPL CK04 70 Standard | M41: 76 | N41: 1.6 | O41: 1.9 | P41: 1.4 | Q41: 1.7 | R41: 1.3 | S41: 1.6 | T41: 1.3 | U41: 1.5 | V41: 1.7 | W41: 1.4 | X41: 1.1 | Y41: 1.3 | Z41: 0.11 | AA41: 0.05 | AB41: 0 | AC41: 0.11 | AD41: 0.05 | AE41: 0 | AF41: 0.02 | AG41: 0.1 | AH41: 0 | AI41: 0.12 | AJ41: 0 | AK41: 0.07 | AL41: 0 | AM41: 0.07 | AN41: 0 | AO41: 0.08 | AP41: 0 | AQ41: 0.08 | AR41: 0.34 | AS41: 0 | AT41: 0.06 | AU41: 0 | AV41: 0 | AW41: 0 | AX41: 0 | AY41: 0 | AZ41: https://base-inies.fr/consultation/infos-produit/42364 | BA41: 975 | BB41: 0.55 | BC41: 0.98 | BD41: 0.54 | BE41: 0.37 | BF41: 0.78 | BG41: 2.31 | BH41: 0.29 | BI41: 0.25 | BJ41: 0.54
A42: GGL CK04 70H Standard | B42: GGL | C42: CK04 | D42: 70H | E42: MANUAL | F42: Standard | G42: GGL 70H | H42: GPL 70 | I42: ok | J42: GPL | K42: 70 | L42: GPL CK04 70 Standard | M42: 70 | N42: 1.6 | O42: 1.9 | P42: 1.4 | Q42: 1.7 | R42: 1.3 | S42: 1.6 | T42: 1.3 | U42: 1.5 | V42: 1.7 | W42: 1.4 | X42: 1.1 | Y42: 1.3 | Z42: 0.21 | AA42: 0.06 | AB42: 0 | AC42: 0.21 | AD42: 0.06 | AE42: 0 | AF42: 0.04 | AG42: 0.1 | AH42: 0 | AI42: 0.14 | AJ42: 0 | AK42: 0.07 | AL42: 0 | AM42: 0.07 | AN42: 0 | AO42: 0.08 | AP42: 0 | AQ42: 0.08 | AR42: 0.37 | AS42: 0 | AT42: 0.06 | AU42: 0 | AV42: 0 | AW42: 0 | AX42: 0 | AY42: 0 | AZ42: Pas de FDES en ligne pour la solution choisie | BA42: 976 | BB42: 0.55 | BC42: 0.98 | BD42: 0.54 | BE42: 0.37 | BF42: 0.78 | BG42: 2.31 | BH42: 0.29 | BI42: 0.25 | BJ42: 0.54
A43: GGL CK06 62 Standard | B43: GGL | C43: CK06 | D43: 62 | E43: MANUAL | F43: Standard | G43: GGL 62 | H43: GPL 62 | I43: ok | J43: GPL | K43: 62 | L43: GPL CK06 62 Standard | M43: 62 | N43: 1.3 | O43: 1.5 | P43: 1.2 | Q43: 1.3 | R43: 1.1 | S43: 1.2 | T43: 1.1 | U43: 1.2 | V43: 1.3 | W43: 1.1 | X43: 0.96 | Y43: 1 | Z43: 0.21 | AA43: 0.08 | AB43: 0 | AC43: 0.21 | AD43: 0.08 | AE43: 0 | AF43: 0.04 | AG43: 0.09 | AH43: 0 | AI43: 0.13 | AJ43: 0 | AK43: 0.06 | AL43: 0 | AM43: 0.06 | AN43: 0 | AO43: 0.07 | AP43: 0 | AQ43: 0.07 | AR43: 0.37 | AS43: 0 | AT43: 0.06 | AU43: 0 | AV43: 0 | AW43: 0 | AX43: 0 | AY43: 0 | AZ43: Pas de FDES en ligne pour la solution choisie | BA43: 979 | BB43: 0.55 | BC43: 1.18 | BD43: 0.65 | BE43: 0.37 | BF43: 0.98 | BG43: 2.71 | BH43: 0.37 | BI43: 0.28 | BJ43: 0.57
A44: GGL CK06 62 Standard | B44: GGL | C44: CK06 | D44: 62 | E44: ELECTRIC | F44: Standard | G44: GGL 62 | H44: GPL 62 | I44: ok | J44: GPL | K44: 62 | L44: GPL CK06 62 Standard | M44: 62 | N44: 1.3 | O44: 1.5 | P44: 1.2 | Q44: 1.3 | R44: 1.1 | S44: 1.2 | T44: 1.1 | U44: 1.2 | V44: 1.3 | W44: 1.1 | X44: 0.96 | Y44: 1 | Z44: 0.21 | AA44: 0.08 | AB44: 0 | AC44: 0.21 | AD44: 0.08 | AE44: 0 | AF44: 0.04 | AG44: 0.09 | AH44: 0 | AI44: 0.13 | AJ44: 0 | AK44: 0.06 | AL44: 0 | AM44: 0.06 | AN44: 0 | AO44: 0.07 | AP44: 0 | AQ44: 0.07 | AR44: 0.37 | AS44: 0 | AT44: 0.06 | AU44: 0 | AV44: 0 | AW44: 0 | AX44: 0 | AY44: 0 | AZ44: Pas de FDES en ligne pour la solution choisie | BA44: 980 | BB44: 0.55 | BC44: 1.18 | BD44: 0.65 | BE44: 0.37 | BF44: 0.98 | BG44: 2.71 | BH44: 0.37 | BI44: 0.28 | BJ44: 0.57
A45: GGL CK06 66 Standard | B45: GGL | C45: CK06 | D45: 66 | E45: MANUAL | F45: Standard | G45: GGL 66 | H45: GPL 66 | I45: ok | J45: GPL | K45: 66 | L45: GPL CK06 66 Standard | M45: 66 | N45: 1.3 | O45: 1.5 | P45: 1.2 | Q45: 1.4 | R45: 1.1 | S45: 1.3 | T45: 1.1 | U45: 1.2 | V45: 1.4 | W45: 1.1 | X45: 0.97 | Y45: 1.1 | Z45: 0.17 | AA45: 0.08 | AB45: 0 | AC45: 0.17 | AD45: 0.09 | AE45: 0 | AF45: 0.03 | AG45: 0.09 | AH45: 0 | AI45: 0.12 | AJ45: 0 | AK45: 0.07 | AL45: 0 | AM45: 0.07 | AN45: 0 | AO45: 0.07 | AP45: 0 | AQ45: 0.07 | AR45: 0.35 | AS45: 0 | AT45: 0.06 | AU45: 0 | AV45: 0 | AW45: 0 | AX45: 0 | AY45: 0 | AZ45: Pas de FDES en ligne pour la solution choisie | BA45: 982 | BB45: 0.55 | BC45: 1.18 | BD45: 0.65 | BE45: 0.37 | BF45: 0.98 | BG45: 2.71 | BH45: 0.37 | BI45: 0.28 | BJ45: 0.57
A46: GGL CK06 66 Standard | B46: GGL | C46: CK06 | D46: 66 | E46: ELECTRIC | F46: Standard | G46: GGL 66 | H46: GPL 66 | I46: ok | J46: GPL | K46: 66 | L46: GPL CK06 66 Standard | M46: 66 | N46: 1.3 | O46: 1.5 | P46: 1.2 | Q46: 1.4 | R46: 1.1 | S46: 1.3 | T46: 1.1 | U46: 1.2 | V46: 1.4 | W46: 1.1 | X46: 0.97 | Y46: 1.1 | Z46: 0.17 | AA46: 0.08 | AB46: 0 | AC46: 0.17 | AD46: 0.09 | AE46: 0 | AF46: 0.03 | AG46: 0.09 | AH46: 0 | AI46: 0.12 | AJ46: 0 | AK46: 0.07 | AL46: 0 | AM46: 0.07 | AN46: 0 | AO46: 0.07 | AP46: 0 | AQ46: 0.07 | AR46: 0.35 | AS46: 0 | AT46: 0.06 | AU46: 0 | AV46: 0 | AW46: 0 | AX46: 0 | AY46: 0 | AZ46: Pas de FDES en ligne pour la solution choisie | BA46: 983 | BB46: 0.55 | BC46: 1.18 | BD46: 0.65 | BE46: 0.37 | BF46: 0.98 | BG46: 2.71 | BH46: 0.37 | BI46: 0.28 | BJ46: 0.57
A47: GGL CK06 66 Standard | B47: GGL | C47: CK06 | D47: 66 | E47: SOLAR | F47: Standard | G47: GGL 66 | H47: GPL 66 | I47: ok | J47: GPL | K47: 66 | L47: GPL CK06 66 Standard | M47: 66 | N47: 1.3 | O47: 1.5 | P47: 1.2 | Q47: 1.4 | R47: 1.1 | S47: 1.3 | T47: 1.1 | U47: 1.2 | V47: 1.4 | W47: 1.1 | X47: 0.97 | Y47: 1.1 | Z47: 0.17 | AA47: 0.08 | AB47: 0 | AC47: 0.17 | AD47: 0.09 | AE47: 0 | AF47: 0.03 | AG47: 0.09 | AH47: 0 | AI47: 0.12 | AJ47: 0 | AK47: 0.07 | AL47: 0 | AM47: 0.07 | AN47: 0 | AO47: 0.07 | AP47: 0 | AQ47: 0.07 | AR47: 0.35 | AS47: 0 | AT47: 0.06 | AU47: 0 | AV47: 0 | AW47: 0 | AX47: 0 | AY47: 0 | AZ47: Pas de FDES en ligne pour la solution choisie | BA47: 984 | BB47: 0.55 | BC47: 1.18 | BD47: 0.65 | BE47: 0.37 | BF47: 0.98 | BG47: 2.71 | BH47: 0.37 | BI47: 0.28 | BJ47: 0.57
A48: GGL CK06 70 Standard | B48: GGL | C48: CK06 | D48: 70 | E48: SOLAR | F48: Standard | G48: GGL 70 | H48: GPL 70 | I48: ok | J48: GPL | K48: 70 | L48: GPL CK06 70 Standard | M48: 70 | N48: 1.5 | O48: 1.9 | P48: 1.4 | Q48: 1.7 | R48: 1.3 | S48: 1.6 | T48: 1.3 | U48: 1.5 | V48: 1.7 | W48: 1.4 | X48: 1.1 | Y48: 1.3 | Z48: 0.21 | AA48: 0.06 | AB48: 0 | AC48: 0.21 | AD48: 0.06 | AE48: 0 | AF48: 0.04 | AG48: 0.1 | AH48: 0 | AI48: 0.14 | AJ48: 0 | AK48: 0.07 | AL48: 0 | AM48: 0.07 | AN48: 0 | AO48: 0.08 | AP48: 0 | AQ48: 0.08 | AR48: 0.38 | AS48: 0 | AT48: 0.07 | AU48: 0 | AV48: 0 | AW48: 0 | AX48: 0 | AY48: 0 | AZ48: Pas de FDES en ligne pour la solution choisie | BA48: 987 | BB48: 0.55 | BC48: 1.18 | BD48: 0.65 | BE48: 0.37 | BF48: 0.98 | BG48: 2.71 | BH48: 0.37 | BI48: 0.28 | BJ48: 0.57
A49: GGL CK06 70H Standard | B49: GGL | C49: CK06 | D49: 70H | E49: MANUAL | F49: Standard | G49: GGL 70H | H49: GPL 70 | I49: ok | J49: GPL | K49: 70 | L49: GPL CK06 70 Standard | M49: 70 | N49: 1.5 | O49: 1.9 | P49: 1.4 | Q49: 1.7 | R49: 1.3 | S49: 1.6 | T49: 1.3 | U49: 1.5 | V49: 1.7 | W49: 1.4 | X49: 1.1 | Y49: 1.3 | Z49: 0.21 | AA49: 0.06 | AB49: 0 | AC49: 0.21 | AD49: 0.06 | AE49: 0 | AF49: 0.04 | AG49: 0.1 | AH49: 0 | AI49: 0.14 | AJ49: 0 | AK49: 0.07 | AL49: 0 | AM49: 0.07 | AN49: 0 | AO49: 0.08 | AP49: 0 | AQ49: 0.08 | AR49: 0.38 | AS49: 0 | AT49: 0.07 | AU49: 0 | AV49: 0 | AW49: 0 | AX49: 0 | AY49: 0 | AZ49: Pas de FDES en ligne pour la solution choisie | BA49: 981 | BB49: 0.55 | BC49: 1.18 | BD49: 0.65 | BE49: 0.37 | BF49: 0.98 | BG49: 2.71 | BH49: 0.37 | BI49: 0.28 | BJ49: 0.57
A50: GGL FK04 62 Standard | B50: GGL | C50: FK04 | D50: 62 | E50: MANUAL | F50: Standard | G50: GGL 62 | H50: GPL 62 | I50: ok | J50: GPL | K50: 62 | L50: GPL FK04 62 Standard | M50: 62 | N50: 1.2 | O50: 1.4 | P50: 1.1 | Q50: 1.3 | R50: 1.1 | S50: 1.2 | T50: 1 | U50: 1.2 | V50: 1.3 | W50: 1.1 | X50: 0.93 | Y50: 1 | Z50: 0.22 | AA50: 0.08 | AB50: 0 | AC50: 0.22 | AD50: 0.08 | AE50: 0 | AF50: 0.04 | AG50: 0.09 | AH50: 0 | AI50: 0.12 | AJ50: 0 | AK50: 0.06 | AL50: 0 | AM50: 0.06 | AN50: 0 | AO50: 0.06 | AP50: 0 | AQ50: 0.06 | AR50: 0.39 | AS50: 0 | AT50: 0.07 | AU50: 0 | AV50: 0 | AW50: 0 | AX50: 0 | AY50: 0 | AZ50: Pas de FDES en ligne pour la solution choisie | BA50: 988 | BB50: 0.66 | BC50: 0.98 | BD50: 0.65 | BE50: 0.48 | BF50: 0.78 | BG50: 2.53 | BH50: 0.38 | BI50: 0.27 | BJ50: 0.58
A51: GGL FK04 62 Standard | B51: GGL | C51: FK04 | D51: 62 | E51: ELECTRIC | F51: Standard | G51: GGL 62 | H51: GPL 62 | I51: ok | J51: GPL | K51: 62 | L51: GPL FK04 62 Standard | M51: 62 | N51: 1.2 | O51: 1.4 | P51: 1.1 | Q51: 1.3 | R51: 1.1 | S51: 1.2 | T51: 1 | U51: 1.2 | V51: 1.3 | W51: 1.1 | X51: 0.93 | Y51: 1 | Z51: 0.22 | AA51: 0.08 | AB51: 0 | AC51: 0.22 | AD51: 0.08 | AE51: 0 | AF51: 0.04 | AG51: 0.09 | AH51: 0 | AI51: 0.12 | AJ51: 0 | AK51: 0.06 | AL51: 0 | AM51: 0.06 | AN51: 0 | AO51: 0.06 | AP51: 0 | AQ51: 0.06 | AR51: 0.39 | AS51: 0 | AT51: 0.07 | AU51: 0 | AV51: 0 | AW51: 0 | AX51: 0 | AY51: 0 | AZ51: Pas de FDES en ligne pour la solution choisie | BA51: 989 | BB51: 0.66 | BC51: 0.98 | BD51: 0.65 | BE51: 0.48 | BF51: 0.78 | BG51: 2.53 | BH51: 0.38 | BI51: 0.27 | BJ51: 0.58
A52: GGL FK04 66 Standard | B52: GGL | C52: FK04 | D52: 66 | E52: MANUAL | F52: Standard | G52: GGL 66 | H52: GPL 66 | I52: ok | J52: GPL | K52: 66 | L52: GPL FK04 66 Standard | M52: 66 | N52: 1.3 | O52: 1.4 | P52: 1.2 | Q52: 1.3 | R52: 1.1 | S52: 1.2 | T52: 1.1 | U52: 1.2 | V52: 1.3 | W52: 1.1 | X52: 0.95 | Y52: 1 | Z52: 0.18 | AA52: 0.08 | AB52: 0 | AC52: 0.18 | AD52: 0.09 | AE52: 0 | AF52: 0.03 | AG52: 0.09 | AH52: 0 | AI52: 0.12 | AJ52: 0 | AK52: 0.07 | AL52: 0 | AM52: 0.07 | AN52: 0 | AO52: 0.07 | AP52: 0 | AQ52: 0.07 | AR52: 0.36 | AS52: 0 | AT52: 0.06 | AU52: 0 | AV52: 0 | AW52: 0 | AX52: 0 | AY52: 0 | AZ52: Pas de FDES en ligne pour la solution choisie | BA52: 991 | BB52: 0.66 | BC52: 0.98 | BD52: 0.65 | BE52: 0.48 | BF52: 0.78 | BG52: 2.53 | BH52: 0.38 | BI52: 0.27 | BJ52: 0.58
A53: GGL FK04 66 Standard | B53: GGL | C53: FK04 | D53: 66 | E53: ELECTRIC | F53: Standard | G53: GGL 66 | H53: GPL 66 | I53: ok | J53: GPL | K53: 66 | L53: GPL FK04 66 Standard | M53: 66 | N53: 1.3 | O53: 1.4 | P53: 1.2 | Q53: 1.3 | R53: 1.1 | S53: 1.2 | T53: 1.1 | U53: 1.2 | V53: 1.3 | W53: 1.1 | X53: 0.95 | Y53: 1 | Z53: 0.18 | AA53: 0.08 | AB53: 0 | AC53: 0.18 | AD53: 0.09 | AE53: 0 | AF53: 0.03 | AG53: 0.09 | AH53: 0 | AI53: 0.12 | AJ53: 0 | AK53: 0.07 | AL53: 0 | AM53: 0.07 | AN53: 0 | AO53: 0.07 | AP53: 0 | AQ53: 0.07 | AR53: 0.36 | AS53: 0 | AT53: 0.06 | AU53: 0 | AV53: 0 | AW53: 0 | AX53: 0 | AY53: 0 | AZ53: Pas de FDES en ligne pour la solution choisie | BA53: 992 | BB53: 0.66 | BC53: 0.98 | BD53: 0.65 | BE53: 0.48 | BF53: 0.78 | BG53: 2.53 | BH53: 0.38 | BI53: 0.27 | BJ53: 0.58
A54: GGL FK04 70Q Standard | B54: GGL | C54: FK04 | D54: 70Q | E54: MANUAL | F54: Standard | G54: GGL 70Q | H54: GPL 70 | I54: ok | J54: GPL | K54: 70 | L54: GPL FK04 70 Standard | M54: 70 | N54: 1.5 | O54: 1.9 | P54: 1.4 | Q54: 1.7 | R54: 1.3 | S54: 1.6 | T54: 1.2 | U54: 1.5 | V54: 1.7 | W54: 1.4 | X54: 1.1 | Y54: 1.3 | Z54: 0.22 | AA54: 0.06 | AB54: 0 | AC54: 0.22 | AD54: 0.06 | AE54: 0 | AF54: 0.04 | AG54: 0.1 | AH54: 0 | AI54: 0.14 | AJ54: 0 | AK54: 0.07 | AL54: 0 | AM54: 0.07 | AN54: 0 | AO54: 0.08 | AP54: 0 | AQ54: 0.08 | AR54: 0.4 | AS54: 0 | AT54: 0.07 | AU54: 0 | AV54: 0 | AW54: 0 | AX54: 0 | AY54: 0 | AZ54: Pas de FDES en ligne pour la solution choisie | BA54: 994 | BB54: 0.66 | BC54: 0.98 | BD54: 0.65 | BE54: 0.48 | BF54: 0.78 | BG54: 2.53 | BH54: 0.38 | BI54: 0.27 | BJ54: 0.58
A55: GGL FK06 62 Standard | B55: GGL | C55: FK06 | D55: 62 | E55: MANUAL | F55: Standard | G55: GGL 62 | H55: GPL 62 | I55: ok | J55: GPL | K55: 62 | L55: GPL FK06 62 Standard | M55: 62 | N55: 1.2 | O55: 1.4 | P55: 1.1 | Q55: 1.3 | R55: 1 | S55: 1.2 | T55: 1 | U55: 1.1 | V55: 1.3 | W55: 1.1 | X55: 0.91 | Y55: 1 | Z55: 0.23 | AA55: 0.08 | AB55: 0 | AC55: 0.23 | AD55: 0.08 | AE55: 0 | AF55: 0.04 | AG55: 0.09 | AH55: 0 | AI55: 0.12 | AJ55: 0 | AK55: 0.06 | AL55: 0 | AM55: 0.06 | AN55: 0 | AO55: 0.06 | AP55: 0 | AQ55: 0.06 | AR55: 0.4 | AS55: 0 | AT55: 0.07 | AU55: 0 | AV55: 0 | AW55: 0 | AX55: 0 | AY55: 0 | AZ55: Pas de FDES en ligne pour la solution choisie | BA55: 995 | BB55: 0.66 | BC55: 1.18 | BD55: 0.78 | BE55: 0.48 | BF55: 0.98 | BG55: 2.93 | BH55: 0.47 | BI55: 0.31 | BJ55: 0.6
A56: GGL FK06 62 Standard | B56: GGL | C56: FK06 | D56: 62 | E56: ELECTRIC | F56: Standard | G56: GGL 62 | H56: GPL 62 | I56: ok | J56: GPL | K56: 62 | L56: GPL FK06 62 Standard | M56: 62 | N56: 1.2 | O56: 1.4 | P56: 1.1 | Q56: 1.3 | R56: 1 | S56: 1.2 | T56: 1 | U56: 1.1 | V56: 1.3 | W56: 1.1 | X56: 0.91 | Y56: 1 | Z56: 0.23 | AA56: 0.08 | AB56: 0 | AC56: 0.23 | AD56: 0.08 | AE56: 0 | AF56: 0.04 | AG56: 0.09 | AH56: 0 | AI56: 0.12 | AJ56: 0 | AK56: 0.06 | AL56: 0 | AM56: 0.06 | AN56: 0 | AO56: 0.06 | AP56: 0 | AQ56: 0.06 | AR56: 0.4 | AS56: 0 | AT56: 0.07 | AU56: 0 | AV56: 0 | AW56: 0 | AX56: 0 | AY56: 0 | AZ56: Pas de FDES en ligne pour la solution choisie | BA56: 996 | BB56: 0.66 | BC56: 1.18 | BD56: 0.78 | BE56: 0.48 | BF56: 0.98 | BG56: 2.93 | BH56: 0.47 | BI56: 0.31 | BJ56: 0.6
A57: GGL FK06 66 Standard | B57: GGL | C57: FK06 | D57: 66 | E57: MANUAL | F57: Standard | G57: GGL 66 | H57: GPL 66 | I57: ok | J57: GPL | K57: 66 | L57: GPL FK06 66 Standard | M57: 66 | N57: 1.2 | O57: 1.4 | P57: 1.2 | Q57: 1.3 | R57: 1.1 | S57: 1.2 | T57: 1 | U57: 1.2 | V57: 1.3 | W57: 1.1 | X57: 0.93 | Y57: 1 | Z57: 0.18 | AA57: 0.08 | AB57: 0 | AC57: 0.18 | AD57: 0.09 | AE57: 0 | AF57: 0.03 | AG57: 0.09 | AH57: 0 | AI57: 0.12 | AJ57: 0 | AK57: 0.06 | AL57: 0 | AM57: 0.06 | AN57: 0 | AO57: 0.07 | AP57: 0 | AQ57: 0.07 | AR57: 0.38 | AS57: 0 | AT57: 0.06 | AU57: 0 | AV57: 0 | AW57: 0 | AX57: 0 | AY57: 0 | AZ57: Pas de FDES en ligne pour la solution choisie | BA57: 990 | BB57: 0.66 | BC57: 1.18 | BD57: 0.78 | BE57: 0.48 | BF57: 0.98 | BG57: 2.93 | BH57: 0.47 | BI57: 0.31 | BJ57: 0.6
A58: GGL FK06 66 Standard | B58: GGL | C58: FK06 | D58: 66 | E58: ELECTRIC | F58: Standard | G58: GGL 66 | H58: GPL 66 | I58: ok | J58: GPL | K58: 66 | L58: GPL FK06 66 Standard | M58: 66 | N58: 1.2 | O58: 1.4 | P58: 1.2 | Q58: 1.3 | R58: 1.1 | S58: 1.2 | T58: 1 | U58: 1.2 | V58: 1.3 | W58: 1.1 | X58: 0.93 | Y58: 1 | Z58: 0.18 | AA58: 0.08 | AB58: 0 | AC58: 0.18 | AD58: 0.09 | AE58: 0 | AF58: 0.03 | AG58: 0.09 | AH58: 0 | AI58: 0.12 | AJ58: 0 | AK58: 0.06 | AL58: 0 | AM58: 0.06 | AN58: 0 | AO58: 0.07 | AP58: 0 | AQ58: 0.07 | AR58: 0.38 | AS58: 0 | AT58: 0.06 | AU58: 0 | AV58: 0 | AW58: 0 | AX58: 0 | AY58: 0 | AZ58: Pas de FDES en ligne pour la solution choisie | BA58: 999 | BB58: 0.66 | BC58: 1.18 | BD58: 0.78 | BE58: 0.48 | BF58: 0.98 | BG58: 2.93 | BH58: 0.47 | BI58: 0.31 | BJ58: 0.6
A59: GGL FK06 66 Standard | B59: GGL | C59: FK06 | D59: 66 | E59: SOLAR | F59: Standard | G59: GGL 66 | H59: GPL 66 | I59: ok | J59: GPL | K59: 66 | L59: GPL FK06 66 Standard | M59: 66 | N59: 1.2 | O59: 1.4 | P59: 1.2 | Q59: 1.3 | R59: 1.1 | S59: 1.2 | T59: 1 | U59: 1.2 | V59: 1.3 | W59: 1.1 | X59: 0.93 | Y59: 1 | Z59: 0.18 | AA59: 0.08 | AB59: 0 | AC59: 0.18 | AD59: 0.09 | AE59: 0 | AF59: 0.03 | AG59: 0.09 | AH59: 0 | AI59: 0.12 | AJ59: 0 | AK59: 0.06 | AL59: 0 | AM59: 0.06 | AN59: 0 | AO59: 0.07 | AP59: 0 | AQ59: 0.07 | AR59: 0.38 | AS59: 0 | AT59: 0.06 | AU59: 0 | AV59: 0 | AW59: 0 | AX59: 0 | AY59: 0 | AZ59: Pas de FDES en ligne pour la solution choisie | BA59: 997 | BB59: 0.66 | BC59: 1.18 | BD59: 0.78 | BE59: 0.48 | BF59: 0.98 | BG59: 2.93 | BH59: 0.47 | BI59: 0.31 | BJ59: 0.6
A60: GGL FK06 70Q Standard | B60: GGL | C60: FK06 | D60: 70Q | E60: MANUAL | F60: Standard | G60: GGL 70Q | H60: GPL 70 | I60: ok | J60: GPL | K60: 70 | L60: GPL FK06 70 Standard | M60: 70 | N60: 1.5 | O60: 1.9 | P60: 1.4 | Q60: 1.7 | R60: 1.3 | S60: 1.6 | T60: 1.2 | U60: 1.5 | V60: 1.7 | W60: 1.4 | X60: 1.1 | Y60: 1.3 | Z60: 0.23 | AA60: 0.06 | AB60: 0 | AC60: 0.23 | AD60: 0.06 | AE60: 0 | AF60: 0.04 | AG60: 0.1 | AH60: 0 | AI60: 0.14 | AJ60: 0 | AK60: 0.07 | AL60: 0 | AM60: 0.07 | AN60: 0 | AO60: 0.08 | AP60: 0 | AQ60: 0.08 | AR60: 0.41 | AS60: 0 | AT60: 0.07 | AU60: 0 | AV60: 0 | AW60: 0 | AX60: 0 | AY60: 0 | AZ60: Pas de FDES en ligne pour la solution choisie | BA60: 1002 | BB60: 0.66 | BC60: 1.18 | BD60: 0.78 | BE60: 0.48 | BF60: 0.98 | BG60: 2.93 | BH60: 0.47 | BI60: 0.31 | BJ60: 0.6
A61: GGL FK06 76F Standard | B61: GGL | C61: FK06 | D61: 76F | E61: MANUAL | F61: Standard | G61: GGL 76F | H61: GPL 70 | I61: ok | J61: GPL | K61: 70 | L61: GPL FK06 70 Standard | M61: 76 | N61: 1.5 | O61: 1.9 | P61: 1.4 | Q61: 1.7 | R61: 1.3 | S61: 1.6 | T61: 1.2 | U61: 1.5 | V61: 1.7 | W61: 1.4 | X61: 1.1 | Y61: 1.3 | Z61: 0.13 | AA61: 0.05 | AB61: 0 | AC61: 0.13 | AD61: 0.05 | AE61: 0 | AF61: 0.03 | AG61: 0.09 | AH61: 0 | AI61: 0.12 | AJ61: 0 | AK61: 0.07 | AL61: 0 | AM61: 0.07 | AN61: 0 | AO61: 0.08 | AP61: 0 | AQ61: 0.08 | AR61: 0.38 | AS61: 0 | AT61: 0.06 | AU61: 0 | AV61: 0 | AW61: 0 | AX61: 0 | AY61: 0 | AZ61: Pas de FDES en ligne pour la solution choisie | BA61: 1003 | BB61: 0.66 | BC61: 1.18 | BD61: 0.78 | BE61: 0.48 | BF61: 0.98 | BG61: 2.93 | BH61: 0.47 | BI61: 0.31 | BJ61: 0.6
A62: GGL FK06 70H Standard | B62: GGL | C62: FK06 | D62: 70H | E62: MANUAL | F62: Standard | G62: GGL 70H | H62: GPL 70 | I62: ok | J62: GPL | K62: 70 | L62: GPL FK06 70 Standard | M62: 70 | N62: 1.5 | O62: 1.9 | P62: 1.4 | Q62: 1.7 | R62: 1.3 | S62: 1.6 | T62: 1.2 | U62: 1.5 | V62: 1.7 | W62: 1.4 | X62: 1.1 | Y62: 1.3 | Z62: 0.23 | AA62: 0.06 | AB62: 0 | AC62: 0.23 | AD62: 0.06 | AE62: 0 | AF62: 0.04 | AG62: 0.1 | AH62: 0 | AI62: 0.14 | AJ62: 0 | AK62: 0.07 | AL62: 0 | AM62: 0.07 | AN62: 0 | AO62: 0.08 | AP62: 0 | AQ62: 0.08 | AR62: 0.41 | AS62: 0 | AT62: 0.07 | AU62: 0 | AV62: 0 | AW62: 0 | AX62: 0 | AY62: 0 | AZ62: Pas de FDES en ligne pour la solution choisie | BA62: 1004 | BB62: 0.66 | BC62: 1.18 | BD62: 0.78 | BE62: 0.48 | BF62: 0.98 | BG62: 2.93 | BH62: 0.47 | BI62: 0.31 | BJ62: 0.6
A63: GGL FK08 62 Standard | B63: GGL | C63: FK08 | D63: 62 | E63: MANUAL | F63: Standard | G63: GGL 62 | H63: GPL 62 | I63: ok | J63: GPL | K63: 62 | L63: GPL FK08 62 Standard | M63: 62 | N63: 1.2 | O63: 1.4 | P63: 1.1 | Q63: 1.3 | R63: 1 | S63: 1.2 | T63: 1 | U63: 1.1 | V63: 1.3 | W63: 1.1 | X63: 0.89 | Y63: 0.99 | Z63: 0.23 | AA63: 0.08 | AB63: 0 | AC63: 0.23 | AD63: 0.09 | AE63: 0 | AF63: 0.04 | AG63: 0.08 | AH63: 0 | AI63: 0.12 | AJ63: 0 | AK63: 0.06 | AL63: 0 | AM63: 0.06 | AN63: 0 | AO63: 0.06 | AP63: 0 | AQ63: 0.06 | AR63: 0.42 | AS63: 0 | AT63: 0.07 | AU63: 0 | AV63: 0 | AW63: 0 | AX63: 0 | AY63: 0 | AZ63: Pas de FDES en ligne pour la solution choisie | BA63: 1005 | BB63: 0.66 | BC63: 1.4 | BD63: 0.92 | BE63: 0.48 | BF63: 1.2 | BG63: 3.37 | BH63: 0.58 | BI63: 0.34 | BJ63: 0.63
A64: GGL FK08 62 Standard | B64: GGL | C64: FK08 | D64: 62 | E64: ELECTRIC | F64: Standard | G64: GGL 62 | H64: GPL 62 | I64: ok | J64: GPL | K64: 62 | L64: GPL FK08 62 Standard | M64: 62 | N64: 1.2 | O64: 1.4 | P64: 1.1 | Q64: 1.3 | R64: 1 | S64: 1.2 | T64: 1 | U64: 1.1 | V64: 1.3 | W64: 1.1 | X64: 0.89 | Y64: 0.99 | Z64: 0.23 | AA64: 0.08 | AB64: 0 | AC64: 0.23 | AD64: 0.09 | AE64: 0 | AF64: 0.04 | AG64: 0.08 | AH64: 0 | AI64: 0.12 | AJ64: 0 | AK64: 0.06 | AL64: 0 | AM64: 0.06 | AN64: 0 | AO64: 0.06 | AP64: 0 | AQ64: 0.06 | AR64: 0.42 | AS64: 0 | AT64: 0.07 | AU64: 0 | AV64: 0 | AW64: 0 | AX64: 0 | AY64: 0 | AZ64: Pas de FDES en ligne pour la solution choisie | BA64: 1006 | BB64: 0.66 | BC64: 1.4 | BD64: 0.92 | BE64: 0.48 | BF64: 1.2 | BG64: 3.37 | BH64: 0.58 | BI64: 0.34 | BJ64: 0.63
A65: GGL FK08 66 Standard | B65: GGL | C65: FK08 | D65: 66 | E65: MANUAL | F65: Standard | G65: GGL 66 | H65: GPL 66 | I65: ok | J65: GPL | K65: 66 | L65: GPL FK08 66 Standard | M65: 66 | N65: 1.2 | O65: 1.4 | P65: 1.1 | Q65: 1.3 | R65: 1.1 | S65: 1.2 | T65: 1 | U65: 1.2 | V65: 1.3 | W65: 1.1 | X65: 0.92 | Y65: 1 | Z65: 0.19 | AA65: 0.08 | AB65: 0 | AC65: 0.19 | AD65: 0.09 | AE65: 0 | AF65: 0.03 | AG65: 0.09 | AH65: 0 | AI65: 0.12 | AJ65: 0 | AK65: 0.06 | AL65: 0 | AM65: 0.06 | AN65: 0 | AO65: 0.07 | AP65: 0 | AQ65: 0.07 | AR65: 0.39 | AS65: 0 | AT65: 0.07 | AU65: 0 | AV65: 0 | AW65: 0 | AX65: 0 | AY65: 0 | AZ65: Pas de FDES en ligne pour la solution choisie | BA65: 1000 | BB65: 0.66 | BC65: 1.4 | BD65: 0.92 | BE65: 0.48 | BF65: 1.2 | BG65: 3.37 | BH65: 0.58 | BI65: 0.34 | BJ65: 0.63
A66: GGL FK08 66 Standard | B66: GGL | C66: FK08 | D66: 66 | E66: ELECTRIC | F66: Standard | G66: GGL 66 | H66: GPL 66 | I66: ok | J66: GPL | K66: 66 | L66: GPL FK08 66 Standard | M66: 66 | N66: 1.2 | O66: 1.4 | P66: 1.1 | Q66: 1.3 | R66: 1.1 | S66: 1.2 | T66: 1 | U66: 1.2 | V66: 1.3 | W66: 1.1 | X66: 0.92 | Y66: 1 | Z66: 0.19 | AA66: 0.08 | AB66: 0 | AC66: 0.19 | AD66: 0.09 | AE66: 0 | AF66: 0.03 | AG66: 0.09 | AH66: 0 | AI66: 0.12 | AJ66: 0 | AK66: 0.06 | AL66: 0 | AM66: 0.06 | AN66: 0 | AO66: 0.07 | AP66: 0 | AQ66: 0.07 | AR66: 0.39 | AS66: 0 | AT66: 0.07 | AU66: 0 | AV66: 0 | AW66: 0 | AX66: 0 | AY66: 0 | AZ66: Pas de FDES en ligne pour la solution choisie | BA66: 1009 | BB66: 0.66 | BC66: 1.4 | BD66: 0.92 | BE66: 0.48 | BF66: 1.2 | BG66: 3.37 | BH66: 0.58 | BI66: 0.34 | BJ66: 0.63
A67: GGL FK08 66 Standard | B67: GGL | C67: FK08 | D67: 66 | E67: SOLAR | F67: Standard | G67: GGL 66 | H67: GPL 66 | I67: ok | J67: GPL | K67: 66 | L67: GPL FK08 66 Standard | M67: 66 | N67: 1.2 | O67: 1.4 | P67: 1.1 | Q67: 1.3 | R67: 1.1 | S67: 1.2 | T67: 1 | U67: 1.2 | V67: 1.3 | W67: 1.1 | X67: 0.92 | Y67: 1 | Z67: 0.19 | AA67: 0.08 | AB67: 0 | AC67: 0.19 | AD67: 0.09 | AE67: 0 | AF67: 0.03 | AG67: 0.09 | AH67: 0 | AI67: 0.12 | AJ67: 0 | AK67: 0.06 | AL67: 0 | AM67: 0.06 | AN67: 0 | AO67: 0.07 | AP67: 0 | AQ67: 0.07 | AR67: 0.39 | AS67: 0 | AT67: 0.07 | AU67: 0 | AV67: 0 | AW67: 0 | AX67: 0 | AY67: 0 | AZ67: Pas de FDES en ligne pour la solution choisie | BA67: 1007 | BB67: 0.66 | BC67: 1.4 | BD67: 0.92 | BE67: 0.48 | BF67: 1.2 | BG67: 3.37 | BH67: 0.58 | BI67: 0.34 | BJ67: 0.63
A68: GGL MK04 54F Standard | B68: GGL | C68: MK04 | D68: 54F | E68: MANUAL | F68: Standard | G68: GGL 54F | H68: GPL 54F | I68: ok | J68: GPL | K68: 54F | L68: GPL MK04 54F Standard | M68: 54F | N68: 1.5 | O68: 1.9 | P68: 1.4 | Q68: 1.7 | R68: 1.3 | S68: 1.6 | T68: 1.3 | U68: 1.5 | V68: 1.7 | W68: 1.4 | X68: 1.1 | Y68: 1.3 | Z68: 0.37 | AA68: 0.05 | AB68: 0 | AC68: 0.37 | AD68: 0.05 | AE68: 0 | AF68: 0.07 | AG68: 0.09 | AH68: 0 | AI68: 0.15 | AJ68: 0 | AK68: 0.07 | AL68: 0 | AM68: 0.07 | AN68: 0 | AO68: 0.08 | AP68: 0 | AQ68: 0.08 | AR68: 0.5 | AS68: 0 | AT68: 0.09 | AU68: 0 | AV68: 0 | AW68: 0 | AX68: 0 | AY68: 0 | AZ68: https://base-inies.fr/consultation/infos-produit/42364 | BA68: 1010 | BB68: 0.78 | BC68: 0.98 | BD68: 0.76 | BE68: 0.6 | BF68: 0.78 | BG68: 2.77 | BH68: 0.47 | BI68: 0.29 | BJ68: 0.62
A69: GGL MK04 57 Standard | B69: GGL | C69: MK04 | D69: 57 | E69: ELECTRIC | F69: Standard | G69: GGL 57 | H69: GPL 70 | I69: ok | J69: GPL | K69: 70 | L69: GPL MK04 70 Standard | M69: 57 | N69: 1.5 | O69: 1.9 | P69: 1.3 | Q69: 1.7 | R69: 1.2 | S69: 1.5 | T69: 1.2 | U69: 1.5 | V69: 1.7 | W69: 1.4 | X69: 1 | Y69: 1.3 | Z69: 0.13 | AA69: 0.05 | AB69: 0 | AC69: 0.13 | AD69: 0.06 | AE69: 0 | AF69: 0.02 | AG69: 0.09 | AH69: 0 | AI69: 0.12 | AJ69: 0 | AK69: 0.07 | AL69: 0 | AM69: 0.07 | AN69: 0 | AO69: 0.08 | AP69: 0 | AQ69: 0.08 | AR69: 0.38 | AS69: 0 | AT69: 0.07 | AU69: 0 | AV69: 0 | AW69: 0 | AX69: 0 | AY69: 0 | AZ69: https://base-inies.fr/consultation/infos-produit/42364 | BA69: 1011 | BB69: 0.78 | BC69: 0.98 | BD69: 0.76 | BE69: 0.6 | BF69: 0.78 | BG69: 2.77 | BH69: 0.47 | BI69: 0.29 | BJ69: 0.62
A70: GGL MK04 57 Standard | B70: GGL | C70: MK04 | D70: 57 | E70: MANUAL | F70: Standard | G70: GGL 57 | H70: GPL 70 | I70: ok | J70: GPL | K70: 70 | L70: GPL MK04 70 Standard | M70: 57 | N70: 1.5 | O70: 1.9 | P70: 1.3 | Q70: 1.7 | R70: 1.2 | S70: 1.5 | T70: 1.2 | U70: 1.5 | V70: 1.7 | W70: 1.4 | X70: 1 | Y70: 1.3 | Z70: 0.13 | AA70: 0.05 | AB70: 0 | AC70: 0.13 | AD70: 0.06 | AE70: 0 | AF70: 0.02 | AG70: 0.09 | AH70: 0 | AI70: 0.12 | AJ70: 0 | AK70: 0.07 | AL70: 0 | AM70: 0.07 | AN70: 0 | AO70: 0.08 | AP70: 0 | AQ70: 0.08 | AR70: 0.38 | AS70: 0 | AT70: 0.07 | AU70: 0 | AV70: 0 | AW70: 0 | AX70: 0 | AY70: 0 | AZ70: https://base-inies.fr/consultation/infos-produit/42364 | BA70: 1012 | BB70: 0.78 | BC70: 0.98 | BD70: 0.76 | BE70: 0.6 | BF70: 0.78 | BG70: 2.77 | BH70: 0.47 | BI70: 0.29 | BJ70: 0.62
A71: GGL MK04 62 Standard | B71: GGL | C71: MK04 | D71: 62 | E71: MANUAL | F71: Standard | G71: GGL 62 | H71: GPL 62 | I71: ok | J71: GPL | K71: 62 | L71: GPL MK04 62 Standard | M71: 62 | N71: 1.2 | O71: 1.4 | P71: 1.1 | Q71: 1.3 | R71: 1 | S71: 1.2 | T71: 1 | U71: 1.1 | V71: 1.3 | W71: 1.1 | X71: 0.89 | Y71: 0.99 | Z71: 0.23 | AA71: 0.08 | AB71: 0 | AC71: 0.23 | AD71: 0.08 | AE71: 0 | AF71: 0.04 | AG71: 0.08 | AH71: 0 | AI71: 0.12 | AJ71: 0 | AK71: 0.06 | AL71: 0 | AM71: 0.06 | AN71: 0 | AO71: 0.06 | AP71: 0 | AQ71: 0.06 | AR71: 0.41 | AS71: 0 | AT71: 0.07 | AU71: 0 | AV71: 0 | AW71: 0 | AX71: 0 | AY71: 0 | AZ71: Pas de FDES en ligne pour la solution choisie | BA71: 1015 | BB71: 0.78 | BC71: 0.98 | BD71: 0.76 | BE71: 0.6 | BF71: 0.78 | BG71: 2.77 | BH71: 0.47 | BI71: 0.29 | BJ71: 0.62
A72: GGL MK04 62 Standard | B72: GGL | C72: MK04 | D72: 62 | E72: ELECTRIC | F72: Standard | G72: GGL 62 | H72: GPL 62 | I72: ok | J72: GPL | K72: 62 | L72: GPL MK04 62 Standard | M72: 62 | N72: 1.2 | O72: 1.4 | P72: 1.1 | Q72: 1.3 | R72: 1 | S72: 1.2 | T72: 1 | U72: 1.1 | V72: 1.3 | W72: 1.1 | X72: 0.89 | Y72: 0.99 | Z72: 0.23 | AA72: 0.08 | AB72: 0 | AC72: 0.23 | AD72: 0.08 | AE72: 0 | AF72: 0.04 | AG72: 0.08 | AH72: 0 | AI72: 0.12 | AJ72: 0 | AK72: 0.06 | AL72: 0 | AM72: 0.06 | AN72: 0 | AO72: 0.06 | AP72: 0 | AQ72: 0.06 | AR72: 0.41 | AS72: 0 | AT72: 0.07 | AU72: 0 | AV72: 0 | AW72: 0 | AX72: 0 | AY72: 0 | AZ72: Pas de FDES en ligne pour la solution choisie | BA72: 1013 | BB72: 0.78 | BC72: 0.98 | BD72: 0.76 | BE72: 0.6 | BF72: 0.78 | BG72: 2.77 | BH72: 0.47 | BI72: 0.29 | BJ72: 0.62
A73: GGL MK04 66 Standard | B73: GGL | C73: MK04 | D73: 66 | E73: MANUAL | F73: Standard | G73: GGL 66 | H73: GPL 66 | I73: ok | J73: GPL | K73: 66 | L73: GPL MK04 66 Standard | M73: 66 | N73: 1.2 | O73: 1.4 | P73: 1.1 | Q73: 1.3 | R73: 1.1 | S73: 1.2 | T73: 1 | U73: 1.2 | V73: 1.3 | W73: 1.1 | X73: 0.92 | Y73: 1 | Z73: 0.19 | AA73: 0.08 | AB73: 0 | AC73: 0.19 | AD73: 0.09 | AE73: 0 | AF73: 0.03 | AG73: 0.09 | AH73: 0 | AI73: 0.12 | AJ73: 0 | AK73: 0.06 | AL73: 0 | AM73: 0.06 | AN73: 0 | AO73: 0.07 | AP73: 0 | AQ73: 0.07 | AR73: 0.38 | AS73: 0 | AT73: 0.07 | AU73: 0 | AV73: 0 | AW73: 0 | AX73: 0 | AY73: 0 | AZ73: Pas de FDES en ligne pour la solution choisie | BA73: 1014 | BB73: 0.78 | BC73: 0.98 | BD73: 0.76 | BE73: 0.6 | BF73: 0.78 | BG73: 2.77 | BH73: 0.47 | BI73: 0.29 | BJ73: 0.62
A74: GGL MK04 66 Standard | B74: GGL | C74: MK04 | D74: 66 | E74: ELECTRIC | F74: Standard | G74: GGL 66 | H74: GPL 66 | I74: ok | J74: GPL | K74: 66 | L74: GPL MK04 66 Standard | M74: 66 | N74: 1.2 | O74: 1.4 | P74: 1.1 | Q74: 1.3 | R74: 1.1 | S74: 1.2 | T74: 1 | U74: 1.2 | V74: 1.3 | W74: 1.1 | X74: 0.92 | Y74: 1 | Z74: 0.19 | AA74: 0.08 | AB74: 0 | AC74: 0.19 | AD74: 0.09 | AE74: 0 | AF74: 0.03 | AG74: 0.09 | AH74: 0 | AI74: 0.12 | AJ74: 0 | AK74: 0.06 | AL74: 0 | AM74: 0.06 | AN74: 0 | AO74: 0.07 | AP74: 0 | AQ74: 0.07 | AR74: 0.38 | AS74: 0 | AT74: 0.07 | AU74: 0 | AV74: 0 | AW74: 0 | AX74: 0 | AY74: 0 | AZ74: Pas de FDES en ligne pour la solution choisie | BA74: 1016 | BB74: 0.78 | BC74: 0.98 | BD74: 0.76 | BE74: 0.6 | BF74: 0.78 | BG74: 2.77 | BH74: 0.47 | BI74: 0.29 | BJ74: 0.62
A75: GGL MK04 66 Standard | B75: GGL | C75: MK04 | D75: 66 | E75: SOLAR | F75: Standard | G75: GGL 66 | H75: GPL 66 | I75: ok | J75: GPL | K75: 66 | L75: GPL MK04 66 Standard | M75: 66 | N75: 1.2 | O75: 1.4 | P75: 1.1 | Q75: 1.3 | R75: 1.1 | S75: 1.2 | T75: 1 | U75: 1.2 | V75: 1.3 | W75: 1.1 | X75: 0.92 | Y75: 1 | Z75: 0.19 | AA75: 0.08 | AB75: 0 | AC75: 0.19 | AD75: 0.09 | AE75: 0 | AF75: 0.03 | AG75: 0.09 | AH75: 0 | AI75: 0.12 | AJ75: 0 | AK75: 0.06 | AL75: 0 | AM75: 0.06 | AN75: 0 | AO75: 0.07 | AP75: 0 | AQ75: 0.07 | AR75: 0.38 | AS75: 0 | AT75: 0.07 | AU75: 0 | AV75: 0 | AW75: 0 | AX75: 0 | AY75: 0 | AZ75: Pas de FDES en ligne pour la solution choisie | BA75: 1017 | BB75: 0.78 | BC75: 0.98 | BD75: 0.76 | BE75: 0.6 | BF75: 0.78 | BG75: 2.77 | BH75: 0.47 | BI75: 0.29 | BJ75: 0.62
A76: GGL MK04 70 Standard | B76: GGL | C76: MK04 | D76: 70 | E76: MANUAL | F76: Standard | G76: GGL 70 | H76: GPL 70 | I76: ok | J76: GPL | K76: 70 | L76: GPL MK04 70 Standard | M76: 70 | N76: 1.5 | O76: 1.9 | P76: 1.3 | Q76: 1.7 | R76: 1.2 | S76: 1.5 | T76: 1.2 | U76: 1.5 | V76: 1.7 | W76: 1.4 | X76: 1 | Y76: 1.3 | Z76: 0.24 | AA76: 0.06 | AB76: 0 | AC76: 0.24 | AD76: 0.06 | AE76: 0 | AF76: 0.04 | AG76: 0.09 | AH76: 0 | AI76: 0.14 | AJ76: 0 | AK76: 0.07 | AL76: 0 | AM76: 0.07 | AN76: 0 | AO76: 0.08 | AP76: 0 | AQ76: 0.08 | AR76: 0.42 | AS76: 0 | AT76: 0.07 | AU76: 0 | AV76: 0 | AW76: 0 | AX76: 0 | AY76: 0 | AZ76: Pas de FDES en ligne pour la solution choisie | BA76: 1022 | BB76: 0.78 | BC76: 0.98 | BD76: 0.76 | BE76: 0.6 | BF76: 0.78 | BG76: 2.77 | BH76: 0.47 | BI76: 0.29 | BJ76: 0.62
A77: GGL MK04 70 Standard | B77: GGL | C77: MK04 | D77: 70 | E77: MANUALBOTTOM | F77: Standard | G77: GGL 70 | H77: GPL 70 | I77: ok | J77: GPL | K77: 70 | L77: GPL MK04 70 Standard | M77: 70 | N77: 1.5 | O77: 1.9 | P77: 1.3 | Q77: 1.7 | R77: 1.2 | S77: 1.5 | T77: 1.2 | U77: 1.5 | V77: 1.7 | W77: 1.4 | X77: 1 | Y77: 1.3 | Z77: 0.24 | AA77: 0.06 | AB77: 0 | AC77: 0.24 | AD77: 0.06 | AE77: 0 | AF77: 0.04 | AG77: 0.09 | AH77: 0 | AI77: 0.14 | AJ77: 0 | AK77: 0.07 | AL77: 0 | AM77: 0.07 | AN77: 0 | AO77: 0.08 | AP77: 0 | AQ77: 0.08 | AR77: 0.42 | AS77: 0 | AT77: 0.07 | AU77: 0 | AV77: 0 | AW77: 0 | AX77: 0 | AY77: 0 | AZ77: Pas de FDES en ligne pour la solution choisie | BA77: 1023 | BB77: 0.78 | BC77: 0.98 | BD77: 0.76 | BE77: 0.6 | BF77: 0.78 | BG77: 2.77 | BH77: 0.47 | BI77: 0.29 | BJ77: 0.62
A78: GGL MK04 70Q Standard | B78: GGL | C78: MK04 | D78: 70Q | E78: MANUAL | F78: Standard | G78: GGL 70Q | H78: GPL 70 | I78: ok | J78: GPL | K78: 70 | L78: GPL MK04 70 Standard | M78: 70 | N78: 1.5 | O78: 1.9 | P78: 1.3 | Q78: 1.7 | R78: 1.2 | S78: 1.5 | T78: 1.2 | U78: 1.5 | V78: 1.7 | W78: 1.4 | X78: 1 | Y78: 1.3 | Z78: 0.24 | AA78: 0.06 | AB78: 0 | AC78: 0.24 | AD78: 0.06 | AE78: 0 | AF78: 0.04 | AG78: 0.09 | AH78: 0 | AI78: 0.14 | AJ78: 0 | AK78: 0.07 | AL78: 0 | AM78: 0.07 | AN78: 0 | AO78: 0.08 | AP78: 0 | AQ78: 0.08 | AR78: 0.42 | AS78: 0 | AT78: 0.07 | AU78: 0 | AV78: 0 | AW78: 0 | AX78: 0 | AY78: 0 | AZ78: Pas de FDES en ligne pour la solution choisie | BA78: 1024 | BB78: 0.78 | BC78: 0.98 | BD78: 0.76 | BE78: 0.6 | BF78: 0.78 | BG78: 2.77 | BH78: 0.47 | BI78: 0.29 | BJ78: 0.62
A79: GGL MK04 76F Standard | B79: GGL | C79: MK04 | D79: 76F | E79: ELECTRIC | F79: Standard | G79: GGL 76F | H79: GPL 70 | I79: ok | J79: GPL | K79: 70 | L79: GPL MK04 70 Standard | M79: 76 | N79: 1.5 | O79: 1.9 | P79: 1.3 | Q79: 1.7 | R79: 1.2 | S79: 1.5 | T79: 1.2 | U79: 1.5 | V79: 1.7 | W79: 1.4 | X79: 1 | Y79: 1.3 | Z79: 0.14 | AA79: 0.05 | AB79: 0 | AC79: 0.14 | AD79: 0.05 | AE79: 0 | AF79: 0.03 | AG79: 0.09 | AH79: 0 | AI79: 0.12 | AJ79: 0 | AK79: 0.07 | AL79: 0 | AM79: 0.07 | AN79: 0 | AO79: 0.08 | AP79: 0 | AQ79: 0.08 | AR79: 0.38 | AS79: 0 | AT79: 0.07 | AU79: 0 | AV79: 0 | AW79: 0 | AX79: 0 | AY79: 0 | AZ79: https://base-inies.fr/consultation/infos-produit/42364 | BA79: 1025 | BB79: 0.78 | BC79: 0.98 | BD79: 0.76 | BE79: 0.6 | BF79: 0.78 | BG79: 2.77 | BH79: 0.47 | BI79: 0.29 | BJ79: 0.62
A80: GGL MK04 76F Standard | B80: GGL | C80: MK04 | D80: 76F | E80: MANUAL | F80: Standard | G80: GGL 76F | H80: GPL 70 | I80: ok | J80: GPL | K80: 70 | L80: GPL MK04 70 Standard | M80: 76 | N80: 1.5 | O80: 1.9 | P80: 1.3 | Q80: 1.7 | R80: 1.2 | S80: 1.5 | T80: 1.2 | U80: 1.5 | V80: 1.7 | W80: 1.4 | X80: 1 | Y80: 1.3 | Z80: 0.14 | AA80: 0.05 | AB80: 0 | AC80: 0.14 | AD80: 0.05 | AE80: 0 | AF80: 0.03 | AG80: 0.09 | AH80: 0 | AI80: 0.12 | AJ80: 0 | AK80: 0.07 | AL80: 0 | AM80: 0.07 | AN80: 0 | AO80: 0.08 | AP80: 0 | AQ80: 0.08 | AR80: 0.38 | AS80: 0 | AT80: 0.07 | AU80: 0 | AV80: 0 | AW80: 0 | AX80: 0 | AY80: 0 | AZ80: https://base-inies.fr/consultation/infos-produit/42364 | BA80: 1026 | BB80: 0.78 | BC80: 0.98 | BD80: 0.76 | BE80: 0.6 | BF80: 0.78 | BG80: 2.77 | BH80: 0.47 | BI80: 0.29 | BJ80: 0.62
A81: GGL MK04 76F Standard | B81: GGL | C81: MK04 | D81: 76F | E81: SOLAR | F81: Standard | G81: GGL 76F | H81: GPL 70 | I81: ok | J81: GPL | K81: 70 | L81: GPL MK04 70 Standard | M81: 76 | N81: 1.5 | O81: 1.9 | P81: 1.3 | Q81: 1.7 | R81: 1.2 | S81: 1.5 | T81: 1.2 | U81: 1.5 | V81: 1.7 | W81: 1.4 | X81: 1 | Y81: 1.3 | Z81: 0.14 | AA81: 0.05 | AB81: 0 | AC81: 0.14 | AD81: 0.05 | AE81: 0 | AF81: 0.03 | AG81: 0.09 | AH81: 0 | AI81: 0.12 | AJ81: 0 | AK81: 0.07 | AL81: 0 | AM81: 0.07 | AN81: 0 | AO81: 0.08 | AP81: 0 | AQ81: 0.08 | AR81: 0.38 | AS81: 0 | AT81: 0.07 | AU81: 0 | AV81: 0 | AW81: 0 | AX81: 0 | AY81: 0 | AZ81: https://base-inies.fr/consultation/infos-produit/42364 | BA81: 1027 | BB81: 0.78 | BC81: 0.98 | BD81: 0.76 | BE81: 0.6 | BF81: 0.78 | BG81: 2.77 | BH81: 0.47 | BI81: 0.29 | BJ81: 0.62
A82: GGL MK04 57 Standard | B82: GGL | C82: MK04 | D82: 57 | E82: SOLAR | F82: Standard | G82: GGL 57 | H82: GPL 70 | I82: ok | J82: GPL | K82: 70 | L82: GPL MK04 70 Standard | M82: 57 | N82: 1.5 | O82: 1.9 | P82: 1.3 | Q82: 1.7 | R82: 1.2 | S82: 1.5 | T82: 1.2 | U82: 1.5 | V82: 1.7 | W82: 1.4 | X82: 1 | Y82: 1.3 | Z82: 0.13 | AA82: 0.05 | AB82: 0 | AC82: 0.13 | AD82: 0.06 | AE82: 0 | AF82: 0.02 | AG82: 0.09 | AH82: 0 | AI82: 0.12 | AJ82: 0 | AK82: 0.07 | AL82: 0 | AM82: 0.07 | AN82: 0 | AO82: 0.08 | AP82: 0 | AQ82: 0.08 | AR82: 0.38 | AS82: 0 | AT82: 0.07 | AU82: 0 | AV82: 0 | AW82: 0 | AX82: 0 | AY82: 0 | AZ82: https://base-inies.fr/consultation/infos-produit/42364 | BA82: 1028 | BB82: 0.78 | BC82: 0.98 | BD82: 0.76 | BE82: 0.6 | BF82: 0.78 | BG82: 2.77 | BH82: 0.47 | BI82: 0.29 | BJ82: 0.62
A83: GGL MK06 54F Standard | B83: GGL | C83: MK06 | D83: 54F | E83: MANUAL | F83: Standard | G83: GGL 54F | H83: GPL 54F | I83: ok | J83: GPL | K83: 54F | L83: GPL MK06 54F Standard | M83: 54F | N83: 1.5 | O83: 1.9 | P83: 1.4 | Q83: 1.7 | R83: 1.3 | S83: 1.5 | T83: 1.2 | U83: 1.5 | V83: 1.7 | W83: 1.4 | X83: 1.1 | Y83: 1.3 | Z83: 0.38 | AA83: 0.05 | AB83: 0 | AC83: 0.38 | AD83: 0.05 | AE83: 0 | AF83: 0.07 | AG83: 0.09 | AH83: 0 | AI83: 0.15 | AJ83: 0 | AK83: 0.07 | AL83: 0 | AM83: 0.07 | AN83: 0 | AO83: 0.08 | AP83: 0 | AQ83: 0.08 | AR83: 0.52 | AS83: 0 | AT83: 0.09 | AU83: 0 | AV83: 0 | AW83: 0 | AX83: 0 | AY83: 0 | AZ83: https://base-inies.fr/consultation/infos-produit/42364 | BA83: 1029 | BB83: 0.78 | BC83: 1.18 | BD83: 0.92 | BE83: 0.6 | BF83: 0.98 | BG83: 3.17 | BH83: 0.59 | BI83: 0.33 | BJ83: 0.64
A84: GGL MK06 57 Standard | B84: GGL | C84: MK06 | D84: 57 | E84: ELECTRIC | F84: Standard | G84: GGL 57 | H84: GPL 70 | I84: ok | J84: GPL | K84: 70 | L84: GPL MK06 70 Standard | M84: 57 | N84: 1.4 | O84: 1.9 | P84: 1.3 | Q84: 1.7 | R84: 1.2 | S84: 1.5 | T84: 1.2 | U84: 1.5 | V84: 1.7 | W84: 1.4 | X84: 1 | Y84: 1.3 | Z84: 0.14 | AA84: 0.05 | AB84: 0 | AC84: 0.14 | AD84: 0.06 | AE84: 0 | AF84: 0.03 | AG84: 0.09 | AH84: 0 | AI84: 0.12 | AJ84: 0 | AK84: 0.07 | AL84: 0 | AM84: 0.07 | AN84: 0 | AO84: 0.08 | AP84: 0 | AQ84: 0.08 | AR84: 0.39 | AS84: 0 | AT84: 0.07 | AU84: 0 | AV84: 0 | AW84: 0 | AX84: 0 | AY84: 0 | AZ84: https://base-inies.fr/consultation/infos-produit/42364 | BA84: 1030 | BB84: 0.78 | BC84: 1.18 | BD84: 0.92 | BE84: 0.6 | BF84: 0.98 | BG84: 3.17 | BH84: 0.59 | BI84: 0.33 | BJ84: 0.64
A85: GGL MK06 57 Standard | B85: GGL | C85: MK06 | D85: 57 | E85: MANUAL | F85: Standard | G85: GGL 57 | H85: GPL 70 | I85: ok | J85: GPL | K85: 70 | L85: GPL MK06 70 Standard | M85: 57 | N85: 1.4 | O85: 1.9 | P85: 1.3 | Q85: 1.7 | R85: 1.2 | S85: 1.5 | T85: 1.2 | U85: 1.5 | V85: 1.7 | W85: 1.4 | X85: 1 | Y85: 1.3 | Z85: 0.14 | AA85: 0.05 | AB85: 0 | AC85: 0.14 | AD85: 0.06 | AE85: 0 | AF85: 0.03 | AG85: 0.09 | AH85: 0 | AI85: 0.12 | AJ85: 0 | AK85: 0.07 | AL85: 0 | AM85: 0.07 | AN85: 0 | AO85: 0.08 | AP85: 0 | AQ85: 0.08 | AR85: 0.39 | AS85: 0 | AT85: 0.07 | AU85: 0 | AV85: 0 | AW85: 0 | AX85: 0 | AY85: 0 | AZ85: https://base-inies.fr/consultation/infos-produit/42364 | BA85: 1031 | BB85: 0.78 | BC85: 1.18 | BD85: 0.92 | BE85: 0.6 | BF85: 0.98 | BG85: 3.17 | BH85: 0.59 | BI85: 0.33 | BJ85: 0.64
A86: GGL MK06 62 Standard | B86: GGL | C86: MK06 | D86: 62 | E86: MANUAL | F86: Standard | G86: GGL 62 | H86: GPL 62 | I86: ok | J86: GPL | K86: 62 | L86: GPL MK06 62 Standard | M86: 62 | N86: 1.1 | O86: 1.3 | P86: 1.1 | Q86: 1.2 | R86: 1 | S86: 1.1 | T86: 0.97 | U86: 1.1 | V86: 1.2 | W86: 1 | X86: 0.87 | Y86: 0.98 | Z86: 0.24 | AA86: 0.08 | AB86: 0 | AC86: 0.24 | AD86: 0.09 | AE86: 0 | AF86: 0.04 | AG86: 0.08 | AH86: 0 | AI86: 0.12 | AJ86: 0 | AK86: 0.06 | AL86: 0 | AM86: 0.06 | AN86: 0 | AO86: 0.06 | AP86: 0 | AQ86: 0.06 | AR86: 0.43 | AS86: 0 | AT86: 0.07 | AU86: 0 | AV86: 0 | AW86: 0 | AX86: 0 | AY86: 0 | AZ86: Pas de FDES en ligne pour la solution choisie | BA86: 1032 | BB86: 0.78 | BC86: 1.18 | BD86: 0.92 | BE86: 0.6 | BF86: 0.98 | BG86: 3.17 | BH86: 0.59 | BI86: 0.33 | BJ86: 0.64
A87: GGL MK06 62 Standard | B87: GGL | C87: MK06 | D87: 62 | E87: ELECTRIC | F87: Standard | G87: GGL 62 | H87: GPL 62 | I87: ok | J87: GPL | K87: 62 | L87: GPL MK06 62 Standard | M87: 62 | N87: 1.1 | O87: 1.3 | P87: 1.1 | Q87: 1.2 | R87: 1 | S87: 1.1 | T87: 0.97 | U87: 1.1 | V87: 1.2 | W87: 1 | X87: 0.87 | Y87: 0.98 | Z87: 0.24 | AA87: 0.08 | AB87: 0 | AC87: 0.24 | AD87: 0.09 | AE87: 0 | AF87: 0.04 | AG87: 0.08 | AH87: 0 | AI87: 0.12 | AJ87: 0 | AK87: 0.06 | AL87: 0 | AM87: 0.06 | AN87: 0 | AO87: 0.06 | AP87: 0 | AQ87: 0.06 | AR87: 0.43 | AS87: 0 | AT87: 0.07 | AU87: 0 | AV87: 0 | AW87: 0 | AX87: 0 | AY87: 0 | AZ87: Pas de FDES en ligne pour la solution choisie | BA87: 1033 | BB87: 0.78 | BC87: 1.18 | BD87: 0.92 | BE87: 0.6 | BF87: 0.98 | BG87: 3.17 | BH87: 0.59 | BI87: 0.33 | BJ87: 0.64
A88: GGL MK06 66 Standard | B88: GGL | C88: MK06 | D88: 66 | E88: MANUAL | F88: Standard | G88: GGL 66 | H88: GPL 66 | I88: ok | J88: GPL | K88: 66 | L88: GPL MK06 66 Standard | M88: 66 | N88: 1.2 | O88: 1.4 | P88: 1.1 | Q88: 1.3 | R88: 1 | S88: 1.2 | T88: 1 | U88: 1.1 | V88: 1.3 | W88: 1.1 | X88: 0.9 | Y88: 1 | Z88: 0.19 | AA88: 0.08 | AB88: 0 | AC88: 0.19 | AD88: 0.09 | AE88: 0 | AF88: 0.03 | AG88: 0.09 | AH88: 0 | AI88: 0.12 | AJ88: 0 | AK88: 0.06 | AL88: 0 | AM88: 0.06 | AN88: 0 | AO88: 0.06 | AP88: 0 | AQ88: 0.06 | AR88: 0.4 | AS88: 0 | AT88: 0.07 | AU88: 0 | AV88: 0 | AW88: 0 | AX88: 0 | AY88: 0 | AZ88: Pas de FDES en ligne pour la solution choisie | BA88: 1034 | BB88: 0.78 | BC88: 1.18 | BD88: 0.92 | BE88: 0.6 | BF88: 0.98 | BG88: 3.17 | BH88: 0.59 | BI88: 0.33 | BJ88: 0.64
A89: GGL MK06 66 Standard | B89: GGL | C89: MK06 | D89: 66 | E89: ELECTRIC | F89: Standard | G89: GGL 66 | H89: GPL 66 | I89: ok | J89: GPL | K89: 66 | L89: GPL MK06 66 Standard | M89: 66 | N89: 1.2 | O89: 1.4 | P89: 1.1 | Q89: 1.3 | R89: 1 | S89: 1.2 | T89: 1 | U89: 1.1 | V89: 1.3 | W89: 1.1 | X89: 0.9 | Y89: 1 | Z89: 0.19 | AA89: 0.08 | AB89: 0 | AC89: 0.19 | AD89: 0.09 | AE89: 0 | AF89: 0.03 | AG89: 0.09 | AH89: 0 | AI89: 0.12 | AJ89: 0 | AK89: 0.06 | AL89: 0 | AM89: 0.06 | AN89: 0 | AO89: 0.06 | AP89: 0 | AQ89: 0.06 | AR89: 0.4 | AS89: 0 | AT89: 0.07 | AU89: 0 | AV89: 0 | AW89: 0 | AX89: 0 | AY89: 0 | AZ89: Pas de FDES en ligne pour la solution choisie | BA89: 1035 | BB89: 0.78 | BC89: 1.18 | BD89: 0.92 | BE89: 0.6 | BF89: 0.98 | BG89: 3.17 | BH89: 0.59 | BI89: 0.33 | BJ89: 0.64
A90: GGL MK06 66 Standard | B90: GGL | C90: MK06 | D90: 66 | E90: SOLAR | F90: Standard | G90: GGL 66 | H90: GPL 66 | I90: ok | J90: GPL | K90: 66 | L90: GPL MK06 66 Standard | M90: 66 | N90: 1.2 | O90: 1.4 | P90: 1.1 | Q90: 1.3 | R90: 1 | S90: 1.2 | T90: 1 | U90: 1.1 | V90: 1.3 | W90: 1.1 | X90: 0.9 | Y90: 1 | Z90: 0.19 | AA90: 0.08 | AB90: 0 | AC90: 0.19 | AD90: 0.09 | AE90: 0 | AF90: 0.03 | AG90: 0.09 | AH90: 0 | AI90: 0.12 | AJ90: 0 | AK90: 0.06 | AL90: 0 | AM90: 0.06 | AN90: 0 | AO90: 0.06 | AP90: 0 | AQ90: 0.06 | AR90: 0.4 | AS90: 0 | AT90: 0.07 | AU90: 0 | AV90: 0 | AW90: 0 | AX90: 0 | AY90: 0 | AZ90: Pas de FDES en ligne pour la solution choisie | BA90: 1036 | BB90: 0.78 | BC90: 1.18 | BD90: 0.92 | BE90: 0.6 | BF90: 0.98 | BG90: 3.17 | BH90: 0.59 | BI90: 0.33 | BJ90: 0.64
A91: GGL MK06 70 Standard | B91: GGL | C91: MK06 | D91: 70 | E91: MANUAL | F91: Standard | G91: GGL 70 | H91: GPL 70 | I91: ok | J91: GPL | K91: 70 | L91: GPL MK06 70 Standard | M91: 70 | N91: 1.4 | O91: 1.9 | P91: 1.3 | Q91: 1.7 | R91: 1.2 | S91: 1.5 | T91: 1.2 | U91: 1.5 | V91: 1.7 | W91: 1.4 | X91: 1 | Y91: 1.3 | Z91: 0.24 | AA91: 0.06 | AB91: 0 | AC91: 0.24 | AD91: 0.06 | AE91: 0 | AF91: 0.05 | AG91: 0.09 | AH91: 0 | AI91: 0.14 | AJ91: 0 | AK91: 0.07 | AL91: 0 | AM91: 0.07 | AN91: 0 | AO91: 0.08 | AP91: 0 | AQ91: 0.08 | AR91: 0.44 | AS91: 0 | AT91: 0.08 | AU91: 0 | AV91: 0 | AW91: 0 | AX91: 0 | AY91: 0 | AZ91: Pas de FDES en ligne pour la solution choisie | BA91: 1041 | BB91: 0.78 | BC91: 1.18 | BD91: 0.92 | BE91: 0.6 | BF91: 0.98 | BG91: 3.17 | BH91: 0.59 | BI91: 0.33 | BJ91: 0.64
A92: GGL MK06 70 Standard | B92: GGL | C92: MK06 | D92: 70 | E92: MANUALBOTTOM | F92: Standard | G92: GGL 70 | H92: GPL 70 | I92: ok | J92: GPL | K92: 70 | L92: GPL MK06 70 Standard | M92: 70 | N92: 1.4 | O92: 1.9 | P92: 1.3 | Q92: 1.7 | R92: 1.2 | S92: 1.5 | T92: 1.2 | U92: 1.5 | V92: 1.7 | W92: 1.4 | X92: 1 | Y92: 1.3 | Z92: 0.24 | AA92: 0.06 | AB92: 0 | AC92: 0.24 | AD92: 0.06 | AE92: 0 | AF92: 0.05 | AG92: 0.09 | AH92: 0 | AI92: 0.14 | AJ92: 0 | AK92: 0.07 | AL92: 0 | AM92: 0.07 | AN92: 0 | AO92: 0.08 | AP92: 0 | AQ92: 0.08 | AR92: 0.44 | AS92: 0 | AT92: 0.08 | AU92: 0 | AV92: 0 | AW92: 0 | AX92: 0 | AY92: 0 | AZ92: Pas de FDES en ligne pour la solution choisie | BA92: 1042 | BB92: 0.78 | BC92: 1.18 | BD92: 0.92 | BE92: 0.6 | BF92: 0.98 | BG92: 3.17 | BH92: 0.59 | BI92: 0.33 | BJ92: 0.64
A93: GGL MK06 70Q Standard | B93: GGL | C93: MK06 | D93: 70Q | E93: MANUAL | F93: Standard | G93: GGL 70Q | H93: GPL 70 | I93: ok | J93: GPL | K93: 70 | L93: GPL MK06 70 Standard | M93: 70 | N93: 1.4 | O93: 1.9 | P93: 1.3 | Q93: 1.7 | R93: 1.2 | S93: 1.5 | T93: 1.2 | U93: 1.5 | V93: 1.7 | W93: 1.4 | X93: 1 | Y93: 1.3 | Z93: 0.24 | AA93: 0.06 | AB93: 0 | AC93: 0.24 | AD93: 0.06 | AE93: 0 | AF93: 0.05 | AG93: 0.09 | AH93: 0 | AI93: 0.14 | AJ93: 0 | AK93: 0.07 | AL93: 0 | AM93: 0.07 | AN93: 0 | AO93: 0.08 | AP93: 0 | AQ93: 0.08 | AR93: 0.44 | AS93: 0 | AT93: 0.08 | AU93: 0 | AV93: 0 | AW93: 0 | AX93: 0 | AY93: 0 | AZ93: Pas de FDES en ligne pour la solution choisie | BA93: 1043 | BB93: 0.78 | BC93: 1.18 | BD93: 0.92 | BE93: 0.6 | BF93: 0.98 | BG93: 3.17 | BH93: 0.59 | BI93: 0.33 | BJ93: 0.64
A94: GGL MK06 76F Standard | B94: GGL | C94: MK06 | D94: 76F | E94: MANUAL | F94: Standard | G94: GGL 76F | H94: GPL 70 | I94: ok | J94: GPL | K94: 70 | L94: GPL MK06 70 Standard | M94: 76 | N94: 1.4 | O94: 1.9 | P94: 1.3 | Q94: 1.7 | R94: 1.2 | S94: 1.5 | T94: 1.2 | U94: 1.5 | V94: 1.7 | W94: 1.4 | X94: 1 | Y94: 1.3 | Z94: 0.14 | AA94: 0.05 | AB94: 0 | AC94: 0.14 | AD94: 0.05 | AE94: 0 | AF94: 0.03 | AG94: 0.09 | AH94: 0 | AI94: 0.12 | AJ94: 0 | AK94: 0.07 | AL94: 0 | AM94: 0.07 | AN94: 0 | AO94: 0.08 | AP94: 0 | AQ94: 0.08 | AR94: 0.4 | AS94: 0 | AT94: 0.07 | AU94: 0 | AV94: 0 | AW94: 0 | AX94: 0 | AY94: 0 | AZ94: https://base-inies.fr/consultation/infos-produit/42364 | BA94: 1044 | BB94: 0.78 | BC94: 1.18 | BD94: 0.92 | BE94: 0.6 | BF94: 0.98 | BG94: 3.17 | BH94: 0.59 | BI94: 0.33 | BJ94: 0.64
A95: GGL MK06 76F Standard | B95: GGL | C95: MK06 | D95: 76F | E95: SOLAR | F95: Standard | G95: GGL 76F | H95: GPL 70 | I95: ok | J95: GPL | K95: 70 | L95: GPL MK06 70 Standard | M95: 76 | N95: 1.4 | O95: 1.9 | P95: 1.3 | Q95: 1.7 | R95: 1.2 | S95: 1.5 | T95: 1.2 | U95: 1.5 | V95: 1.7 | W95: 1.4 | X95: 1 | Y95: 1.3 | Z95: 0.14 | AA95: 0.05 | AB95: 0 | AC95: 0.14 | AD95: 0.05 | AE95: 0 | AF95: 0.03 | AG95: 0.09 | AH95: 0 | AI95: 0.12 | AJ95: 0 | AK95: 0.07 | AL95: 0 | AM95: 0.07 | AN95: 0 | AO95: 0.08 | AP95: 0 | AQ95: 0.08 | AR95: 0.4 | AS95: 0 | AT95: 0.07 | AU95: 0 | AV95: 0 | AW95: 0 | AX95: 0 | AY95: 0 | AZ95: https://base-inies.fr/consultation/infos-produit/42364 | BA95: 1045 | BB95: 0.78 | BC95: 1.18 | BD95: 0.92 | BE95: 0.6 | BF95: 0.98 | BG95: 3.17 | BH95: 0.59 | BI95: 0.33 | BJ95: 0.64
A96: GGL MK06 70H Standard | B96: GGL | C96: MK06 | D96: 70H | E96: MANUAL | F96: Standard | G96: GGL 70H | H96: GPL 70 | I96: ok | J96: GPL | K96: 70 | L96: GPL MK06 70 Standard | M96: 70 | N96: 1.4 | O96: 1.9 | P96: 1.3 | Q96: 1.7 | R96: 1.2 | S96: 1.5 | T96: 1.2 | U96: 1.5 | V96: 1.7 | W96: 1.4 | X96: 1 | Y96: 1.3 | Z96: 0.24 | AA96: 0.06 | AB96: 0 | AC96: 0.24 | AD96: 0.06 | AE96: 0 | AF96: 0.05 | AG96: 0.09 | AH96: 0 | AI96: 0.14 | AJ96: 0 | AK96: 0.07 | AL96: 0 | AM96: 0.07 | AN96: 0 | AO96: 0.08 | AP96: 0 | AQ96: 0.08 | AR96: 0.44 | AS96: 0 | AT96: 0.08 | AU96: 0 | AV96: 0 | AW96: 0 | AX96: 0 | AY96: 0 | AZ96: Pas de FDES en ligne pour la solution choisie | BA96: 1046 | BB96: 0.78 | BC96: 1.18 | BD96: 0.92 | BE96: 0.6 | BF96: 0.98 | BG96: 3.17 | BH96: 0.59 | BI96: 0.33 | BJ96: 0.64
A97: GGL MK06 57 Standard | B97: GGL | C97: MK06 | D97: 57 | E97: SOLAR | F97: Standard | G97: GGL 57 | H97: GPL 70 | I97: ok | J97: GPL | K97: 70 | L97: GPL MK06 70 Standard | M97: 57 | N97: 1.4 | O97: 1.9 | P97: 1.3 | Q97: 1.7 | R97: 1.2 | S97: 1.5 | T97: 1.2 | U97: 1.5 | V97: 1.7 | W97: 1.4 | X97: 1 | Y97: 1.3 | Z97: 0.14 | AA97: 0.05 | AB97: 0 | AC97: 0.14 | AD97: 0.06 | AE97: 0 | AF97: 0.03 | AG97: 0.09 | AH97: 0 | AI97: 0.12 | AJ97: 0 | AK97: 0.07 | AL97: 0 | AM97: 0.07 | AN97: 0 | AO97: 0.08 | AP97: 0 | AQ97: 0.08 | AR97: 0.39 | AS97: 0 | AT97: 0.07 | AU97: 0 | AV97: 0 | AW97: 0 | AX97: 0 | AY97: 0 | AZ97: https://base-inies.fr/consultation/infos-produit/42364 | BA97: 1047 | BB97: 0.78 | BC97: 1.18 | BD97: 0.92 | BE97: 0.6 | BF97: 0.98 | BG97: 3.17 | BH97: 0.59 | BI97: 0.33 | BJ97: 0.64
A98: GGL MK08 54F Standard | B98: GGL | C98: MK08 | D98: 54F | E98: MANUAL | F98: Standard | G98: GGL 54F | H98: GPL 54F | I98: ok | J98: GPL | K98: 54F | L98: GPL MK08 54F Standard | M98: 54F | N98: 1.5 | O98: 1.9 | P98: 1.4 | Q98: 1.7 | R98: 1.3 | S98: 1.5 | T98: 1.2 | U98: 1.5 | V98: 1.7 | W98: 1.4 | X98: 1.1 | Y98: 1.3 | Z98: 0.38 | AA98: 0.05 | AB98: 0 | AC98: 0.38 | AD98: 0.05 | AE98: 0 | AF98: 0.07 | AG98: 0.08 | AH98: 0 | AI98: 0.15 | AJ98: 0 | AK98: 0.07 | AL98: 0 | AM98: 0.07 | AN98: 0 | AO98: 0.08 | AP98: 0 | AQ98: 0.08 | AR98: 0.54 | AS98: 0 | AT98: 0.09 | AU98: 0 | AV98: 0 | AW98: 0 | AX98: 0 | AY98: 0 | AZ98: https://base-inies.fr/consultation/infos-produit/42364 | BA98: 1048 | BB98: 0.78 | BC98: 1.4 | BD98: 1.09 | BE98: 0.6 | BF98: 1.2 | BG98: 3.61 | BH98: 0.72 | BI98: 0.37 | BJ98: 0.66
A99: GGL MK08 57 Standard | B99: GGL | C99: MK08 | D99: 57 | E99: ELECTRIC | F99: Standard | G99: GGL 57 | H99: GPL 70 | I99: ok | J99: GPL | K99: 70 | L99: GPL MK08 70 Standard | M99: 57 | N99: 1.4 | O99: 1.9 | P99: 1.3 | Q99: 1.7 | R99: 1.2 | S99: 1.5 | T99: 1.2 | U99: 1.5 | V99: 1.7 | W99: 1.4 | X99: 1 | Y99: 1.3 | Z99: 0.14 | AA99: 0.05 | AB99: 0 | AC99: 0.14 | AD99: 0.07 | AE99: 0 | AF99: 0.03 | AG99: 0.09 | AH99: 0 | AI99: 0.12 | AJ99: 0 | AK99: 0.07 | AL99: 0 | AM99: 0.07 | AN99: 0 | AO99: 0.08 | AP99: 0 | AQ99: 0.08 | AR99: 0.41 | AS99: 0 | AT99: 0.07 | AU99: 0 | AV99: 0 | AW99: 0 | AX99: 0 | AY99: 0 | AZ99: https://base-inies.fr/consultation/infos-produit/42364 | BA99: 1049 | BB99: 0.78 | BC99: 1.4 | BD99: 1.09 | BE99: 0.6 | BF99: 1.2 | BG99: 3.61 | BH99: 0.72 | BI99: 0.37 | BJ99: 0.66
A100: GGL MK08 57 Standard | B100: GGL | C100: MK08 | D100: 57 | E100: MANUAL | F100: Standard | G100: GGL 57 | H100: GPL 70 | I100: ok | J100: GPL | K100: 70 | L100: GPL MK08 70 Standard | M100: 57 | N100: 1.4 | O100: 1.9 | P100: 1.3 | Q100: 1.7 | R100: 1.2 | S100: 1.5 | T100: 1.2 | U100: 1.5 | V100: 1.7 | W100: 1.4 | X100: 1 | Y100: 1.3 | Z100: 0.14 | AA100: 0.05 | AB100: 0 | AC100: 0.14 | AD100: 0.07 | AE100: 0 | AF100: 0.03 | AG100: 0.09 | AH100: 0 | AI100: 0.12 | AJ100: 0 | AK100: 0.07 | AL100: 0 | AM100: 0.07 | AN100: 0 | AO100: 0.08 | AP100: 0 | AQ100: 0.08 | AR100: 0.41 | AS100: 0 | AT100: 0.07 | AU100: 0 | AV100: 0 | AW100: 0 | AX100: 0 | AY100: 0 | AZ100: https://base-inies.fr/consultation/infos-produit/42364 | BA100: 1050 | BB100: 0.78 | BC100: 1.4 | BD100: 1.09 | BE100: 0.6 | BF100: 1.2 | BG100: 3.61 | BH100: 0.72 | BI100: 0.37 | BJ100: 0.66
A101: GGL MK08 62 Standard | B101: GGL | C101: MK08 | D101: 62 | E101: MANUAL | F101: Standard | G101: GGL 62 | H101: GPL 62 | I101: ok | J101: GPL | K101: 62 | L101: GPL MK08 62 Standard | M101: 62 | N101: 1.1 | O101: 1.3 | P101: 1 | Q101: 1.2 | R101: 0.98 | S101: 1.1 | T101: 0.95 | U101: 1.1 | V101: 1.2 | W101: 1 | X101: 0.85 | Y101: 0.96 | Z101: 0.25 | AA101: 0.08 | AB101: 0 | AC101: 0.25 | AD101: 0.09 | AE101: 0 | AF101: 0.04 | AG101: 0.08 | AH101: 0 | AI101: 0.12 | AJ101: 0 | AK101: 0.05 | AL101: 0 | AM101: 0.05 | AN101: 0 | AO101: 0.06 | AP101: 0 | AQ101: 0.06 | AR101: 0.44 | AS101: 0 | AT101: 0.08 | AU101: 0 | AV101: 0 | AW101: 0 | AX101: 0 | AY101: 0 | AZ101: Pas de FDES en ligne pour la solution choisie | BA101: 1051 | BB101: 0.78 | BC101: 1.4 | BD101: 1.09 | BE101: 0.6 | BF101: 1.2 | BG101: 3.61 | BH101: 0.72 | BI101: 0.37 | BJ101: 0.66
A102: GGL MK08 62 Standard | B102: GGL | C102: MK08 | D102: 62 | E102: ELECTRIC | F102: Standard | G102: GGL 62 | H102: GPL 62 | I102: ok | J102: GPL | K102: 62 | L102: GPL MK08 62 Standard | M102: 62 | N102: 1.1 | O102: 1.3 | P102: 1 | Q102: 1.2 | R102: 0.98 | S102: 1.1 | T102: 0.95 | U102: 1.1 | V102: 1.2 | W102: 1 | X102: 0.85 | Y102: 0.96 | Z102: 0.25 | AA102: 0.08 | AB102: 0 | AC102: 0.25 | AD102: 0.09 | AE102: 0 | AF102: 0.04 | AG102: 0.08 | AH102: 0 | AI102: 0.12 | AJ102: 0 | AK102: 0.05 | AL102: 0 | AM102: 0.05 | AN102: 0 | AO102: 0.06 | AP102: 0 | AQ102: 0.06 | AR102: 0.44 | AS102: 0 | AT102: 0.08 | AU102: 0 | AV102: 0 | AW102: 0 | AX102: 0 | AY102: 0 | AZ102: Pas de FDES en ligne pour la solution choisie | BA102: 1052 | BB102: 0.78 | BC102: 1.4 | BD102: 1.09 | BE102: 0.6 | BF102: 1.2 | BG102: 3.61 | BH102: 0.72 | BI102: 0.37 | BJ102: 0.66
A103: GGL MK08 66 Standard | B103: GGL | C103: MK08 | D103: 66 | E103: MANUAL | F103: Standard | G103: GGL 66 | H103: GPL 66 | I103: ok | J103: GPL | K103: 66 | L103: GPL MK08 66 Standard | M103: 66 | N103: 1.2 | O103: 1.4 | P103: 1.1 | Q103: 1.3 | R103: 1 | S103: 1.2 | T103: 0.99 | U103: 1.1 | V103: 1.3 | W103: 1.1 | X103: 0.88 | Y103: 0.99 | Z103: 0.2 | AA103: 0.09 | AB103: 0 | AC103: 0.2 | AD103: 0.09 | AE103: 0 | AF103: 0.03 | AG103: 0.09 | AH103: 0 | AI103: 0.12 | AJ103: 0 | AK103: 0.06 | AL103: 0 | AM103: 0.06 | AN103: 0 | AO103: 0.06 | AP103: 0 | AQ103: 0.06 | AR103: 0.41 | AS103: 0 | AT103: 0.07 | AU103: 0 | AV103: 0 | AW103: 0 | AX103: 0 | AY103: 0 | AZ103: Pas de FDES en ligne pour la solution choisie | BA103: 1053 | BB103: 0.78 | BC103: 1.4 | BD103: 1.09 | BE103: 0.6 | BF103: 1.2 | BG103: 3.61 | BH103: 0.72 | BI103: 0.37 | BJ103: 0.66
A104: GGL MK08 66 Standard | B104: GGL | C104: MK08 | D104: 66 | E104: ELECTRIC | F104: Standard | G104: GGL 66 | H104: GPL 66 | I104: ok | J104: GPL | K104: 66 | L104: GPL MK08 66 Standard | M104: 66 | N104: 1.2 | O104: 1.4 | P104: 1.1 | Q104: 1.3 | R104: 1 | S104: 1.2 | T104: 0.99 | U104: 1.1 | V104: 1.3 | W104: 1.1 | X104: 0.88 | Y104: 0.99 | Z104: 0.2 | AA104: 0.09 | AB104: 0 | AC104: 0.2 | AD104: 0.09 | AE104: 0 | AF104: 0.03 | AG104: 0.09 | AH104: 0 | AI104: 0.12 | AJ104: 0 | AK104: 0.06 | AL104: 0 | AM104: 0.06 | AN104: 0 | AO104: 0.06 | AP104: 0 | AQ104: 0.06 | AR104: 0.41 | AS104: 0 | AT104: 0.07 | AU104: 0 | AV104: 0 | AW104: 0 | AX104: 0 | AY104: 0 | AZ104: Pas de FDES en ligne pour la solution choisie | BA104: 1054 | BB104: 0.78 | BC104: 1.4 | BD104: 1.09 | BE104: 0.6 | BF104: 1.2 | BG104: 3.61 | BH104: 0.72 | BI104: 0.37 | BJ104: 0.66
A105: GGL MK08 66 Standard | B105: GGL | C105: MK08 | D105: 66 | E105: SOLAR | F105: Standard | G105: GGL 66 | H105: GPL 66 | I105: ok | J105: GPL | K105: 66 | L105: GPL MK08 66 Standard | M105: 66 | N105: 1.2 | O105: 1.4 | P105: 1.1 | Q105: 1.3 | R105: 1 | S105: 1.2 | T105: 0.99 | U105: 1.1 | V105: 1.3 | W105: 1.1 | X105: 0.88 | Y105: 0.99 | Z105: 0.2 | AA105: 0.09 | AB105: 0 | AC105: 0.2 | AD105: 0.09 | AE105: 0 | AF105: 0.03 | AG105: 0.09 | AH105: 0 | AI105: 0.12 | AJ105: 0 | AK105: 0.06 | AL105: 0 | AM105: 0.06 | AN105: 0 | AO105: 0.06 | AP105: 0 | AQ105: 0.06 | AR105: 0.41 | AS105: 0 | AT105: 0.07 | AU105: 0 | AV105: 0 | AW105: 0 | AX105: 0 | AY105: 0 | AZ105: Pas de FDES en ligne pour la solution choisie | BA105: 1055 | BB105: 0.78 | BC105: 1.4 | BD105: 1.09 | BE105: 0.6 | BF105: 1.2 | BG105: 3.61 | BH105: 0.72 | BI105: 0.37 | BJ105: 0.66
A106: GGL MK08 70 Standard | B106: GGL | C106: MK08 | D106: 70 | E106: MANUAL | F106: Standard | G106: GGL 70 | H106: GPL 70 | I106: ok | J106: GPL | K106: 70 | L106: GPL MK08 70 Standard | M106: 70 | N106: 1.4 | O106: 1.9 | P106: 1.3 | Q106: 1.7 | R106: 1.2 | S106: 1.5 | T106: 1.2 | U106: 1.5 | V106: 1.7 | W106: 1.4 | X106: 1 | Y106: 1.3 | Z106: 0.25 | AA106: 0.07 | AB106: 0 | AC106: 0.25 | AD106: 0.07 | AE106: 0 | AF106: 0.05 | AG106: 0.09 | AH106: 0 | AI106: 0.14 | AJ106: 0 | AK106: 0.07 | AL106: 0 | AM106: 0.07 | AN106: 0 | AO106: 0.08 | AP106: 0 | AQ106: 0.08 | AR106: 0.45 | AS106: 0 | AT106: 0.08 | AU106: 0 | AV106: 0 | AW106: 0 | AX106: 0 | AY106: 0 | AZ106: Pas de FDES en ligne pour la solution choisie | BA106: 1061 | BB106: 0.78 | BC106: 1.4 | BD106: 1.09 | BE106: 0.6 | BF106: 1.2 | BG106: 3.61 | BH106: 0.72 | BI106: 0.37 | BJ106: 0.66
A107: GGL MK08 70 Standard | B107: GGL | C107: MK08 | D107: 70 | E107: MANUALBOTTOM | F107: Standard | G107: GGL 70 | H107: GPL 70 | I107: ok | J107: GPL | K107: 70 | L107: GPL MK08 70 Standard | M107: 70 | N107: 1.4 | O107: 1.9 | P107: 1.3 | Q107: 1.7 | R107: 1.2 | S107: 1.5 | T107: 1.2 | U107: 1.5 | V107: 1.7 | W107: 1.4 | X107: 1 | Y107: 1.3 | Z107: 0.25 | AA107: 0.07 | AB107: 0 | AC107: 0.25 | AD107: 0.07 | AE107: 0 | AF107: 0.05 | AG107: 0.09 | AH107: 0 | AI107: 0.14 | AJ107: 0 | AK107: 0.07 | AL107: 0 | AM107: 0.07 | AN107: 0 | AO107: 0.08 | AP107: 0 | AQ107: 0.08 | AR107: 0.45 | AS107: 0 | AT107: 0.08 | AU107: 0 | AV107: 0 | AW107: 0 | AX107: 0 | AY107: 0 | AZ107: Pas de FDES en ligne pour la solution choisie | BA107: 1062 | BB107: 0.78 | BC107: 1.4 | BD107: 1.09 | BE107: 0.6 | BF107: 1.2 | BG107: 3.61 | BH107: 0.72 | BI107: 0.37 | BJ107: 0.66
A108: GGL MK08 70Q Standard | B108: GGL | C108: MK08 | D108: 70Q | E108: MANUAL | F108: Standard | G108: GGL 70Q | H108: GPL 70 | I108: ok | J108: GPL | K108: 70 | L108: GPL MK08 70 Standard | M108: 70 | N108: 1.4 | O108: 1.9 | P108: 1.3 | Q108: 1.7 | R108: 1.2 | S108: 1.5 | T108: 1.2 | U108: 1.5 | V108: 1.7 | W108: 1.4 | X108: 1 | Y108: 1.3 | Z108: 0.25 | AA108: 0.07 | AB108: 0 | AC108: 0.25 | AD108: 0.07 | AE108: 0 | AF108: 0.05 | AG108: 0.09 | AH108: 0 | AI108: 0.14 | AJ108: 0 | AK108: 0.07 | AL108: 0 | AM108: 0.07 | AN108: 0 | AO108: 0.08 | AP108: 0 | AQ108: 0.08 | AR108: 0.45 | AS108: 0 | AT108: 0.08 | AU108: 0 | AV108: 0 | AW108: 0 | AX108: 0 | AY108: 0 | AZ108: Pas de FDES en ligne pour la solution choisie | BA108: 1063 | BB108: 0.78 | BC108: 1.4 | BD108: 1.09 | BE108: 0.6 | BF108: 1.2 | BG108: 3.61 | BH108: 0.72 | BI108: 0.37 | BJ108: 0.66
A109: GGL MK08 76F Standard | B109: GGL | C109: MK08 | D109: 76F | E109: ELECTRIC | F109: Standard | G109: GGL 76F | H109: GPL 70 | I109: ok | J109: GPL | K109: 70 | L109: GPL MK08 70 Standard | M109: 76 | N109: 1.4 | O109: 1.9 | P109: 1.3 | Q109: 1.7 | R109: 1.2 | S109: 1.5 | T109: 1.2 | U109: 1.5 | V109: 1.7 | W109: 1.4 | X109: 1 | Y109: 1.3 | Z109: 0.14 | AA109: 0.05 | AB109: 0 | AC109: 0.14 | AD109: 0.05 | AE109: 0 | AF109: 0.03 | AG109: 0.09 | AH109: 0 | AI109: 0.12 | AJ109: 0 | AK109: 0.07 | AL109: 0 | AM109: 0.07 | AN109: 0 | AO109: 0.08 | AP109: 0 | AQ109: 0.08 | AR109: 0.41 | AS109: 0 | AT109: 0.07 | AU109: 0 | AV109: 0 | AW109: 0 | AX109: 0 | AY109: 0 | AZ109: https://base-inies.fr/consultation/infos-produit/42364 | BA109: 1064 | BB109: 0.78 | BC109: 1.4 | BD109: 1.09 | BE109: 0.6 | BF109: 1.2 | BG109: 3.61 | BH109: 0.72 | BI109: 0.37 | BJ109: 0.66
A110: GGL MK08 76F Standard | B110: GGL | C110: MK08 | D110: 76F | E110: MANUAL | F110: Standard | G110: GGL 76F | H110: GPL 70 | I110: ok | J110: GPL | K110: 70 | L110: GPL MK08 70 Standard | M110: 76 | N110: 1.4 | O110: 1.9 | P110: 1.3 | Q110: 1.7 | R110: 1.2 | S110: 1.5 | T110: 1.2 | U110: 1.5 | V110: 1.7 | W110: 1.4 | X110: 1 | Y110: 1.3 | Z110: 0.14 | AA110: 0.05 | AB110: 0 | AC110: 0.14 | AD110: 0.05 | AE110: 0 | AF110: 0.03 | AG110: 0.09 | AH110: 0 | AI110: 0.12 | AJ110: 0 | AK110: 0.07 | AL110: 0 | AM110: 0.07 | AN110: 0 | AO110: 0.08 | AP110: 0 | AQ110: 0.08 | AR110: 0.41 | AS110: 0 | AT110: 0.07 | AU110: 0 | AV110: 0 | AW110: 0 | AX110: 0 | AY110: 0 | AZ110: https://base-inies.fr/consultation/infos-produit/42364 | BA110: 1058 | BB110: 0.78 | BC110: 1.4 | BD110: 1.09 | BE110: 0.6 | BF110: 1.2 | BG110: 3.61 | BH110: 0.72 | BI110: 0.37 | BJ110: 0.66
A111: GGL MK08 76F Standard | B111: GGL | C111: MK08 | D111: 76F | E111: SOLAR | F111: Standard | G111: GGL 76F | H111: GPL 70 | I111: ok | J111: GPL | K111: 70 | L111: GPL MK08 70 Standard | M111: 76 | N111: 1.4 | O111: 1.9 | P111: 1.3 | Q111: 1.7 | R111: 1.2 | S111: 1.5 | T111: 1.2 | U111: 1.5 | V111: 1.7 | W111: 1.4 | X111: 1 | Y111: 1.3 | Z111: 0.14 | AA111: 0.05 | AB111: 0 | AC111: 0.14 | AD111: 0.05 | AE111: 0 | AF111: 0.03 | AG111: 0.09 | AH111: 0 | AI111: 0.12 | AJ111: 0 | AK111: 0.07 | AL111: 0 | AM111: 0.07 | AN111: 0 | AO111: 0.08 | AP111: 0 | AQ111: 0.08 | AR111: 0.41 | AS111: 0 | AT111: 0.07 | AU111: 0 | AV111: 0 | AW111: 0 | AX111: 0 | AY111: 0 | AZ111: https://base-inies.fr/consultation/infos-produit/42364 | BA111: 1065 | BB111: 0.78 | BC111: 1.4 | BD111: 1.09 | BE111: 0.6 | BF111: 1.2 | BG111: 3.61 | BH111: 0.72 | BI111: 0.37 | BJ111: 0.66
A112: GGL MK08 70H Standard | B112: GGL | C112: MK08 | D112: 70H | E112: MANUAL | F112: Standard | G112: GGL 70H | H112: GPL 70 | I112: ok | J112: GPL | K112: 70 | L112: GPL MK08 70 Standard | M112: 70 | N112: 1.4 | O112: 1.9 | P112: 1.3 | Q112: 1.7 | R112: 1.2 | S112: 1.5 | T112: 1.2 | U112: 1.5 | V112: 1.7 | W112: 1.4 | X112: 1 | Y112: 1.3 | Z112: 0.25 | AA112: 0.07 | AB112: 0 | AC112: 0.25 | AD112: 0.07 | AE112: 0 | AF112: 0.05 | AG112: 0.09 | AH112: 0 | AI112: 0.14 | AJ112: 0 | AK112: 0.07 | AL112: 0 | AM112: 0.07 | AN112: 0 | AO112: 0.08 | AP112: 0 | AQ112: 0.08 | AR112: 0.45 | AS112: 0 | AT112: 0.08 | AU112: 0 | AV112: 0 | AW112: 0 | AX112: 0 | AY112: 0 | AZ112: Pas de FDES en ligne pour la solution choisie | BA112: 1066 | BB112: 0.78 | BC112: 1.4 | BD112: 1.09 | BE112: 0.6 | BF112: 1.2 | BG112: 3.61 | BH112: 0.72 | BI112: 0.37 | BJ112: 0.66
A113: GGL MK08 57 Standard | B113: GGL | C113: MK08 | D113: 57 | E113: SOLAR | F113: Standard | G113: GGL 57 | H113: GPL 70 | I113: ok | J113: GPL | K113: 70 | L113: GPL MK08 70 Standard | M113: 57 | N113: 1.4 | O113: 1.9 | P113: 1.3 | Q113: 1.7 | R113: 1.2 | S113: 1.5 | T113: 1.2 | U113: 1.5 | V113: 1.7 | W113: 1.4 | X113: 1 | Y113: 1.3 | Z113: 0.14 | AA113: 0.05 | AB113: 0 | AC113: 0.14 | AD113: 0.07 | AE113: 0 | AF113: 0.03 | AG113: 0.09 | AH113: 0 | AI113: 0.12 | AJ113: 0 | AK113: 0.07 | AL113: 0 | AM113: 0.07 | AN113: 0 | AO113: 0.08 | AP113: 0 | AQ113: 0.08 | AR113: 0.41 | AS113: 0 | AT113: 0.07 | AU113: 0 | AV113: 0 | AW113: 0 | AX113: 0 | AY113: 0 | AZ113: https://base-inies.fr/consultation/infos-produit/42364 | BA113: 1068 | BB113: 0.78 | BC113: 1.4 | BD113: 1.09 | BE113: 0.6 | BF113: 1.2 | BG113: 3.61 | BH113: 0.72 | BI113: 0.37 | BJ113: 0.66
A114: GGL MK10 62 Standard | B114: GGL | C114: MK10 | D114: 62 | E114: MANUAL | F114: Standard | G114: GGL 62 | H114: GPL 62 | I114: ok | J114: GPL | K114: 62 | L114: GPL MK10 62 Standard | M114: 62 | N114: 1.1 | O114: 1.3 | P114: 1 | Q114: 1.2 | R114: 0.96 | S114: 1.1 | T114: 0.94 | U114: 1.1 | V114: 1.2 | W114: 1 | X114: 0.84 | Y114: 0.96 | Z114: 0.25 | AA114: 0.08 | AB114: 0 | AC114: 0.25 | AD114: 0.09 | AE114: 0 | AF114: 0.04 | AG114: 0.08 | AH114: 0 | AI114: 0.12 | AJ114: 0 | AK114: 0.05 | AL114: 0 | AM114: 0.05 | AN114: 0 | AO114: 0.06 | AP114: 0 | AQ114: 0.06 | AR114: 0.45 | AS114: 0 | AT114: 0.08 | AU114: 0 | AV114: 0 | AW114: 0 | AX114: 0 | AY114: 0 | AZ114: Pas de FDES en ligne pour la solution choisie | BA114: 1069 | BB114: 0.78 | BC114: 1.6 | BD114: 1.25 | BE114: 0.6 | BF114: 1.41 | BG114: 4.01 | BH114: 0.84 | BI114: 0.41 | BJ114: 0.67
A115: GGL MK10 62 Standard | B115: GGL | C115: MK10 | D115: 62 | E115: ELECTRIC | F115: Standard | G115: GGL 62 | H115: GPL 62 | I115: ok | J115: GPL | K115: 62 | L115: GPL MK10 62 Standard | M115: 62 | N115: 1.1 | O115: 1.3 | P115: 1 | Q115: 1.2 | R115: 0.96 | S115: 1.1 | T115: 0.94 | U115: 1.1 | V115: 1.2 | W115: 1 | X115: 0.84 | Y115: 0.96 | Z115: 0.25 | AA115: 0.08 | AB115: 0 | AC115: 0.25 | AD115: 0.09 | AE115: 0 | AF115: 0.04 | AG115: 0.08 | AH115: 0 | AI115: 0.12 | AJ115: 0 | AK115: 0.05 | AL115: 0 | AM115: 0.05 | AN115: 0 | AO115: 0.06 | AP115: 0 | AQ115: 0.06 | AR115: 0.45 | AS115: 0 | AT115: 0.08 | AU115: 0 | AV115: 0 | AW115: 0 | AX115: 0 | AY115: 0 | AZ115: Pas de FDES en ligne pour la solution choisie | BA115: 1070 | BB115: 0.78 | BC115: 1.6 | BD115: 1.25 | BE115: 0.6 | BF115: 1.41 | BG115: 4.01 | BH115: 0.84 | BI115: 0.41 | BJ115: 0.67
A116: GGL MK10 66 Standard | B116: GGL | C116: MK10 | D116: 66 | E116: MANUAL | F116: Standard | G116: GGL 66 | H116: GPL 66 | I116: ok | J116: GPL | K116: 66 | L116: GPL MK10 66 Standard | M116: 66 | N116: 1.1 | O116: 1.3 | P116: 1.1 | Q116: 1.2 | R116: 1 | S116: 1.2 | T116: 0.97 | U116: 1.1 | V116: 1.2 | W116: 1 | X116: 0.87 | Y116: 0.98 | Z116: 0.2 | AA116: 0.09 | AB116: 0 | AC116: 0.2 | AD116: 0.09 | AE116: 0 | AF116: 0.03 | AG116: 0.08 | AH116: 0 | AI116: 0.12 | AJ116: 0 | AK116: 0.06 | AL116: 0 | AM116: 0.06 | AN116: 0 | AO116: 0.06 | AP116: 0 | AQ116: 0.06 | AR116: 0.42 | AS116: 0 | AT116: 0.07 | AU116: 0 | AV116: 0 | AW116: 0 | AX116: 0 | AY116: 0 | AZ116: Pas de FDES en ligne pour la solution choisie | BA116: 1071 | BB116: 0.78 | BC116: 1.6 | BD116: 1.25 | BE116: 0.6 | BF116: 1.41 | BG116: 4.01 | BH116: 0.84 | BI116: 0.41 | BJ116: 0.67
A117: GGL MK10 66 Standard | B117: GGL | C117: MK10 | D117: 66 | E117: ELECTRIC | F117: Standard | G117: GGL 66 | H117: GPL 66 | I117: ok | J117: GPL | K117: 66 | L117: GPL MK10 66 Standard | M117: 66 | N117: 1.1 | O117: 1.3 | P117: 1.1 | Q117: 1.2 | R117: 1 | S117: 1.2 | T117: 0.97 | U117: 1.1 | V117: 1.2 | W117: 1 | X117: 0.87 | Y117: 0.98 | Z117: 0.2 | AA117: 0.09 | AB117: 0 | AC117: 0.2 | AD117: 0.09 | AE117: 0 | AF117: 0.03 | AG117: 0.08 | AH117: 0 | AI117: 0.12 | AJ117: 0 | AK117: 0.06 | AL117: 0 | AM117: 0.06 | AN117: 0 | AO117: 0.06 | AP117: 0 | AQ117: 0.06 | AR117: 0.42 | AS117: 0 | AT117: 0.07 | AU117: 0 | AV117: 0 | AW117: 0 | AX117: 0 | AY117: 0 | AZ117: Pas de FDES en ligne pour la solution choisie | BA117: 1072 | BB117: 0.78 | BC117: 1.6 | BD117: 1.25 | BE117: 0.6 | BF117: 1.41 | BG117: 4.01 | BH117: 0.84 | BI117: 0.41 | BJ117: 0.67
A118: GGL MK10 66 Standard | B118: GGL | C118: MK10 | D118: 66 | E118: SOLAR | F118: Standard | G118: GGL 66 | H118: GPL 66 | I118: ok | J118: GPL | K118: 66 | L118: GPL MK10 66 Standard | M118: 66 | N118: 1.1 | O118: 1.3 | P118: 1.1 | Q118: 1.2 | R118: 1 | S118: 1.2 | T118: 0.97 | U118: 1.1 | V118: 1.2 | W118: 1 | X118: 0.87 | Y118: 0.98 | Z118: 0.2 | AA118: 0.09 | AB118: 0 | AC118: 0.2 | AD118: 0.09 | AE118: 0 | AF118: 0.03 | AG118: 0.08 | AH118: 0 | AI118: 0.12 | AJ118: 0 | AK118: 0.06 | AL118: 0 | AM118: 0.06 | AN118: 0 | AO118: 0.06 | AP118: 0 | AQ118: 0.06 | AR118: 0.42 | AS118: 0 | AT118: 0.07 | AU118: 0 | AV118: 0 | AW118: 0 | AX118: 0 | AY118: 0 | AZ118: Pas de FDES en ligne pour la solution choisie | BA118: 1067 | BB118: 0.78 | BC118: 1.6 | BD118: 1.25 | BE118: 0.6 | BF118: 1.41 | BG118: 4.01 | BH118: 0.84 | BI118: 0.41 | BJ118: 0.67
A119: GGL MK10 70 Standard | B119: GGL | C119: MK10 | D119: 70 | E119: MANUAL | F119: Standard | G119: GGL 70 | H119: GPL 70 | I119: ok | J119: GPL | K119: 70 | L119: GPL MK10 70 Standard | M119: 70 | N119: 1.4 | O119: 1.9 | P119: 1.3 | Q119: 1.7 | R119: 1.2 | S119: 1.5 | T119: 1.2 | U119: 1.5 | V119: 1.7 | W119: 1.4 | X119: 1 | Y119: 1.2 | Z119: 0.26 | AA119: 0.07 | AB119: 0 | AC119: 0.26 | AD119: 0.07 | AE119: 0 | AF119: 0.05 | AG119: 0.09 | AH119: 0 | AI119: 0.14 | AJ119: 0 | AK119: 0.07 | AL119: 0 | AM119: 0.07 | AN119: 0 | AO119: 0.08 | AP119: 0 | AQ119: 0.08 | AR119: 0.46 | AS119: 0 | AT119: 0.08 | AU119: 0 | AV119: 0 | AW119: 0 | AX119: 0 | AY119: 0 | AZ119: Pas de FDES en ligne pour la solution choisie | BA119: 1075 | BB119: 0.78 | BC119: 1.6 | BD119: 1.25 | BE119: 0.6 | BF119: 1.41 | BG119: 4.01 | BH119: 0.84 | BI119: 0.41 | BJ119: 0.67
A120: GGL MK10 70Q Standard | B120: GGL | C120: MK10 | D120: 70Q | E120: MANUAL | F120: Standard | G120: GGL 70Q | H120: GPL 70 | I120: ok | J120: GPL | K120: 70 | L120: GPL MK10 70 Standard | M120: 70 | N120: 1.4 | O120: 1.9 | P120: 1.3 | Q120: 1.7 | R120: 1.2 | S120: 1.5 | T120: 1.2 | U120: 1.5 | V120: 1.7 | W120: 1.4 | X120: 1 | Y120: 1.2 | Z120: 0.26 | AA120: 0.07 | AB120: 0 | AC120: 0.26 | AD120: 0.07 | AE120: 0 | AF120: 0.05 | AG120: 0.09 | AH120: 0 | AI120: 0.14 | AJ120: 0 | AK120: 0.07 | AL120: 0 | AM120: 0.07 | AN120: 0 | AO120: 0.08 | AP120: 0 | AQ120: 0.08 | AR120: 0.46 | AS120: 0 | AT120: 0.08 | AU120: 0 | AV120: 0 | AW120: 0 | AX120: 0 | AY120: 0 | AZ120: Pas de FDES en ligne pour la solution choisie | BA120: 1076 | BB120: 0.78 | BC120: 1.6 | BD120: 1.25 | BE120: 0.6 | BF120: 1.41 | BG120: 4.01 | BH120: 0.84 | BI120: 0.41 | BJ120: 0.67
A121: GGL MK12 57 Standard | B121: GGL | C121: MK12 | D121: 57 | E121: MANUAL | F121: Standard | G121: GGL 57 | H121: GPL 70 | I121: ok | J121: GPL | K121: 70 | L121: GPL MK12 70 Standard | M121: 57 | N121: 1.4 | O121: 1.9 | P121: 1.3 | Q121: 1.7 | R121: 1.2 | S121: 1.5 | T121: 1.2 | U121: 1.5 | V121: 1.7 | W121: 1.3 | X121: 1 | Y121: 1.2 | Z121: 0.14 | AA121: 0.05 | AB121: 0 | AC121: 0.14 | AD121: 0.07 | AE121: 0 | AF121: 0.03 | AG121: 0.09 | AH121: 0 | AI121: 0.12 | AJ121: 0 | AK121: 0.07 | AL121: 0 | AM121: 0.07 | AN121: 0 | AO121: 0.08 | AP121: 0 | AQ121: 0.08 | AR121: 0.42 | AS121: 0 | AT121: 0.07 | AU121: 0 | AV121: 0 | AW121: 0 | AX121: 0 | AY121: 0 | AZ121: Pas de FDES en ligne pour la solution choisie | BA121: 1078 | BB121: 0.78 | BC121: 1.8 | BD121: 1.4 | BE121: 0.6 | BF121: 1.61 | BG121: 4.41 | BH121: 0.96 | BI121: 0.44 | BJ121: 0.69
A122: GGL MK12 66 Standard | B122: GGL | C122: MK12 | D122: 66 | E122: MANUAL | F122: Standard | G122: GGL 66 | H122: GPL 66 | I122: ok | J122: GPL | K122: 66 | L122: GPL MK12 66 Standard | M122: 66 | N122: 1.1 | O122: 1.3 | P122: 1.1 | Q122: 1.2 | R122: 0.99 | S122: 1.1 | T122: 0.96 | U122: 1.1 | V122: 1.2 | W122: 1 | X122: 0.86 | Y122: 0.98 | Z122: 0.21 | AA122: 0.09 | AB122: 0 | AC122: 0.21 | AD122: 0.09 | AE122: 0 | AF122: 0.03 | AG122: 0.08 | AH122: 0 | AI122: 0.12 | AJ122: 0 | AK122: 0.06 | AL122: 0 | AM122: 0.06 | AN122: 0 | AO122: 0.06 | AP122: 0 | AQ122: 0.06 | AR122: 0.42 | AS122: 0 | AT122: 0.07 | AU122: 0 | AV122: 0 | AW122: 0 | AX122: 0 | AY122: 0 | AZ122: Pas de FDES en ligne pour la solution choisie | BA122: 1079 | BB122: 0.78 | BC122: 1.8 | BD122: 1.4 | BE122: 0.6 | BF122: 1.61 | BG122: 4.41 | BH122: 0.96 | BI122: 0.44 | BJ122: 0.69
A123: GGL MK12 66 Standard | B123: GGL | C123: MK12 | D123: 66 | E123: ELECTRIC | F123: Standard | G123: GGL 66 | H123: GPL 66 | I123: ok | J123: GPL | K123: 66 | L123: GPL MK12 66 Standard | M123: 66 | N123: 1.1 | O123: 1.3 | P123: 1.1 | Q123: 1.2 | R123: 0.99 | S123: 1.1 | T123: 0.96 | U123: 1.1 | V123: 1.2 | W123: 1 | X123: 0.86 | Y123: 0.98 | Z123: 0.21 | AA123: 0.09 | AB123: 0 | AC123: 0.21 | AD123: 0.09 | AE123: 0 | AF123: 0.03 | AG123: 0.08 | AH123: 0 | AI123: 0.12 | AJ123: 0 | AK123: 0.06 | AL123: 0 | AM123: 0.06 | AN123: 0 | AO123: 0.06 | AP123: 0 | AQ123: 0.06 | AR123: 0.42 | AS123: 0 | AT123: 0.07 | AU123: 0 | AV123: 0 | AW123: 0 | AX123: 0 | AY123: 0 | AZ123: Pas de FDES en ligne pour la solution choisie | BA123: 1081 | BB123: 0.78 | BC123: 1.8 | BD123: 1.4 | BE123: 0.6 | BF123: 1.61 | BG123: 4.41 | BH123: 0.96 | BI123: 0.44 | BJ123: 0.69
A124: GGL MK12 70 Standard | B124: GGL | C124: MK12 | D124: 70 | E124: MANUAL | F124: Standard | G124: GGL 70 | H124: GPL 70 | I124: ok | J124: GPL | K124: 70 | L124: GPL MK12 70 Standard | M124: 70 | N124: 1.4 | O124: 1.9 | P124: 1.3 | Q124: 1.7 | R124: 1.2 | S124: 1.5 | T124: 1.2 | U124: 1.5 | V124: 1.7 | W124: 1.3 | X124: 1 | Y124: 1.2 | Z124: 0.26 | AA124: 0.07 | AB124: 0 | AC124: 0.26 | AD124: 0.07 | AE124: 0 | AF124: 0.05 | AG124: 0.09 | AH124: 0 | AI124: 0.14 | AJ124: 0 | AK124: 0.07 | AL124: 0 | AM124: 0.07 | AN124: 0 | AO124: 0.08 | AP124: 0 | AQ124: 0.08 | AR124: 0.47 | AS124: 0 | AT124: 0.08 | AU124: 0 | AV124: 0 | AW124: 0 | AX124: 0 | AY124: 0 | AZ124: Pas de FDES en ligne pour la solution choisie | BA124: 1083 | BB124: 0.78 | BC124: 1.8 | BD124: 1.4 | BE124: 0.6 | BF124: 1.61 | BG124: 4.41 | BH124: 0.96 | BI124: 0.44 | BJ124: 0.69
A125: GGL MK27 66 Standard | B125: GGL | C125: MK27 | D125: 66 | E125: MANUAL | F125: Standard | G125: GGL 66 | H125: GPL 66 | I125: ok | J125: GPL | K125: 66 | L125: GPL MK27 66 Standard | M125: 66 | N125: 1.3 | O125: 1.5 | P125: 1.2 | Q125: 1.4 | R125: 1.1 | S125: 1.3 | T125: 1.1 | U125: 1.2 | V125: 1.4 | W125: 1.1 | X125: 0.98 | Y125: 1.1 | Z125: 0.16 | AA125: 0.08 | AB125: 0 | AC125: 0.16 | AD125: 0.08 | AE125: 0 | AF125: 0.03 | AG125: 0.09 | AH125: 0 | AI125: 0.12 | AJ125: 0 | AK125: 0.07 | AL125: 0 | AM125: 0.07 | AN125: 0 | AO125: 0.07 | AP125: 0 | AQ125: 0.07 | AR125: 0.33 | AS125: 0 | AT125: 0.06 | AU125: 0 | AV125: 0 | AW125: 0 | AX125: 0 | AY125: 0 | AZ125: Pas de FDES en ligne pour la solution choisie | BA125: 1080 | BB125: 0.78 | BC125: 0.62 | BD125: 0.49 | BE125: 0.6 | BF125: 0.43 | BG125: 2.06 | BH125: 0.26 | BI125: 0.23 | BJ125: 0.53
A126: GGL PK04 57 Standard | B126: GGL | C126: PK04 | D126: 57 | E126: MANUAL | F126: Standard | G126: GGL 57 | H126: GPL 70 | I126: ok | J126: GPL | K126: 70 | L126: GPL PK04 70 Standard | M126: 57 | N126: 1.4 | O126: 1.9 | P126: 1.3 | Q126: 1.7 | R126: 1.2 | S126: 1.5 | T126: 1.2 | U126: 1.5 | V126: 1.7 | W126: 1.3 | X126: 1 | Y126: 1.2 | Z126: 0.14 | AA126: 0.05 | AB126: 0 | AC126: 0.14 | AD126: 0.06 | AE126: 0 | AF126: 0.03 | AG126: 0.09 | AH126: 0 | AI126: 0.12 | AJ126: 0 | AK126: 0.07 | AL126: 0 | AM126: 0.07 | AN126: 0 | AO126: 0.08 | AP126: 0 | AQ126: 0.08 | AR126: 0.4 | AS126: 0 | AT126: 0.07 | AU126: 0 | AV126: 0 | AW126: 0 | AX126: 0 | AY126: 0 | AZ126: Pas de FDES en ligne pour la solution choisie | BA126: 1087 | BB126: 0.942 | BC126: 0.98 | BD126: 0.92 | BE126: 0.762 | BF126: 0.78 | BG126: 3.09 | BH126: 0.6 | BI126: 0.32 | BJ126: 0.65
A127: GGL PK04 57 Standard | B127: GGL | C127: PK04 | D127: 57 | E127: ELECTRIC | F127: Standard | G127: GGL 57 | H127: GPL 70 | I127: ok | J127: GPL | K127: 70 | L127: GPL PK04 70 Standard | M127: 57 | N127: 1.4 | O127: 1.9 | P127: 1.3 | Q127: 1.7 | R127: 1.2 | S127: 1.5 | T127: 1.2 | U127: 1.5 | V127: 1.7 | W127: 1.3 | X127: 1 | Y127: 1.2 | Z127: 0.14 | AA127: 0.05 | AB127: 0 | AC127: 0.14 | AD127: 0.06 | AE127: 0 | AF127: 0.03 | AG127: 0.09 | AH127: 0 | AI127: 0.12 | AJ127: 0 | AK127: 0.07 | AL127: 0 | AM127: 0.07 | AN127: 0 | AO127: 0.08 | AP127: 0 | AQ127: 0.08 | AR127: 0.4 | AS127: 0 | AT127: 0.07 | AU127: 0 | AV127: 0 | AW127: 0 | AX127: 0 | AY127: 0 | AZ127: Pas de FDES en ligne pour la solution choisie | BA127: 1085 | BB127: 0.942 | BC127: 0.98 | BD127: 0.92 | BE127: 0.762 | BF127: 0.78 | BG127: 3.09 | BH127: 0.6 | BI127: 0.32 | BJ127: 0.65
A128: GGL PK04 62 Standard | B128: GGL | C128: PK04 | D128: 62 | E128: MANUAL | F128: Standard | G128: GGL 62 | H128: GPL 62 | I128: ok | J128: GPL | K128: 62 | L128: GPL PK04 62 Standard | M128: 62 | N128: 1.1 | O128: 1.3 | P128: 1 | Q128: 1.2 | R128: 0.98 | S128: 1.1 | T128: 0.95 | U128: 1.1 | V128: 1.2 | W128: 1 | X128: 0.85 | Y128: 0.96 | Z128: 0.24 | AA128: 0.08 | AB128: 0 | AC128: 0.24 | AD128: 0.09 | AE128: 0 | AF128: 0.04 | AG128: 0.08 | AH128: 0 | AI128: 0.12 | AJ128: 0 | AK128: 0.05 | AL128: 0 | AM128: 0.05 | AN128: 0 | AO128: 0.06 | AP128: 0 | AQ128: 0.06 | AR128: 0.43 | AS128: 0 | AT128: 0.07 | AU128: 0 | AV128: 0 | AW128: 0 | AX128: 0 | AY128: 0 | AZ128: Pas de FDES en ligne pour la solution choisie | BA128: 1086 | BB128: 0.942 | BC128: 0.98 | BD128: 0.92 | BE128: 0.762 | BF128: 0.78 | BG128: 3.09 | BH128: 0.6 | BI128: 0.32 | BJ128: 0.65
A129: GGL PK04 62 Standard | B129: GGL | C129: PK04 | D129: 62 | E129: ELECTRIC | F129: Standard | G129: GGL 62 | H129: GPL 62 | I129: ok | J129: GPL | K129: 62 | L129: GPL PK04 62 Standard | M129: 62 | N129: 1.1 | O129: 1.3 | P129: 1 | Q129: 1.2 | R129: 0.98 | S129: 1.1 | T129: 0.95 | U129: 1.1 | V129: 1.2 | W129: 1 | X129: 0.85 | Y129: 0.96 | Z129: 0.24 | AA129: 0.08 | AB129: 0 | AC129: 0.24 | AD129: 0.09 | AE129: 0 | AF129: 0.04 | AG129: 0.08 | AH129: 0 | AI129: 0.12 | AJ129: 0 | AK129: 0.05 | AL129: 0 | AM129: 0.05 | AN129: 0 | AO129: 0.06 | AP129: 0 | AQ129: 0.06 | AR129: 0.43 | AS129: 0 | AT129: 0.07 | AU129: 0 | AV129: 0 | AW129: 0 | AX129: 0 | AY129: 0 | AZ129: Pas de FDES en ligne pour la solution choisie | BA129: 1089 | BB129: 0.942 | BC129: 0.98 | BD129: 0.92 | BE129: 0.762 | BF129: 0.78 | BG129: 3.09 | BH129: 0.6 | BI129: 0.32 | BJ129: 0.65
A130: GGL PK04 66 Standard | B130: GGL | C130: PK04 | D130: 66 | E130: MANUAL | F130: Standard | G130: GGL 66 | H130: GPL 66 | I130: ok | J130: GPL | K130: 66 | L130: GPL PK04 66 Standard | M130: 66 | N130: 1.2 | O130: 1.4 | P130: 1.1 | Q130: 1.3 | R130: 1 | S130: 1.2 | T130: 0.99 | U130: 1.1 | V130: 1.3 | W130: 1.1 | X130: 0.88 | Y130: 0.99 | Z130: 0.2 | AA130: 0.08 | AB130: 0 | AC130: 0.2 | AD130: 0.09 | AE130: 0 | AF130: 0.03 | AG130: 0.09 | AH130: 0 | AI130: 0.12 | AJ130: 0 | AK130: 0.06 | AL130: 0 | AM130: 0.06 | AN130: 0 | AO130: 0.06 | AP130: 0 | AQ130: 0.06 | AR130: 0.4 | AS130: 0 | AT130: 0.07 | AU130: 0 | AV130: 0 | AW130: 0 | AX130: 0 | AY130: 0 | AZ130: Pas de FDES en ligne pour la solution choisie | BA130: 1090 | BB130: 0.942 | BC130: 0.98 | BD130: 0.92 | BE130: 0.762 | BF130: 0.78 | BG130: 3.09 | BH130: 0.6 | BI130: 0.32 | BJ130: 0.65
A131: GGL PK04 70Q Standard | B131: GGL | C131: PK04 | D131: 70Q | E131: MANUAL | F131: Standard | G131: GGL 70Q | H131: GPL 70 | I131: ok | J131: GPL | K131: 70 | L131: GPL PK04 70 Standard | M131: 70 | N131: 1.4 | O131: 1.9 | P131: 1.3 | Q131: 1.7 | R131: 1.2 | S131: 1.5 | T131: 1.2 | U131: 1.5 | V131: 1.7 | W131: 1.3 | X131: 1 | Y131: 1.2 | Z131: 0.25 | AA131: 0.06 | AB131: 0 | AC131: 0.25 | AD131: 0.06 | AE131: 0 | AF131: 0.05 | AG131: 0.09 | AH131: 0 | AI131: 0.14 | AJ131: 0 | AK131: 0.07 | AL131: 0 | AM131: 0.07 | AN131: 0 | AO131: 0.08 | AP131: 0 | AQ131: 0.08 | AR131: 0.44 | AS131: 0 | AT131: 0.08 | AU131: 0 | AV131: 0 | AW131: 0 | AX131: 0 | AY131: 0 | AZ131: Pas de FDES en ligne pour la solution choisie | BA131: 1092 | BB131: 0.942 | BC131: 0.98 | BD131: 0.92 | BE131: 0.762 | BF131: 0.78 | BG131: 3.09 | BH131: 0.6 | BI131: 0.32 | BJ131: 0.65
A132: GGL PK06 57 Standard | B132: GGL | C132: PK06 | D132: 57 | E132: ELECTRIC | F132: Standard | G132: GGL 57 | H132: GPL 70 | I132: ok | J132: GPL | K132: 70 | L132: GPL PK06 70 Standard | M132: 57 | N132: 1.4 | O132: 1.9 | P132: 1.3 | Q132: 1.7 | R132: 1.2 | S132: 1.5 | T132: 1.2 | U132: 1.5 | V132: 1.7 | W132: 1.3 | X132: 1 | Y132: 1.2 | Z132: 0.14 | AA132: 0.05 | AB132: 0 | AC132: 0.14 | AD132: 0.06 | AE132: 0 | AF132: 0.03 | AG132: 0.09 | AH132: 0 | AI132: 0.12 | AJ132: 0 | AK132: 0.07 | AL132: 0 | AM132: 0.07 | AN132: 0 | AO132: 0.08 | AP132: 0 | AQ132: 0.08 | AR132: 0.41 | AS132: 0 | AT132: 0.07 | AU132: 0 | AV132: 0 | AW132: 0 | AX132: 0 | AY132: 0 | AZ132: https://base-inies.fr/consultation/infos-produit/42364 | BA132: 1093 | BB132: 0.942 | BC132: 1.18 | BD132: 1.11 | BE132: 0.762 | BF132: 0.98 | BG132: 3.49 | BH132: 0.75 | BI132: 0.36 | BJ132: 0.68
A133: GGL PK06 57 Standard | B133: GGL | C133: PK06 | D133: 57 | E133: MANUAL | F133: Standard | G133: GGL 57 | H133: GPL 70 | I133: ok | J133: GPL | K133: 70 | L133: GPL PK06 70 Standard | M133: 57 | N133: 1.4 | O133: 1.9 | P133: 1.3 | Q133: 1.7 | R133: 1.2 | S133: 1.5 | T133: 1.2 | U133: 1.5 | V133: 1.7 | W133: 1.3 | X133: 1 | Y133: 1.2 | Z133: 0.14 | AA133: 0.05 | AB133: 0 | AC133: 0.14 | AD133: 0.06 | AE133: 0 | AF133: 0.03 | AG133: 0.09 | AH133: 0 | AI133: 0.12 | AJ133: 0 | AK133: 0.07 | AL133: 0 | AM133: 0.07 | AN133: 0 | AO133: 0.08 | AP133: 0 | AQ133: 0.08 | AR133: 0.41 | AS133: 0 | AT133: 0.07 | AU133: 0 | AV133: 0 | AW133: 0 | AX133: 0 | AY133: 0 | AZ133: https://base-inies.fr/consultation/infos-produit/42364 | BA133: 1094 | BB133: 0.942 | BC133: 1.18 | BD133: 1.11 | BE133: 0.762 | BF133: 0.98 | BG133: 3.49 | BH133: 0.75 | BI133: 0.36 | BJ133: 0.68
A134: GGL PK06 62 Standard | B134: GGL | C134: PK06 | D134: 62 | E134: MANUAL | F134: Standard | G134: GGL 62 | H134: GPL 62 | I134: ok | J134: GPL | K134: 62 | L134: GPL PK06 62 Standard | M134: 62 | N134: 1.1 | O134: 1.3 | P134: 1 | Q134: 1.2 | R134: 0.95 | S134: 1.1 | T134: 0.92 | U134: 1.1 | V134: 1.2 | W134: 1 | X134: 0.83 | Y134: 0.94 | Z134: 0.25 | AA134: 0.08 | AB134: 0 | AC134: 0.25 | AD134: 0.09 | AE134: 0 | AF134: 0.04 | AG134: 0.08 | AH134: 0 | AI134: 0.12 | AJ134: 0 | AK134: 0.05 | AL134: 0 | AM134: 0.05 | AN134: 0 | AO134: 0.06 | AP134: 0 | AQ134: 0.06 | AR134: 0.45 | AS134: 0 | AT134: 0.08 | AU134: 0 | AV134: 0 | AW134: 0 | AX134: 0 | AY134: 0 | AZ134: Pas de FDES en ligne pour la solution choisie | BA134: 1095 | BB134: 0.942 | BC134: 1.18 | BD134: 1.11 | BE134: 0.762 | BF134: 0.98 | BG134: 3.49 | BH134: 0.75 | BI134: 0.36 | BJ134: 0.68
A135: GGL PK06 62 Standard | B135: GGL | C135: PK06 | D135: 62 | E135: ELECTRIC | F135: Standard | G135: GGL 62 | H135: GPL 62 | I135: ok | J135: GPL | K135: 62 | L135: GPL PK06 62 Standard | M135: 62 | N135: 1.1 | O135: 1.3 | P135: 1 | Q135: 1.2 | R135: 0.95 | S135: 1.1 | T135: 0.92 | U135: 1.1 | V135: 1.2 | W135: 1 | X135: 0.83 | Y135: 0.94 | Z135: 0.25 | AA135: 0.08 | AB135: 0 | AC135: 0.25 | AD135: 0.09 | AE135: 0 | AF135: 0.04 | AG135: 0.08 | AH135: 0 | AI135: 0.12 | AJ135: 0 | AK135: 0.05 | AL135: 0 | AM135: 0.05 | AN135: 0 | AO135: 0.06 | AP135: 0 | AQ135: 0.06 | AR135: 0.45 | AS135: 0 | AT135: 0.08 | AU135: 0 | AV135: 0 | AW135: 0 | AX135: 0 | AY135: 0 | AZ135: Pas de FDES en ligne pour la solution choisie | BA135: 1096 | BB135: 0.942 | BC135: 1.18 | BD135: 1.11 | BE135: 0.762 | BF135: 0.98 | BG135: 3.49 | BH135: 0.75 | BI135: 0.36 | BJ135: 0.68
A136: GGL PK06 66 Standard | B136: GGL | C136: PK06 | D136: 66 | E136: MANUAL | F136: Standard | G136: GGL 66 | H136: GPL 66 | I136: ok | J136: GPL | K136: 66 | L136: GPL PK06 66 Standard | M136: 66 | N136: 1.1 | O136: 1.3 | P136: 1.1 | Q136: 1.2 | R136: 0.99 | S136: 1.1 | T136: 0.96 | U136: 1.1 | V136: 1.2 | W136: 1 | X136: 0.86 | Y136: 0.98 | Z136: 0.2 | AA136: 0.09 | AB136: 0 | AC136: 0.2 | AD136: 0.09 | AE136: 0 | AF136: 0.03 | AG136: 0.08 | AH136: 0 | AI136: 0.12 | AJ136: 0 | AK136: 0.06 | AL136: 0 | AM136: 0.06 | AN136: 0 | AO136: 0.06 | AP136: 0 | AQ136: 0.06 | AR136: 0.42 | AS136: 0 | AT136: 0.07 | AU136: 0 | AV136: 0 | AW136: 0 | AX136: 0 | AY136: 0 | AZ136: Pas de FDES en ligne pour la solution choisie | BA136: 1097 | BB136: 0.942 | BC136: 1.18 | BD136: 1.11 | BE136: 0.762 | BF136: 0.98 | BG136: 3.49 | BH136: 0.75 | BI136: 0.36 | BJ136: 0.68
A137: GGL PK06 66 Standard | B137: GGL | C137: PK06 | D137: 66 | E137: ELECTRIC | F137: Standard | G137: GGL 66 | H137: GPL 66 | I137: ok | J137: GPL | K137: 66 | L137: GPL PK06 66 Standard | M137: 66 | N137: 1.1 | O137: 1.3 | P137: 1.1 | Q137: 1.2 | R137: 0.99 | S137: 1.1 | T137: 0.96 | U137: 1.1 | V137: 1.2 | W137: 1 | X137: 0.86 | Y137: 0.98 | Z137: 0.2 | AA137: 0.09 | AB137: 0 | AC137: 0.2 | AD137: 0.09 | AE137: 0 | AF137: 0.03 | AG137: 0.08 | AH137: 0 | AI137: 0.12 | AJ137: 0 | AK137: 0.06 | AL137: 0 | AM137: 0.06 | AN137: 0 | AO137: 0.06 | AP137: 0 | AQ137: 0.06 | AR137: 0.42 | AS137: 0 | AT137: 0.07 | AU137: 0 | AV137: 0 | AW137: 0 | AX137: 0 | AY137: 0 | AZ137: Pas de FDES en ligne pour la solution choisie | BA137: 1098 | BB137: 0.942 | BC137: 1.18 | BD137: 1.11 | BE137: 0.762 | BF137: 0.98 | BG137: 3.49 | BH137: 0.75 | BI137: 0.36 | BJ137: 0.68
A138: GGL PK06 70 Standard | B138: GGL | C138: PK06 | D138: 70 | E138: MANUALBOTTOM | F138: Standard | G138: GGL 70 | H138: GPL 70 | I138: ok | J138: GPL | K138: 70 | L138: GPL PK06 70 Standard | M138: 70 | N138: 1.4 | O138: 1.9 | P138: 1.3 | Q138: 1.7 | R138: 1.2 | S138: 1.5 | T138: 1.2 | U138: 1.5 | V138: 1.7 | W138: 1.3 | X138: 1 | Y138: 1.2 | Z138: 0.26 | AA138: 0.06 | AB138: 0 | AC138: 0.26 | AD138: 0.06 | AE138: 0 | AF138: 0.05 | AG138: 0.09 | AH138: 0 | AI138: 0.14 | AJ138: 0 | AK138: 0.07 | AL138: 0 | AM138: 0.07 | AN138: 0 | AO138: 0.08 | AP138: 0 | AQ138: 0.08 | AR138: 0.46 | AS138: 0 | AT138: 0.08 | AU138: 0 | AV138: 0 | AW138: 0 | AX138: 0 | AY138: 0 | AZ138: Pas de FDES en ligne pour la solution choisie | BA138: 1102 | BB138: 0.942 | BC138: 1.18 | BD138: 1.11 | BE138: 0.762 | BF138: 0.98 | BG138: 3.49 | BH138: 0.75 | BI138: 0.36 | BJ138: 0.68
A139: GGL PK06 70Q Standard | B139: GGL | C139: PK06 | D139: 70Q | E139: MANUAL | F139: Standard | G139: GGL 70Q | H139: GPL 70 | I139: ok | J139: GPL | K139: 70 | L139: GPL PK06 70 Standard | M139: 70 | N139: 1.4 | O139: 1.9 | P139: 1.3 | Q139: 1.7 | R139: 1.2 | S139: 1.5 | T139: 1.2 | U139: 1.5 | V139: 1.7 | W139: 1.3 | X139: 1 | Y139: 1.2 | Z139: 0.26 | AA139: 0.06 | AB139: 0 | AC139: 0.26 | AD139: 0.06 | AE139: 0 | AF139: 0.05 | AG139: 0.09 | AH139: 0 | AI139: 0.14 | AJ139: 0 | AK139: 0.07 | AL139: 0 | AM139: 0.07 | AN139: 0 | AO139: 0.08 | AP139: 0 | AQ139: 0.08 | AR139: 0.46 | AS139: 0 | AT139: 0.08 | AU139: 0 | AV139: 0 | AW139: 0 | AX139: 0 | AY139: 0 | AZ139: Pas de FDES en ligne pour la solution choisie | BA139: 1103 | BB139: 0.942 | BC139: 1.18 | BD139: 1.11 | BE139: 0.762 | BF139: 0.98 | BG139: 3.49 | BH139: 0.75 | BI139: 0.36 | BJ139: 0.68
A140: GGL PK06 76F Standard | B140: GGL | C140: PK06 | D140: 76F | E140: ELECTRIC | F140: Standard | G140: GGL 76F | H140: GPL 70 | I140: ok | J140: GPL | K140: 70 | L140: GPL PK06 70 Standard | M140: 76 | N140: 1.4 | O140: 1.9 | P140: 1.3 | Q140: 1.7 | R140: 1.2 | S140: 1.5 | T140: 1.2 | U140: 1.5 | V140: 1.7 | W140: 1.3 | X140: 1 | Y140: 1.2 | Z140: 0.15 | AA140: 0.05 | AB140: 0 | AC140: 0.15 | AD140: 0.05 | AE140: 0 | AF140: 0.03 | AG140: 0.09 | AH140: 0 | AI140: 0.12 | AJ140: 0 | AK140: 0.06 | AL140: 0 | AM140: 0.06 | AN140: 0 | AO140: 0.08 | AP140: 0 | AQ140: 0.08 | AR140: 0.42 | AS140: 0 | AT140: 0.07 | AU140: 0 | AV140: 0 | AW140: 0 | AX140: 0 | AY140: 0 | AZ140: https://base-inies.fr/consultation/infos-produit/42364 | BA140: 1104 | BB140: 0.942 | BC140: 1.18 | BD140: 1.11 | BE140: 0.762 | BF140: 0.98 | BG140: 3.49 | BH140: 0.75 | BI140: 0.36 | BJ140: 0.68
A141: GGL PK06 76F Standard | B141: GGL | C141: PK06 | D141: 76F | E141: MANUAL | F141: Standard | G141: GGL 76F | H141: GPL 70 | I141: ok | J141: GPL | K141: 70 | L141: GPL PK06 70 Standard | M141: 76 | N141: 1.4 | O141: 1.9 | P141: 1.3 | Q141: 1.7 | R141: 1.2 | S141: 1.5 | T141: 1.2 | U141: 1.5 | V141: 1.7 | W141: 1.3 | X141: 1 | Y141: 1.2 | Z141: 0.15 | AA141: 0.05 | AB141: 0 | AC141: 0.15 | AD141: 0.05 | AE141: 0 | AF141: 0.03 | AG141: 0.09 | AH141: 0 | AI141: 0.12 | AJ141: 0 | AK141: 0.06 | AL141: 0 | AM141: 0.06 | AN141: 0 | AO141: 0.08 | AP141: 0 | AQ141: 0.08 | AR141: 0.42 | AS141: 0 | AT141: 0.07 | AU141: 0 | AV141: 0 | AW141: 0 | AX141: 0 | AY141: 0 | AZ141: https://base-inies.fr/consultation/infos-produit/42364 | BA141: 1105 | BB141: 0.942 | BC141: 1.18 | BD141: 1.11 | BE141: 0.762 | BF141: 0.98 | BG141: 3.49 | BH141: 0.75 | BI141: 0.36 | BJ141: 0.68
A142: GGL PK08 57 Standard | B142: GGL | C142: PK08 | D142: 57 | E142: ELECTRIC | F142: Standard | G142: GGL 57 | H142: GPL 70 | I142: ok | J142: GPL | K142: 70 | L142: GPL PK08 70 Standard | M142: 57 | N142: 1.4 | O142: 1.9 | P142: 1.3 | Q142: 1.7 | R142: 1.2 | S142: 1.5 | T142: 1.1 | U142: 1.5 | V142: 1.7 | W142: 1.3 | X142: 1 | Y142: 1.2 | Z142: 0.15 | AA142: 0.05 | AB142: 0 | AC142: 0.15 | AD142: 0.07 | AE142: 0 | AF142: 0.03 | AG142: 0.09 | AH142: 0 | AI142: 0.12 | AJ142: 0 | AK142: 0.07 | AL142: 0 | AM142: 0.07 | AN142: 0 | AO142: 0.07 | AP142: 0 | AQ142: 0.07 | AR142: 0.43 | AS142: 0 | AT142: 0.07 | AU142: 0 | AV142: 0 | AW142: 0 | AX142: 0 | AY142: 0 | AZ142: https://base-inies.fr/consultation/infos-produit/42364 | BA142: 1107 | BB142: 0.942 | BC142: 1.4 | BD142: 1.32 | BE142: 0.762 | BF142: 1.2 | BG142: 3.93 | BH142: 0.92 | BI142: 0.4 | BJ142: 0.7
A143: GGL PK08 57 Standard | B143: GGL | C143: PK08 | D143: 57 | E143: MANUAL | F143: Standard | G143: GGL 57 | H143: GPL 70 | I143: ok | J143: GPL | K143: 70 | L143: GPL PK08 70 Standard | M143: 57 | N143: 1.4 | O143: 1.9 | P143: 1.3 | Q143: 1.7 | R143: 1.2 | S143: 1.5 | T143: 1.1 | U143: 1.5 | V143: 1.7 | W143: 1.3 | X143: 1 | Y143: 1.2 | Z143: 0.15 | AA143: 0.05 | AB143: 0 | AC143: 0.15 | AD143: 0.07 | AE143: 0 | AF143: 0.03 | AG143: 0.09 | AH143: 0 | AI143: 0.12 | AJ143: 0 | AK143: 0.07 | AL143: 0 | AM143: 0.07 | AN143: 0 | AO143: 0.07 | AP143: 0 | AQ143: 0.07 | AR143: 0.43 | AS143: 0 | AT143: 0.07 | AU143: 0 | AV143: 0 | AW143: 0 | AX143: 0 | AY143: 0 | AZ143: https://base-inies.fr/consultation/infos-produit/42364 | BA143: 1108 | BB143: 0.942 | BC143: 1.4 | BD143: 1.32 | BE143: 0.762 | BF143: 1.2 | BG143: 3.93 | BH143: 0.92 | BI143: 0.4 | BJ143: 0.7
A144: GGL PK08 62 Standard | B144: GGL | C144: PK08 | D144: 62 | E144: MANUAL | F144: Standard | G144: GGL 62 | H144: GPL 62 | I144: ok | J144: GPL | K144: 62 | L144: GPL PK08 62 Standard | M144: 62 | N144: 1 | O144: 1.2 | P144: 0.98 | Q144: 1.2 | R144: 0.93 | S144: 1.1 | T144: 0.9 | U144: 1.1 | V144: 1.2 | W144: 0.99 | X144: 0.81 | Y144: 0.93 | Z144: 0.26 | AA144: 0.08 | AB144: 0 | AC144: 0.26 | AD144: 0.09 | AE144: 0 | AF144: 0.04 | AG144: 0.08 | AH144: 0 | AI144: 0.12 | AJ144: 0 | AK144: 0.05 | AL144: 0 | AM144: 0.05 | AN144: 0 | AO144: 0.06 | AP144: 0 | AQ144: 0.06 | AR144: 0.47 | AS144: 0 | AT144: 0.08 | AU144: 0 | AV144: 0 | AW144: 0 | AX144: 0 | AY144: 0 | AZ144: Pas de FDES en ligne pour la solution choisie | BA144: 1109 | BB144: 0.942 | BC144: 1.4 | BD144: 1.32 | BE144: 0.762 | BF144: 1.2 | BG144: 3.93 | BH144: 0.92 | BI144: 0.4 | BJ144: 0.7
A145: GGL PK08 62 Standard | B145: GGL | C145: PK08 | D145: 62 | E145: ELECTRIC | F145: Standard | G145: GGL 62 | H145: GPL 62 | I145: ok | J145: GPL | K145: 62 | L145: GPL PK08 62 Standard | M145: 62 | N145: 1 | O145: 1.2 | P145: 0.98 | Q145: 1.2 | R145: 0.93 | S145: 1.1 | T145: 0.9 | U145: 1.1 | V145: 1.2 | W145: 0.99 | X145: 0.81 | Y145: 0.93 | Z145: 0.26 | AA145: 0.08 | AB145: 0 | AC145: 0.26 | AD145: 0.09 | AE145: 0 | AF145: 0.04 | AG145: 0.08 | AH145: 0 | AI145: 0.12 | AJ145: 0 | AK145: 0.05 | AL145: 0 | AM145: 0.05 | AN145: 0 | AO145: 0.06 | AP145: 0 | AQ145: 0.06 | AR145: 0.47 | AS145: 0 | AT145: 0.08 | AU145: 0 | AV145: 0 | AW145: 0 | AX145: 0 | AY145: 0 | AZ145: Pas de FDES en ligne pour la solution choisie | BA145: 1110 | BB145: 0.942 | BC145: 1.4 | BD145: 1.32 | BE145: 0.762 | BF145: 1.2 | BG145: 3.93 | BH145: 0.92 | BI145: 0.4 | BJ145: 0.7
A146: GGL PK08 66 Standard | B146: GGL | C146: PK08 | D146: 66 | E146: MANUAL | F146: Standard | G146: GGL 66 | H146: GPL 66 | I146: ok | J146: GPL | K146: 66 | L146: GPL PK08 66 Standard | M146: 66 | N146: 1.1 | O146: 1.3 | P146: 1 | Q146: 1.2 | R146: 0.97 | S146: 1.1 | T146: 0.94 | U146: 1.1 | V146: 1.2 | W146: 1 | X146: 0.85 | Y146: 0.97 | Z146: 0.21 | AA146: 0.09 | AB146: 0 | AC146: 0.21 | AD146: 0.09 | AE146: 0 | AF146: 0.03 | AG146: 0.08 | AH146: 0 | AI146: 0.12 | AJ146: 0 | AK146: 0.06 | AL146: 0 | AM146: 0.06 | AN146: 0 | AO146: 0.06 | AP146: 0 | AQ146: 0.06 | AR146: 0.43 | AS146: 0 | AT146: 0.07 | AU146: 0 | AV146: 0 | AW146: 0 | AX146: 0 | AY146: 0 | AZ146: Pas de FDES en ligne pour la solution choisie | BA146: 1111 | BB146: 0.942 | BC146: 1.4 | BD146: 1.32 | BE146: 0.762 | BF146: 1.2 | BG146: 3.93 | BH146: 0.92 | BI146: 0.4 | BJ146: 0.7
A147: GGL PK08 66 Standard | B147: GGL | C147: PK08 | D147: 66 | E147: ELECTRIC | F147: Standard | G147: GGL 66 | H147: GPL 66 | I147: ok | J147: GPL | K147: 66 | L147: GPL PK08 66 Standard | M147: 66 | N147: 1.1 | O147: 1.3 | P147: 1 | Q147: 1.2 | R147: 0.97 | S147: 1.1 | T147: 0.94 | U147: 1.1 | V147: 1.2 | W147: 1 | X147: 0.85 | Y147: 0.97 | Z147: 0.21 | AA147: 0.09 | AB147: 0 | AC147: 0.21 | AD147: 0.09 | AE147: 0 | AF147: 0.03 | AG147: 0.08 | AH147: 0 | AI147: 0.12 | AJ147: 0 | AK147: 0.06 | AL147: 0 | AM147: 0.06 | AN147: 0 | AO147: 0.06 | AP147: 0 | AQ147: 0.06 | AR147: 0.43 | AS147: 0 | AT147: 0.07 | AU147: 0 | AV147: 0 | AW147: 0 | AX147: 0 | AY147: 0 | AZ147: Pas de FDES en ligne pour la solution choisie | BA147: 1112 | BB147: 0.942 | BC147: 1.4 | BD147: 1.32 | BE147: 0.762 | BF147: 1.2 | BG147: 3.93 | BH147: 0.92 | BI147: 0.4 | BJ147: 0.7
A148: GGL PK08 66 Standard | B148: GGL | C148: PK08 | D148: 66 | E148: SOLAR | F148: Standard | G148: GGL 66 | H148: GPL 66 | I148: ok | J148: GPL | K148: 66 | L148: GPL PK08 66 Standard | M148: 66 | N148: 1.1 | O148: 1.3 | P148: 1 | Q148: 1.2 | R148: 0.97 | S148: 1.1 | T148: 0.94 | U148: 1.1 | V148: 1.2 | W148: 1 | X148: 0.85 | Y148: 0.97 | Z148: 0.21 | AA148: 0.09 | AB148: 0 | AC148: 0.21 | AD148: 0.09 | AE148: 0 | AF148: 0.03 | AG148: 0.08 | AH148: 0 | AI148: 0.12 | AJ148: 0 | AK148: 0.06 | AL148: 0 | AM148: 0.06 | AN148: 0 | AO148: 0.06 | AP148: 0 | AQ148: 0.06 | AR148: 0.43 | AS148: 0 | AT148: 0.07 | AU148: 0 | AV148: 0 | AW148: 0 | AX148: 0 | AY148: 0 | AZ148: Pas de FDES en ligne pour la solution choisie | BA148: 1113 | BB148: 0.942 | BC148: 1.4 | BD148: 1.32 | BE148: 0.762 | BF148: 1.2 | BG148: 3.93 | BH148: 0.92 | BI148: 0.4 | BJ148: 0.7
A149: GGL PK08 70 Standard | B149: GGL | C149: PK08 | D149: 70 | E149: MANUAL | F149: Standard | G149: GGL 70 | H149: GPL 70 | I149: ok | J149: GPL | K149: 70 | L149: GPL PK08 70 Standard | M149: 70 | N149: 1.4 | O149: 1.9 | P149: 1.3 | Q149: 1.7 | R149: 1.2 | S149: 1.5 | T149: 1.1 | U149: 1.5 | V149: 1.7 | W149: 1.3 | X149: 1 | Y149: 1.2 | Z149: 0.27 | AA149: 0.07 | AB149: 0 | AC149: 0.27 | AD149: 0.07 | AE149: 0 | AF149: 0.05 | AG149: 0.09 | AH149: 0 | AI149: 0.14 | AJ149: 0 | AK149: 0.07 | AL149: 0 | AM149: 0.07 | AN149: 0 | AO149: 0.07 | AP149: 0 | AQ149: 0.07 | AR149: 0.47 | AS149: 0 | AT149: 0.08 | AU149: 0 | AV149: 0 | AW149: 0 | AX149: 0 | AY149: 0 | AZ149: Pas de FDES en ligne pour la solution choisie | BA149: 1116 | BB149: 0.942 | BC149: 1.4 | BD149: 1.32 | BE149: 0.762 | BF149: 1.2 | BG149: 3.93 | BH149: 0.92 | BI149: 0.4 | BJ149: 0.7
A150: GGL PK08 70 Standard | B150: GGL | C150: PK08 | D150: 70 | E150: MANUALBOTTOM | F150: Standard | G150: GGL 70 | H150: GPL 70 | I150: ok | J150: GPL | K150: 70 | L150: GPL PK08 70 Standard | M150: 70 | N150: 1.4 | O150: 1.9 | P150: 1.3 | Q150: 1.7 | R150: 1.2 | S150: 1.5 | T150: 1.1 | U150: 1.5 | V150: 1.7 | W150: 1.3 | X150: 1 | Y150: 1.2 | Z150: 0.27 | AA150: 0.07 | AB150: 0 | AC150: 0.27 | AD150: 0.07 | AE150: 0 | AF150: 0.05 | AG150: 0.09 | AH150: 0 | AI150: 0.14 | AJ150: 0 | AK150: 0.07 | AL150: 0 | AM150: 0.07 | AN150: 0 | AO150: 0.07 | AP150: 0 | AQ150: 0.07 | AR150: 0.47 | AS150: 0 | AT150: 0.08 | AU150: 0 | AV150: 0 | AW150: 0 | AX150: 0 | AY150: 0 | AZ150: Pas de FDES en ligne pour la solution choisie | BA150: 1117 | BB150: 0.942 | BC150: 1.4 | BD150: 1.32 | BE150: 0.762 | BF150: 1.2 | BG150: 3.93 | BH150: 0.92 | BI150: 0.4 | BJ150: 0.7
A151: GGL PK08 70Q Standard | B151: GGL | C151: PK08 | D151: 70Q | E151: MANUAL | F151: Standard | G151: GGL 70Q | H151: GPL 70 | I151: ok | J151: GPL | K151: 70 | L151: GPL PK08 70 Standard | M151: 70 | N151: 1.4 | O151: 1.9 | P151: 1.3 | Q151: 1.7 | R151: 1.2 | S151: 1.5 | T151: 1.1 | U151: 1.5 | V151: 1.7 | W151: 1.3 | X151: 1 | Y151: 1.2 | Z151: 0.27 | AA151: 0.07 | AB151: 0 | AC151: 0.27 | AD151: 0.07 | AE151: 0 | AF151: 0.05 | AG151: 0.09 | AH151: 0 | AI151: 0.14 | AJ151: 0 | AK151: 0.07 | AL151: 0 | AM151: 0.07 | AN151: 0 | AO151: 0.07 | AP151: 0 | AQ151: 0.07 | AR151: 0.47 | AS151: 0 | AT151: 0.08 | AU151: 0 | AV151: 0 | AW151: 0 | AX151: 0 | AY151: 0 | AZ151: Pas de FDES en ligne pour la solution choisie | BA151: 1118 | BB151: 0.942 | BC151: 1.4 | BD151: 1.32 | BE151: 0.762 | BF151: 1.2 | BG151: 3.93 | BH151: 0.92 | BI151: 0.4 | BJ151: 0.7
A152: GGL PK08 76F Standard | B152: GGL | C152: PK08 | D152: 76F | E152: MANUAL | F152: Standard | G152: GGL 76F | H152: GPL 70 | I152: ok | J152: GPL | K152: 70 | L152: GPL PK08 70 Standard | M152: 76 | N152: 1.4 | O152: 1.9 | P152: 1.3 | Q152: 1.7 | R152: 1.2 | S152: 1.5 | T152: 1.1 | U152: 1.5 | V152: 1.7 | W152: 1.3 | X152: 1 | Y152: 1.2 | Z152: 0.13 | AA152: 0.05 | AB152: 0 | AC152: 0.13 | AD152: 0.05 | AE152: 0 | AF152: 0.02 | AG152: 0.09 | AH152: 0 | AI152: 0.12 | AJ152: 0 | AK152: 0.07 | AL152: 0 | AM152: 0.07 | AN152: 0 | AO152: 0.07 | AP152: 0 | AQ152: 0.07 | AR152: 0.43 | AS152: 0 | AT152: 0.07 | AU152: 0 | AV152: 0 | AW152: 0 | AX152: 0 | AY152: 0 | AZ152: https://base-inies.fr/consultation/infos-produit/42364 | BA152: 1119 | BB152: 0.942 | BC152: 1.4 | BD152: 1.32 | BE152: 0.762 | BF152: 1.2 | BG152: 3.93 | BH152: 0.92 | BI152: 0.4 | BJ152: 0.7
A153: GGL PK10 57 Standard | B153: GGL | C153: PK10 | D153: 57 | E153: ELECTRIC | F153: Standard | G153: GGL 57 | H153: GPL 70 | I153: ok | J153: GPL | K153: 70 | L153: GPL PK10 70 Standard | M153: 57 | N153: 1.4 | O153: 1.9 | P153: 1.3 | Q153: 1.7 | R153: 1.2 | S153: 1.5 | T153: 1.1 | U153: 1.5 | V153: 1.7 | W153: 1.3 | X153: 1 | Y153: 1.2 | Z153: 0.15 | AA153: 0.05 | AB153: 0 | AC153: 0.15 | AD153: 0.07 | AE153: 0 | AF153: 0.03 | AG153: 0.09 | AH153: 0 | AI153: 0.12 | AJ153: 0 | AK153: 0.06 | AL153: 0 | AM153: 0.06 | AN153: 0 | AO153: 0.07 | AP153: 0 | AQ153: 0.07 | AR153: 0.44 | AS153: 0 | AT153: 0.08 | AU153: 0 | AV153: 0 | AW153: 0 | AX153: 0 | AY153: 0 | AZ153: https://base-inies.fr/consultation/infos-produit/42364 | BA153: 1120 | BB153: 0.942 | BC153: 1.6 | BD153: 1.51 | BE153: 0.762 | BF153: 1.41 | BG153: 4.34 | BH153: 1.07 | BI153: 0.44 | BJ153: 0.71
A154: GGL PK10 57 Standard | B154: GGL | C154: PK10 | D154: 57 | E154: MANUAL | F154: Standard | G154: GGL 57 | H154: GPL 70 | I154: ok | J154: GPL | K154: 70 | L154: GPL PK10 70 Standard | M154: 57 | N154: 1.4 | O154: 1.9 | P154: 1.3 | Q154: 1.7 | R154: 1.2 | S154: 1.5 | T154: 1.1 | U154: 1.5 | V154: 1.7 | W154: 1.3 | X154: 1 | Y154: 1.2 | Z154: 0.15 | AA154: 0.05 | AB154: 0 | AC154: 0.15 | AD154: 0.07 | AE154: 0 | AF154: 0.03 | AG154: 0.09 | AH154: 0 | AI154: 0.12 | AJ154: 0 | AK154: 0.06 | AL154: 0 | AM154: 0.06 | AN154: 0 | AO154: 0.07 | AP154: 0 | AQ154: 0.07 | AR154: 0.44 | AS154: 0 | AT154: 0.08 | AU154: 0 | AV154: 0 | AW154: 0 | AX154: 0 | AY154: 0 | AZ154: https://base-inies.fr/consultation/infos-produit/42364 | BA154: 1121 | BB154: 0.942 | BC154: 1.6 | BD154: 1.51 | BE154: 0.762 | BF154: 1.41 | BG154: 4.34 | BH154: 1.07 | BI154: 0.44 | BJ154: 0.71
A155: GGL PK10 62 Standard | B155: GGL | C155: PK10 | D155: 62 | E155: MANUAL | F155: Standard | G155: GGL 62 | H155: GPL 62 | I155: ok | J155: GPL | K155: 62 | L155: GPL PK10 62 Standard | M155: 62 | N155: 1 | O155: 1.2 | P155: 0.96 | Q155: 1.1 | R155: 0.91 | S155: 1.1 | T155: 0.89 | U155: 1 | V155: 1.1 | W155: 0.98 | X155: 0.8 | Y155: 0.92 | Z155: 0.27 | AA155: 0.08 | AB155: 0 | AC155: 0.27 | AD155: 0.09 | AE155: 0 | AF155: 0.05 | AG155: 0.08 | AH155: 0 | AI155: 0.12 | AJ155: 0 | AK155: 0.05 | AL155: 0 | AM155: 0.05 | AN155: 0 | AO155: 0.05 | AP155: 0 | AQ155: 0.05 | AR155: 0.48 | AS155: 0 | AT155: 0.08 | AU155: 0 | AV155: 0 | AW155: 0 | AX155: 0 | AY155: 0 | AZ155: Pas de FDES en ligne pour la solution choisie | BA155: 1122 | BB155: 0.942 | BC155: 1.6 | BD155: 1.51 | BE155: 0.762 | BF155: 1.41 | BG155: 4.34 | BH155: 1.07 | BI155: 0.44 | BJ155: 0.71
A156: GGL PK10 62 Standard | B156: GGL | C156: PK10 | D156: 62 | E156: ELECTRIC | F156: Standard | G156: GGL 62 | H156: GPL 62 | I156: ok | J156: GPL | K156: 62 | L156: GPL PK10 62 Standard | M156: 62 | N156: 1 | O156: 1.2 | P156: 0.96 | Q156: 1.1 | R156: 0.91 | S156: 1.1 | T156: 0.89 | U156: 1 | V156: 1.1 | W156: 0.98 | X156: 0.8 | Y156: 0.92 | Z156: 0.27 | AA156: 0.08 | AB156: 0 | AC156: 0.27 | AD156: 0.09 | AE156: 0 | AF156: 0.05 | AG156: 0.08 | AH156: 0 | AI156: 0.12 | AJ156: 0 | AK156: 0.05 | AL156: 0 | AM156: 0.05 | AN156: 0 | AO156: 0.05 | AP156: 0 | AQ156: 0.05 | AR156: 0.48 | AS156: 0 | AT156: 0.08 | AU156: 0 | AV156: 0 | AW156: 0 | AX156: 0 | AY156: 0 | AZ156: Pas de FDES en ligne pour la solution choisie | BA156: 1123 | BB156: 0.942 | BC156: 1.6 | BD156: 1.51 | BE156: 0.762 | BF156: 1.41 | BG156: 4.34 | BH156: 1.07 | BI156: 0.44 | BJ156: 0.71
A157: GGL PK10 66 Standard | B157: GGL | C157: PK10 | D157: 66 | E157: MANUAL | F157: Standard | G157: GGL 66 | H157: GPL 66 | I157: ok | J157: GPL | K157: 66 | L157: GPL PK10 66 Standard | M157: 66 | N157: 1.1 | O157: 1.3 | P157: 1 | Q157: 1.2 | R157: 0.95 | S157: 1.1 | T157: 0.93 | U157: 1.1 | V157: 1.2 | W157: 1 | X157: 0.83 | Y157: 0.96 | Z157: 0.21 | AA157: 0.09 | AB157: 0 | AC157: 0.21 | AD157: 0.09 | AE157: 0 | AF157: 0.04 | AG157: 0.08 | AH157: 0 | AI157: 0.12 | AJ157: 0 | AK157: 0.06 | AL157: 0 | AM157: 0.06 | AN157: 0 | AO157: 0.06 | AP157: 0 | AQ157: 0.06 | AR157: 0.44 | AS157: 0 | AT157: 0.08 | AU157: 0 | AV157: 0 | AW157: 0 | AX157: 0 | AY157: 0 | AZ157: Pas de FDES en ligne pour la solution choisie | BA157: 1124 | BB157: 0.942 | BC157: 1.6 | BD157: 1.51 | BE157: 0.762 | BF157: 1.41 | BG157: 4.34 | BH157: 1.07 | BI157: 0.44 | BJ157: 0.71
A158: GGL PK10 66 Standard | B158: GGL | C158: PK10 | D158: 66 | E158: ELECTRIC | F158: Standard | G158: GGL 66 | H158: GPL 66 | I158: ok | J158: GPL | K158: 66 | L158: GPL PK10 66 Standard | M158: 66 | N158: 1.1 | O158: 1.3 | P158: 1 | Q158: 1.2 | R158: 0.95 | S158: 1.1 | T158: 0.93 | U158: 1.1 | V158: 1.2 | W158: 1 | X158: 0.83 | Y158: 0.96 | Z158: 0.21 | AA158: 0.09 | AB158: 0 | AC158: 0.21 | AD158: 0.09 | AE158: 0 | AF158: 0.04 | AG158: 0.08 | AH158: 0 | AI158: 0.12 | AJ158: 0 | AK158: 0.06 | AL158: 0 | AM158: 0.06 | AN158: 0 | AO158: 0.06 | AP158: 0 | AQ158: 0.06 | AR158: 0.44 | AS158: 0 | AT158: 0.08 | AU158: 0 | AV158: 0 | AW158: 0 | AX158: 0 | AY158: 0 | AZ158: Pas de FDES en ligne pour la solution choisie | BA158: 1125 | BB158: 0.942 | BC158: 1.6 | BD158: 1.51 | BE158: 0.762 | BF158: 1.41 | BG158: 4.34 | BH158: 1.07 | BI158: 0.44 | BJ158: 0.71
A159: GGL PK10 66 Standard | B159: GGL | C159: PK10 | D159: 66 | E159: SOLAR | F159: Standard | G159: GGL 66 | H159: GPL 66 | I159: ok | J159: GPL | K159: 66 | L159: GPL PK10 66 Standard | M159: 66 | N159: 1.1 | O159: 1.3 | P159: 1 | Q159: 1.2 | R159: 0.95 | S159: 1.1 | T159: 0.93 | U159: 1.1 | V159: 1.2 | W159: 1 | X159: 0.83 | Y159: 0.96 | Z159: 0.21 | AA159: 0.09 | AB159: 0 | AC159: 0.21 | AD159: 0.09 | AE159: 0 | AF159: 0.04 | AG159: 0.08 | AH159: 0 | AI159: 0.12 | AJ159: 0 | AK159: 0.06 | AL159: 0 | AM159: 0.06 | AN159: 0 | AO159: 0.06 | AP159: 0 | AQ159: 0.06 | AR159: 0.44 | AS159: 0 | AT159: 0.08 | AU159: 0 | AV159: 0 | AW159: 0 | AX159: 0 | AY159: 0 | AZ159: Pas de FDES en ligne pour la solution choisie | BA159: 1126 | BB159: 0.942 | BC159: 1.6 | BD159: 1.51 | BE159: 0.762 | BF159: 1.41 | BG159: 4.34 | BH159: 1.07 | BI159: 0.44 | BJ159: 0.71
A160: GGL PK10 70 Standard | B160: GGL | C160: PK10 | D160: 70 | E160: ELECTRIC | F160: Standard | G160: GGL 70 | H160: GPL 70 | I160: ok | J160: GPL | K160: 70 | L160: GPL PK10 70 Standard | M160: 70 | N160: 1.4 | O160: 1.9 | P160: 1.3 | Q160: 1.7 | R160: 1.2 | S160: 1.5 | T160: 1.1 | U160: 1.5 | V160: 1.7 | W160: 1.3 | X160: 1 | Y160: 1.2 | Z160: 0.27 | AA160: 0.07 | AB160: 0 | AC160: 0.27 | AD160: 0.07 | AE160: 0 | AF160: 0.05 | AG160: 0.09 | AH160: 0 | AI160: 0.14 | AJ160: 0 | AK160: 0.06 | AL160: 0 | AM160: 0.06 | AN160: 0 | AO160: 0.07 | AP160: 0 | AQ160: 0.07 | AR160: 0.48 | AS160: 0 | AT160: 0.08 | AU160: 0 | AV160: 0 | AW160: 0 | AX160: 0 | AY160: 0 | AZ160: Pas de FDES en ligne pour la solution choisie | BA160: 1130 | BB160: 0.942 | BC160: 1.6 | BD160: 1.51 | BE160: 0.762 | BF160: 1.41 | BG160: 4.34 | BH160: 1.07 | BI160: 0.44 | BJ160: 0.71
A161: GGL PK10 70 Standard | B161: GGL | C161: PK10 | D161: 70 | E161: MANUALBOTTOM | F161: Standard | G161: GGL 70 | H161: GPL 70 | I161: ok | J161: GPL | K161: 70 | L161: GPL PK10 70 Standard | M161: 70 | N161: 1.4 | O161: 1.9 | P161: 1.3 | Q161: 1.7 | R161: 1.2 | S161: 1.5 | T161: 1.1 | U161: 1.5 | V161: 1.7 | W161: 1.3 | X161: 1 | Y161: 1.2 | Z161: 0.27 | AA161: 0.07 | AB161: 0 | AC161: 0.27 | AD161: 0.07 | AE161: 0 | AF161: 0.05 | AG161: 0.09 | AH161: 0 | AI161: 0.14 | AJ161: 0 | AK161: 0.06 | AL161: 0 | AM161: 0.06 | AN161: 0 | AO161: 0.07 | AP161: 0 | AQ161: 0.07 | AR161: 0.48 | AS161: 0 | AT161: 0.08 | AU161: 0 | AV161: 0 | AW161: 0 | AX161: 0 | AY161: 0 | AZ161: Pas de FDES en ligne pour la solution choisie | BA161: 1131 | BB161: 0.942 | BC161: 1.6 | BD161: 1.51 | BE161: 0.762 | BF161: 1.41 | BG161: 4.34 | BH161: 1.07 | BI161: 0.44 | BJ161: 0.71
A162: GGL PK10 70Q Standard | B162: GGL | C162: PK10 | D162: 70Q | E162: MANUAL | F162: Standard | G162: GGL 70Q | H162: GPL 70 | I162: ok | J162: GPL | K162: 70 | L162: GPL PK10 70 Standard | M162: 70 | N162: 1.4 | O162: 1.9 | P162: 1.3 | Q162: 1.7 | R162: 1.2 | S162: 1.5 | T162: 1.1 | U162: 1.5 | V162: 1.7 | W162: 1.3 | X162: 1 | Y162: 1.2 | Z162: 0.27 | AA162: 0.07 | AB162: 0 | AC162: 0.27 | AD162: 0.07 | AE162: 0 | AF162: 0.05 | AG162: 0.09 | AH162: 0 | AI162: 0.14 | AJ162: 0 | AK162: 0.06 | AL162: 0 | AM162: 0.06 | AN162: 0 | AO162: 0.07 | AP162: 0 | AQ162: 0.07 | AR162: 0.48 | AS162: 0 | AT162: 0.08 | AU162: 0 | AV162: 0 | AW162: 0 | AX162: 0 | AY162: 0 | AZ162: Pas de FDES en ligne pour la solution choisie | BA162: 1132 | BB162: 0.942 | BC162: 1.6 | BD162: 1.51 | BE162: 0.762 | BF162: 1.41 | BG162: 4.34 | BH162: 1.07 | BI162: 0.44 | BJ162: 0.71
A163: GGL PK10 76F Standard | B163: GGL | C163: PK10 | D163: 76F | E163: MANUAL | F163: Standard | G163: GGL 76F | H163: GPL 70 | I163: ok | J163: GPL | K163: 70 | L163: GPL PK10 70 Standard | M163: 76 | N163: 1.4 | O163: 1.9 | P163: 1.3 | Q163: 1.7 | R163: 1.2 | S163: 1.5 | T163: 1.1 | U163: 1.5 | V163: 1.7 | W163: 1.3 | X163: 1 | Y163: 1.2 | Z163: 0.14 | AA163: 0.05 | AB163: 0 | AC163: 0.14 | AD163: 0.05 | AE163: 0 | AF163: 0.03 | AG163: 0.09 | AH163: 0 | AI163: 0.12 | AJ163: 0 | AK163: 0.07 | AL163: 0 | AM163: 0.07 | AN163: 0 | AO163: 0.07 | AP163: 0 | AQ163: 0.07 | AR163: 0.44 | AS163: 0 | AT163: 0.08 | AU163: 0 | AV163: 0 | AW163: 0 | AX163: 0 | AY163: 0 | AZ163: https://base-inies.fr/consultation/infos-produit/42364 | BA163: 1133 | BB163: 0.942 | BC163: 1.6 | BD163: 1.51 | BE163: 0.762 | BF163: 1.41 | BG163: 4.34 | BH163: 1.07 | BI163: 0.44 | BJ163: 0.71
A164: GGL PK25 62 Standard | B164: GGL | C164: PK25 | D164: 62 | E164: MANUAL | F164: Standard | G164: GGL 62 | H164: GPL 62 | I164: ok | J164: GPL | K164: 62 | L164: GPL PK25 62 Standard | M164: 62 | N164: 1.3 | O164: 1.4 | P164: 1.2 | Q164: 1.3 | R164: 1.1 | S164: 1.2 | T164: 1.1 | U164: 1.2 | V164: 1.3 | W164: 1.1 | X164: 0.96 | Y164: 1 | Z164: 0.19 | AA164: 0.07 | AB164: 0 | AC164: 0.19 | AD164: 0.08 | AE164: 0 | AF164: 0.03 | AG164: 0.09 | AH164: 0 | AI164: 0.12 | AJ164: 0 | AK164: 0.06 | AL164: 0 | AM164: 0.06 | AN164: 0 | AO164: 0.07 | AP164: 0 | AQ164: 0.07 | AR164: 0.35 | AS164: 0 | AT164: 0.06 | AU164: 0 | AV164: 0 | AW164: 0 | AX164: 0 | AY164: 0 | AZ164: Pas de FDES en ligne pour la solution choisie | BA164: 1135 | BB164: 0.942 | BC164: 0.55 | BD164: 0.52 | BE164: 0.762 | BF164: 0.36 | BG164: 2.24 | BH164: 0.27 | BI164: 0.25 | BJ164: 0.52
A165: GGL PK25 62 Standard | B165: GGL | C165: PK25 | D165: 62 | E165: ELECTRIC | F165: Standard | G165: GGL 62 | H165: GPL 62 | I165: ok | J165: GPL | K165: 62 | L165: GPL PK25 62 Standard | M165: 62 | N165: 1.3 | O165: 1.4 | P165: 1.2 | Q165: 1.3 | R165: 1.1 | S165: 1.2 | T165: 1.1 | U165: 1.2 | V165: 1.3 | W165: 1.1 | X165: 0.96 | Y165: 1 | Z165: 0.19 | AA165: 0.07 | AB165: 0 | AC165: 0.19 | AD165: 0.08 | AE165: 0 | AF165: 0.03 | AG165: 0.09 | AH165: 0 | AI165: 0.12 | AJ165: 0 | AK165: 0.06 | AL165: 0 | AM165: 0.06 | AN165: 0 | AO165: 0.07 | AP165: 0 | AQ165: 0.07 | AR165: 0.35 | AS165: 0 | AT165: 0.06 | AU165: 0 | AV165: 0 | AW165: 0 | AX165: 0 | AY165: 0 | AZ165: Pas de FDES en ligne pour la solution choisie | BA165: 1136 | BB165: 0.942 | BC165: 0.55 | BD165: 0.52 | BE165: 0.762 | BF165: 0.36 | BG165: 2.24 | BH165: 0.27 | BI165: 0.25 | BJ165: 0.52
A166: GGL PK25 66 Standard | B166: GGL | C166: PK25 | D166: 66 | E166: MANUAL | F166: Standard | G166: GGL 66 | H166: GPL 66 | I166: ok | J166: GPL | K166: 66 | L166: GPL PK25 66 Standard | M166: 66 | N166: 1.3 | O166: 1.5 | P166: 1.2 | Q166: 1.4 | R166: 1.1 | S166: 1.3 | T166: 1.1 | U166: 1.2 | V166: 1.4 | W166: 1.1 | X166: 0.98 | Y166: 1.1 | Z166: 0.16 | AA166: 0.08 | AB166: 0 | AC166: 0.16 | AD166: 0.08 | AE166: 0 | AF166: 0.03 | AG166: 0.09 | AH166: 0 | AI166: 0.12 | AJ166: 0 | AK166: 0.07 | AL166: 0 | AM166: 0.07 | AN166: 0 | AO166: 0.07 | AP166: 0 | AQ166: 0.07 | AR166: 0.32 | AS166: 0 | AT166: 0.06 | AU166: 0 | AV166: 0 | AW166: 0 | AX166: 0 | AY166: 0 | AZ166: Pas de FDES en ligne pour la solution choisie | BA166: 1137 | BB166: 0.942 | BC166: 0.55 | BD166: 0.52 | BE166: 0.762 | BF166: 0.36 | BG166: 2.24 | BH166: 0.27 | BI166: 0.25 | BJ166: 0.52
A167: GGL PK25 76F Standard | B167: GGL | C167: PK25 | D167: 76F | E167: MANUAL | F167: Standard | G167: GGL 76F | H167: GPL 70 | I167: ok | J167: GPL | K167: 70 | L167: GPL PK25 70 Standard | M167: 76 | N167: 1.5 | O167: 1.9 | P167: 1.4 | Q167: 1.7 | R167: 1.3 | S167: 1.6 | T167: 1.3 | U167: 1.5 | V167: 1.7 | W167: 1.4 | X167: 1.1 | Y167: 1.3 | Z167: 0.14 | AA167: 0.05 | AB167: 0 | AC167: 0.14 | AD167: 0.05 | AE167: 0 | AF167: 0.03 | AG167: 0.09 | AH167: 0 | AI167: 0.12 | AJ167: 0 | AK167: 0.07 | AL167: 0 | AM167: 0.07 | AN167: 0 | AO167: 0.08 | AP167: 0 | AQ167: 0.08 | AR167: 0.33 | AS167: 0 | AT167: 0.06 | AU167: 0 | AV167: 0 | AW167: 0 | AX167: 0 | AY167: 0 | AZ167: Pas de FDES en ligne pour la solution choisie | BA167: 1138 | BB167: 0.942 | BC167: 0.55 | BD167: 0.52 | BE167: 0.762 | BF167: 0.36 | BG167: 2.24 | BH167: 0.27 | BI167: 0.25 | BJ167: 0.52
A168: GGL SK01 62 Standard | B168: GGL | C168: SK01 | D168: 62 | E168: MANUAL | F168: Standard | G168: GGL 62 | H168: GPL 62 | I168: ok | J168: GPL | K168: 62 | L168: GPL SK01 62 Standard | M168: 62 | N168: 1.2 | O168: 1.3 | P168: 1.1 | Q168: 1.2 | R168: 1 | S168: 1.2 | T168: 0.99 | U168: 1.1 | V168: 1.2 | W168: 1 | X168: 0.88 | Y168: 0.98 | Z168: 0.23 | AA168: 0.08 | AB168: 0 | AC168: 0.23 | AD168: 0.08 | AE168: 0 | AF168: 0.04 | AG168: 0.08 | AH168: 0 | AI168: 0.12 | AJ168: 0 | AK168: 0.06 | AL168: 0 | AM168: 0.06 | AN168: 0 | AO168: 0.06 | AP168: 0 | AQ168: 0.06 | AR168: 0.41 | AS168: 0 | AT168: 0.07 | AU168: 0 | AV168: 0 | AW168: 0 | AX168: 0 | AY168: 0 | AZ168: Pas de FDES en ligne pour la solution choisie | BA168: 1139 | BB168: 1.14 | BC168: 0.7 | BD168: 0.8 | BE168: 0.96 | BF168: 0.5 | BG168: 2.93 | BH168: 0.49 | BI168: 0.31 | BJ168: 0.61
A169: GGL SK01 62 Standard | B169: GGL | C169: SK01 | D169: 62 | E169: ELECTRIC | F169: Standard | G169: GGL 62 | H169: GPL 62 | I169: ok | J169: GPL | K169: 62 | L169: GPL SK01 62 Standard | M169: 62 | N169: 1.2 | O169: 1.3 | P169: 1.1 | Q169: 1.2 | R169: 1 | S169: 1.2 | T169: 0.99 | U169: 1.1 | V169: 1.2 | W169: 1 | X169: 0.88 | Y169: 0.98 | Z169: 0.23 | AA169: 0.08 | AB169: 0 | AC169: 0.23 | AD169: 0.08 | AE169: 0 | AF169: 0.04 | AG169: 0.08 | AH169: 0 | AI169: 0.12 | AJ169: 0 | AK169: 0.06 | AL169: 0 | AM169: 0.06 | AN169: 0 | AO169: 0.06 | AP169: 0 | AQ169: 0.06 | AR169: 0.41 | AS169: 0 | AT169: 0.07 | AU169: 0 | AV169: 0 | AW169: 0 | AX169: 0 | AY169: 0 | AZ169: Pas de FDES en ligne pour la solution choisie | BA169: 1140 | BB169: 1.14 | BC169: 0.7 | BD169: 0.8 | BE169: 0.96 | BF169: 0.5 | BG169: 2.93 | BH169: 0.49 | BI169: 0.31 | BJ169: 0.61
A170: GGL SK01 66 Standard | B170: GGL | C170: SK01 | D170: 66 | E170: MANUAL | F170: Standard | G170: GGL 66 | H170: GPL 66 | I170: ok | J170: GPL | K170: 66 | L170: GPL SK01 66 Standard | M170: 66 | N170: 1.2 | O170: 1.4 | P170: 1.1 | Q170: 1.3 | R170: 1.1 | S170: 1.2 | T170: 1 | U170: 1.2 | V170: 1.3 | W170: 1.1 | X170: 0.91 | Y170: 1 | Z170: 0.18 | AA170: 0.08 | AB170: 0 | AC170: 0.18 | AD170: 0.09 | AE170: 0 | AF170: 0.03 | AG170: 0.09 | AH170: 0 | AI170: 0.12 | AJ170: 0 | AK170: 0.06 | AL170: 0 | AM170: 0.06 | AN170: 0 | AO170: 0.07 | AP170: 0 | AQ170: 0.07 | AR170: 0.38 | AS170: 0 | AT170: 0.06 | AU170: 0 | AV170: 0 | AW170: 0 | AX170: 0 | AY170: 0 | AZ170: Pas de FDES en ligne pour la solution choisie | BA170: 1141 | BB170: 1.14 | BC170: 0.7 | BD170: 0.8 | BE170: 0.96 | BF170: 0.5 | BG170: 2.93 | BH170: 0.49 | BI170: 0.31 | BJ170: 0.61
A171: GGL SK01 70Q Standard | B171: GGL | C171: SK01 | D171: 70Q | E171: MANUAL | F171: Standard | G171: GGL 70Q | H171: GPL 70 | I171: ok | J171: GPL | K171: 70 | L171: GPL SK01 70 Standard | M171: 70 | N171: 1.5 | O171: 1.9 | P171: 1.3 | Q171: 1.7 | R171: 1.2 | S171: 1.5 | T171: 1.2 | U171: 1.5 | V171: 1.7 | W171: 1.3 | X171: 1 | Y171: 1.2 | Z171: 0.23 | AA171: 0.06 | AB171: 0 | AC171: 0.23 | AD171: 0.06 | AE171: 0 | AF171: 0.04 | AG171: 0.09 | AH171: 0 | AI171: 0.14 | AJ171: 0 | AK171: 0.07 | AL171: 0 | AM171: 0.07 | AN171: 0 | AO171: 0.08 | AP171: 0 | AQ171: 0.08 | AR171: 0.41 | AS171: 0 | AT171: 0.07 | AU171: 0 | AV171: 0 | AW171: 0 | AX171: 0 | AY171: 0 | AZ171: Pas de FDES en ligne pour la solution choisie | BA171: 1142 | BB171: 1.14 | BC171: 0.7 | BD171: 0.8 | BE171: 0.96 | BF171: 0.5 | BG171: 2.93 | BH171: 0.49 | BI171: 0.31 | BJ171: 0.61
A172: GGL SK01 76F Standard | B172: GGL | C172: SK01 | D172: 76F | E172: MANUAL | F172: Standard | G172: GGL 76F | H172: GPL 70 | I172: ok | J172: GPL | K172: 70 | L172: GPL SK01 70 Standard | M172: 76 | N172: 1.5 | O172: 1.9 | P172: 1.3 | Q172: 1.7 | R172: 1.2 | S172: 1.5 | T172: 1.2 | U172: 1.5 | V172: 1.7 | W172: 1.3 | X172: 1 | Y172: 1.2 | Z172: 0.15 | AA172: 0.05 | AB172: 0 | AC172: 0.15 | AD172: 0.05 | AE172: 0 | AF172: 0.03 | AG172: 0.09 | AH172: 0 | AI172: 0.12 | AJ172: 0 | AK172: 0.06 | AL172: 0 | AM172: 0.06 | AN172: 0 | AO172: 0.08 | AP172: 0 | AQ172: 0.08 | AR172: 0.38 | AS172: 0 | AT172: 0.06 | AU172: 0 | AV172: 0 | AW172: 0 | AX172: 0 | AY172: 0 | AZ172: Pas de FDES en ligne pour la solution choisie | BA172: 1143 | BB172: 1.14 | BC172: 0.7 | BD172: 0.8 | BE172: 0.96 | BF172: 0.5 | BG172: 2.93 | BH172: 0.49 | BI172: 0.31 | BJ172: 0.61
A173: GGL SK06 54F Standard | B173: GGL | C173: SK06 | D173: 54F | E173: MANUAL | F173: Standard | G173: GGL 54F | H173: GPL 54F | I173: ok | J173: GPL | K173: 54F | L173: GPL SK06 54F Standard | M173: 54F | N173: 1.4 | O173: 1.9 | P173: 1.3 | Q173: 1.7 | R173: 1.2 | S173: 1.5 | T173: 1.2 | U173: 1.5 | V173: 1.7 | W173: 1.3 | X173: 1 | Y173: 1.2 | Z173: 0.41 | AA173: 0.05 | AB173: 0 | AC173: 0.41 | AD173: 0.05 | AE173: 0 | AF173: 0.07 | AG173: 0.08 | AH173: 0 | AI173: 0.15 | AJ173: 0 | AK173: 0.07 | AL173: 0 | AM173: 0.07 | AN173: 0 | AO173: 0.07 | AP173: 0 | AQ173: 0.07 | AR173: 0.57 | AS173: 0 | AT173: 0.1 | AU173: 0 | AV173: 0 | AW173: 0 | AX173: 0 | AY173: 0 | AZ173: https://base-inies.fr/consultation/infos-produit/42364 | BA173: 1144 | BB173: 1.14 | BC173: 1.18 | BD173: 1.34 | BE173: 0.96 | BF173: 0.98 | BG173: 3.89 | BH173: 0.94 | BI173: 0.4 | BJ173: 0.7
A174: GGL SK06 57 Standard | B174: GGL | C174: SK06 | D174: 57 | E174: ELECTRIC | F174: Standard | G174: GGL 57 | H174: GPL 70 | I174: ok | J174: GPL | K174: 70 | L174: GPL SK06 70 Standard | M174: 57 | N174: 1.4 | O174: 1.9 | P174: 1.3 | Q174: 1.7 | R174: 1.2 | S174: 1.5 | T174: 1.1 | U174: 1.4 | V174: 1.7 | W174: 1.3 | X174: 0.99 | Y174: 1.2 | Z174: 0.15 | AA174: 0.05 | AB174: 0 | AC174: 0.15 | AD174: 0.07 | AE174: 0 | AF174: 0.03 | AG174: 0.09 | AH174: 0 | AI174: 0.12 | AJ174: 0 | AK174: 0.06 | AL174: 0 | AM174: 0.06 | AN174: 0 | AO174: 0.07 | AP174: 0 | AQ174: 0.07 | AR174: 0.43 | AS174: 0 | AT174: 0.07 | AU174: 0 | AV174: 0 | AW174: 0 | AX174: 0 | AY174: 0 | AZ174: https://base-inies.fr/consultation/infos-produit/42364 | BA174: 1145 | BB174: 1.14 | BC174: 1.18 | BD174: 1.34 | BE174: 0.96 | BF174: 0.98 | BG174: 3.89 | BH174: 0.94 | BI174: 0.4 | BJ174: 0.7
A175: GGL SK06 57 Standard | B175: GGL | C175: SK06 | D175: 57 | E175: MANUAL | F175: Standard | G175: GGL 57 | H175: GPL 70 | I175: ok | J175: GPL | K175: 70 | L175: GPL SK06 70 Standard | M175: 57 | N175: 1.4 | O175: 1.9 | P175: 1.3 | Q175: 1.7 | R175: 1.2 | S175: 1.5 | T175: 1.1 | U175: 1.4 | V175: 1.7 | W175: 1.3 | X175: 0.99 | Y175: 1.2 | Z175: 0.15 | AA175: 0.05 | AB175: 0 | AC175: 0.15 | AD175: 0.07 | AE175: 0 | AF175: 0.03 | AG175: 0.09 | AH175: 0 | AI175: 0.12 | AJ175: 0 | AK175: 0.06 | AL175: 0 | AM175: 0.06 | AN175: 0 | AO175: 0.07 | AP175: 0 | AQ175: 0.07 | AR175: 0.43 | AS175: 0 | AT175: 0.07 | AU175: 0 | AV175: 0 | AW175: 0 | AX175: 0 | AY175: 0 | AZ175: https://base-inies.fr/consultation/infos-produit/42364 | BA175: 1146 | BB175: 1.14 | BC175: 1.18 | BD175: 1.34 | BE175: 0.96 | BF175: 0.98 | BG175: 3.89 | BH175: 0.94 | BI175: 0.4 | BJ175: 0.7
A176: GGL SK06 62 Standard | B176: GGL | C176: SK06 | D176: 62 | E176: MANUAL | F176: Standard | G176: GGL 62 | H176: GPL 62 | I176: ok | J176: GPL | K176: 62 | L176: GPL SK06 62 Standard | M176: 62 | N176: 1 | O176: 1.2 | P176: 0.96 | Q176: 1.1 | R176: 0.91 | S176: 1.1 | T176: 0.88 | U176: 1 | V176: 1.1 | W176: 0.98 | X176: 0.8 | Y176: 0.92 | Z176: 0.26 | AA176: 0.08 | AB176: 0 | AC176: 0.26 | AD176: 0.09 | AE176: 0 | AF176: 0.05 | AG176: 0.08 | AH176: 0 | AI176: 0.12 | AJ176: 0 | AK176: 0.05 | AL176: 0 | AM176: 0.05 | AN176: 0 | AO176: 0.05 | AP176: 0 | AQ176: 0.05 | AR176: 0.47 | AS176: 0 | AT176: 0.08 | AU176: 0 | AV176: 0 | AW176: 0 | AX176: 0 | AY176: 0 | AZ176: Pas de FDES en ligne pour la solution choisie | BA176: 1147 | BB176: 1.14 | BC176: 1.18 | BD176: 1.34 | BE176: 0.96 | BF176: 0.98 | BG176: 3.89 | BH176: 0.94 | BI176: 0.4 | BJ176: 0.7
A177: GGL SK06 62 Standard | B177: GGL | C177: SK06 | D177: 62 | E177: ELECTRIC | F177: Standard | G177: GGL 62 | H177: GPL 62 | I177: ok | J177: GPL | K177: 62 | L177: GPL SK06 62 Standard | M177: 62 | N177: 1 | O177: 1.2 | P177: 0.96 | Q177: 1.1 | R177: 0.91 | S177: 1.1 | T177: 0.88 | U177: 1 | V177: 1.1 | W177: 0.98 | X177: 0.8 | Y177: 0.92 | Z177: 0.26 | AA177: 0.08 | AB177: 0 | AC177: 0.26 | AD177: 0.09 | AE177: 0 | AF177: 0.05 | AG177: 0.08 | AH177: 0 | AI177: 0.12 | AJ177: 0 | AK177: 0.05 | AL177: 0 | AM177: 0.05 | AN177: 0 | AO177: 0.05 | AP177: 0 | AQ177: 0.05 | AR177: 0.47 | AS177: 0 | AT177: 0.08 | AU177: 0 | AV177: 0 | AW177: 0 | AX177: 0 | AY177: 0 | AZ177: Pas de FDES en ligne pour la solution choisie | BA177: 1148 | BB177: 1.14 | BC177: 1.18 | BD177: 1.34 | BE177: 0.96 | BF177: 0.98 | BG177: 3.89 | BH177: 0.94 | BI177: 0.4 | BJ177: 0.7
A178: GGL SK06 66 Standard | B178: GGL | C178: SK06 | D178: 66 | E178: MANUAL | F178: Standard | G178: GGL 66 | H178: GPL 66 | I178: ok | J178: GPL | K178: 66 | L178: GPL SK06 66 Standard | M178: 66 | N178: 1.1 | O178: 1.3 | P178: 1 | Q178: 1.2 | R178: 0.95 | S178: 1.1 | T178: 0.93 | U178: 1.1 | V178: 1.2 | W178: 1 | X178: 0.83 | Y178: 0.96 | Z178: 0.21 | AA178: 0.09 | AB178: 0 | AC178: 0.21 | AD178: 0.09 | AE178: 0 | AF178: 0.04 | AG178: 0.08 | AH178: 0 | AI178: 0.12 | AJ178: 0 | AK178: 0.06 | AL178: 0 | AM178: 0.06 | AN178: 0 | AO178: 0.06 | AP178: 0 | AQ178: 0.06 | AR178: 0.43 | AS178: 0 | AT178: 0.07 | AU178: 0 | AV178: 0 | AW178: 0 | AX178: 0 | AY178: 0 | AZ178: Pas de FDES en ligne pour la solution choisie | BA178: 1149 | BB178: 1.14 | BC178: 1.18 | BD178: 1.34 | BE178: 0.96 | BF178: 0.98 | BG178: 3.89 | BH178: 0.94 | BI178: 0.4 | BJ178: 0.7
A179: GGL SK06 66 Standard | B179: GGL | C179: SK06 | D179: 66 | E179: ELECTRIC | F179: Standard | G179: GGL 66 | H179: GPL 66 | I179: ok | J179: GPL | K179: 66 | L179: GPL SK06 66 Standard | M179: 66 | N179: 1.1 | O179: 1.3 | P179: 1 | Q179: 1.2 | R179: 0.95 | S179: 1.1 | T179: 0.93 | U179: 1.1 | V179: 1.2 | W179: 1 | X179: 0.83 | Y179: 0.96 | Z179: 0.21 | AA179: 0.09 | AB179: 0 | AC179: 0.21 | AD179: 0.09 | AE179: 0 | AF179: 0.04 | AG179: 0.08 | AH179: 0 | AI179: 0.12 | AJ179: 0 | AK179: 0.06 | AL179: 0 | AM179: 0.06 | AN179: 0 | AO179: 0.06 | AP179: 0 | AQ179: 0.06 | AR179: 0.43 | AS179: 0 | AT179: 0.07 | AU179: 0 | AV179: 0 | AW179: 0 | AX179: 0 | AY179: 0 | AZ179: Pas de FDES en ligne pour la solution choisie | BA179: 1150 | BB179: 1.14 | BC179: 1.18 | BD179: 1.34 | BE179: 0.96 | BF179: 0.98 | BG179: 3.89 | BH179: 0.94 | BI179: 0.4 | BJ179: 0.7
A180: GGL SK06 66 Standard | B180: GGL | C180: SK06 | D180: 66 | E180: SOLAR | F180: Standard | G180: GGL 66 | H180: GPL 66 | I180: ok | J180: GPL | K180: 66 | L180: GPL SK06 66 Standard | M180: 66 | N180: 1.1 | O180: 1.3 | P180: 1 | Q180: 1.2 | R180: 0.95 | S180: 1.1 | T180: 0.93 | U180: 1.1 | V180: 1.2 | W180: 1 | X180: 0.83 | Y180: 0.96 | Z180: 0.21 | AA180: 0.09 | AB180: 0 | AC180: 0.21 | AD180: 0.09 | AE180: 0 | AF180: 0.04 | AG180: 0.08 | AH180: 0 | AI180: 0.12 | AJ180: 0 | AK180: 0.06 | AL180: 0 | AM180: 0.06 | AN180: 0 | AO180: 0.06 | AP180: 0 | AQ180: 0.06 | AR180: 0.43 | AS180: 0 | AT180: 0.07 | AU180: 0 | AV180: 0 | AW180: 0 | AX180: 0 | AY180: 0 | AZ180: Pas de FDES en ligne pour la solution choisie | BA180: 1151 | BB180: 1.14 | BC180: 1.18 | BD180: 1.34 | BE180: 0.96 | BF180: 0.98 | BG180: 3.89 | BH180: 0.94 | BI180: 0.4 | BJ180: 0.7
A181: GGL SK06 70 Standard | B181: GGL | C181: SK06 | D181: 70 | E181: MANUAL | F181: Standard | G181: GGL 70 | H181: GPL 70 | I181: ok | J181: GPL | K181: 70 | L181: GPL SK06 70 Standard | M181: 70 | N181: 1.4 | O181: 1.9 | P181: 1.3 | Q181: 1.7 | R181: 1.2 | S181: 1.5 | T181: 1.1 | U181: 1.4 | V181: 1.7 | W181: 1.3 | X181: 0.99 | Y181: 1.2 | Z181: 0.27 | AA181: 0.07 | AB181: 0 | AC181: 0.27 | AD181: 0.07 | AE181: 0 | AF181: 0.05 | AG181: 0.09 | AH181: 0 | AI181: 0.14 | AJ181: 0 | AK181: 0.06 | AL181: 0 | AM181: 0.06 | AN181: 0 | AO181: 0.07 | AP181: 0 | AQ181: 0.07 | AR181: 0.48 | AS181: 0 | AT181: 0.08 | AU181: 0 | AV181: 0 | AW181: 0 | AX181: 0 | AY181: 0 | AZ181: Pas de FDES en ligne pour la solution choisie | BA181: 1155 | BB181: 1.14 | BC181: 1.18 | BD181: 1.34 | BE181: 0.96 | BF181: 0.98 | BG181: 3.89 | BH181: 0.94 | BI181: 0.4 | BJ181: 0.7
A182: GGL SK06 70 Standard | B182: GGL | C182: SK06 | D182: 70 | E182: ELECTRIC | F182: Standard | G182: GGL 70 | H182: GPL 70 | I182: ok | J182: GPL | K182: 70 | L182: GPL SK06 70 Standard | M182: 70 | N182: 1.4 | O182: 1.9 | P182: 1.3 | Q182: 1.7 | R182: 1.2 | S182: 1.5 | T182: 1.1 | U182: 1.4 | V182: 1.7 | W182: 1.3 | X182: 0.99 | Y182: 1.2 | Z182: 0.27 | AA182: 0.07 | AB182: 0 | AC182: 0.27 | AD182: 0.07 | AE182: 0 | AF182: 0.05 | AG182: 0.09 | AH182: 0 | AI182: 0.14 | AJ182: 0 | AK182: 0.06 | AL182: 0 | AM182: 0.06 | AN182: 0 | AO182: 0.07 | AP182: 0 | AQ182: 0.07 | AR182: 0.48 | AS182: 0 | AT182: 0.08 | AU182: 0 | AV182: 0 | AW182: 0 | AX182: 0 | AY182: 0 | AZ182: Pas de FDES en ligne pour la solution choisie | BA182: 1156 | BB182: 1.14 | BC182: 1.18 | BD182: 1.34 | BE182: 0.96 | BF182: 0.98 | BG182: 3.89 | BH182: 0.94 | BI182: 0.4 | BJ182: 0.7
A183: GGL SK06 70 Standard | B183: GGL | C183: SK06 | D183: 70 | E183: MANUALBOTTOM | F183: Standard | G183: GGL 70 | H183: GPL 70 | I183: ok | J183: GPL | K183: 70 | L183: GPL SK06 70 Standard | M183: 70 | N183: 1.4 | O183: 1.9 | P183: 1.3 | Q183: 1.7 | R183: 1.2 | S183: 1.5 | T183: 1.1 | U183: 1.4 | V183: 1.7 | W183: 1.3 | X183: 0.99 | Y183: 1.2 | Z183: 0.27 | AA183: 0.07 | AB183: 0 | AC183: 0.27 | AD183: 0.07 | AE183: 0 | AF183: 0.05 | AG183: 0.09 | AH183: 0 | AI183: 0.14 | AJ183: 0 | AK183: 0.06 | AL183: 0 | AM183: 0.06 | AN183: 0 | AO183: 0.07 | AP183: 0 | AQ183: 0.07 | AR183: 0.48 | AS183: 0 | AT183: 0.08 | AU183: 0 | AV183: 0 | AW183: 0 | AX183: 0 | AY183: 0 | AZ183: Pas de FDES en ligne pour la solution choisie | BA183: 1157 | BB183: 1.14 | BC183: 1.18 | BD183: 1.34 | BE183: 0.96 | BF183: 0.98 | BG183: 3.89 | BH183: 0.94 | BI183: 0.4 | BJ183: 0.7
A184: GGL SK06 70Q Standard | B184: GGL | C184: SK06 | D184: 70Q | E184: MANUAL | F184: Standard | G184: GGL 70Q | H184: GPL 70 | I184: ok | J184: GPL | K184: 70 | L184: GPL SK06 70 Standard | M184: 70 | N184: 1.4 | O184: 1.9 | P184: 1.3 | Q184: 1.7 | R184: 1.2 | S184: 1.5 | T184: 1.1 | U184: 1.4 | V184: 1.7 | W184: 1.3 | X184: 0.99 | Y184: 1.2 | Z184: 0.27 | AA184: 0.07 | AB184: 0 | AC184: 0.27 | AD184: 0.07 | AE184: 0 | AF184: 0.05 | AG184: 0.09 | AH184: 0 | AI184: 0.14 | AJ184: 0 | AK184: 0.06 | AL184: 0 | AM184: 0.06 | AN184: 0 | AO184: 0.07 | AP184: 0 | AQ184: 0.07 | AR184: 0.48 | AS184: 0 | AT184: 0.08 | AU184: 0 | AV184: 0 | AW184: 0 | AX184: 0 | AY184: 0 | AZ184: Pas de FDES en ligne pour la solution choisie | BA184: 1158 | BB184: 1.14 | BC184: 1.18 | BD184: 1.34 | BE184: 0.96 | BF184: 0.98 | BG184: 3.89 | BH184: 0.94 | BI184: 0.4 | BJ184: 0.7
A185: GGL SK06 76F Standard | B185: GGL | C185: SK06 | D185: 76F | E185: ELECTRIC | F185: Standard | G185: GGL 76F | H185: GPL 70 | I185: ok | J185: GPL | K185: 70 | L185: GPL SK06 70 Standard | M185: 76 | N185: 1.4 | O185: 1.9 | P185: 1.3 | Q185: 1.7 | R185: 1.2 | S185: 1.5 | T185: 1.1 | U185: 1.4 | V185: 1.7 | W185: 1.3 | X185: 0.99 | Y185: 1.2 | Z185: 0.16 | AA185: 0.05 | AB185: 0 | AC185: 0.16 | AD185: 0.05 | AE185: 0 | AF185: 0.03 | AG185: 0.09 | AH185: 0 | AI185: 0.12 | AJ185: 0 | AK185: 0.06 | AL185: 0 | AM185: 0.06 | AN185: 0 | AO185: 0.07 | AP185: 0 | AQ185: 0.07 | AR185: 0.44 | AS185: 0 | AT185: 0.08 | AU185: 0 | AV185: 0 | AW185: 0 | AX185: 0 | AY185: 0 | AZ185: https://base-inies.fr/consultation/infos-produit/42364 | BA185: 1159 | BB185: 1.14 | BC185: 1.18 | BD185: 1.34 | BE185: 0.96 | BF185: 0.98 | BG185: 3.89 | BH185: 0.94 | BI185: 0.4 | BJ185: 0.7
A186: GGL SK06 76F Standard | B186: GGL | C186: SK06 | D186: 76F | E186: MANUAL | F186: Standard | G186: GGL 76F | H186: GPL 70 | I186: ok | J186: GPL | K186: 70 | L186: GPL SK06 70 Standard | M186: 76 | N186: 1.4 | O186: 1.9 | P186: 1.3 | Q186: 1.7 | R186: 1.2 | S186: 1.5 | T186: 1.1 | U186: 1.4 | V186: 1.7 | W186: 1.3 | X186: 0.99 | Y186: 1.2 | Z186: 0.16 | AA186: 0.05 | AB186: 0 | AC186: 0.16 | AD186: 0.05 | AE186: 0 | AF186: 0.03 | AG186: 0.09 | AH186: 0 | AI186: 0.12 | AJ186: 0 | AK186: 0.06 | AL186: 0 | AM186: 0.06 | AN186: 0 | AO186: 0.07 | AP186: 0 | AQ186: 0.07 | AR186: 0.44 | AS186: 0 | AT186: 0.08 | AU186: 0 | AV186: 0 | AW186: 0 | AX186: 0 | AY186: 0 | AZ186: https://base-inies.fr/consultation/infos-produit/42364 | BA186: 1160 | BB186: 1.14 | BC186: 1.18 | BD186: 1.34 | BE186: 0.96 | BF186: 0.98 | BG186: 3.89 | BH186: 0.94 | BI186: 0.4 | BJ186: 0.7
A187: GGL SK06 76F Standard | B187: GGL | C187: SK06 | D187: 76F | E187: SOLAR | F187: Standard | G187: GGL 76F | H187: GPL 70 | I187: ok | J187: GPL | K187: 70 | L187: GPL SK06 70 Standard | M187: 76 | N187: 1.4 | O187: 1.9 | P187: 1.3 | Q187: 1.7 | R187: 1.2 | S187: 1.5 | T187: 1.1 | U187: 1.4 | V187: 1.7 | W187: 1.3 | X187: 0.99 | Y187: 1.2 | Z187: 0.16 | AA187: 0.05 | AB187: 0 | AC187: 0.16 | AD187: 0.05 | AE187: 0 | AF187: 0.03 | AG187: 0.09 | AH187: 0 | AI187: 0.12 | AJ187: 0 | AK187: 0.06 | AL187: 0 | AM187: 0.06 | AN187: 0 | AO187: 0.07 | AP187: 0 | AQ187: 0.07 | AR187: 0.44 | AS187: 0 | AT187: 0.08 | AU187: 0 | AV187: 0 | AW187: 0 | AX187: 0 | AY187: 0 | AZ187: https://base-inies.fr/consultation/infos-produit/42364 | BA187: 1161 | BB187: 1.14 | BC187: 1.18 | BD187: 1.34 | BE187: 0.96 | BF187: 0.98 | BG187: 3.89 | BH187: 0.94 | BI187: 0.4 | BJ187: 0.7
A188: GGL SK06 57 Standard | B188: GGL | C188: SK06 | D188: 57 | E188: SOLAR | F188: Standard | G188: GGL 57 | H188: GPL 70 | I188: ok | J188: GPL | K188: 70 | L188: GPL SK06 70 Standard | M188: 57 | N188: 1.4 | O188: 1.9 | P188: 1.3 | Q188: 1.7 | R188: 1.2 | S188: 1.5 | T188: 1.1 | U188: 1.4 | V188: 1.7 | W188: 1.3 | X188: 0.99 | Y188: 1.2 | Z188: 0.15 | AA188: 0.05 | AB188: 0 | AC188: 0.15 | AD188: 0.07 | AE188: 0 | AF188: 0.03 | AG188: 0.09 | AH188: 0 | AI188: 0.12 | AJ188: 0 | AK188: 0.06 | AL188: 0 | AM188: 0.06 | AN188: 0 | AO188: 0.07 | AP188: 0 | AQ188: 0.07 | AR188: 0.43 | AS188: 0 | AT188: 0.07 | AU188: 0 | AV188: 0 | AW188: 0 | AX188: 0 | AY188: 0 | AZ188: https://base-inies.fr/consultation/infos-produit/42364 | BA188: 1162 | BB188: 1.14 | BC188: 1.18 | BD188: 1.34 | BE188: 0.96 | BF188: 0.98 | BG188: 3.89 | BH188: 0.94 | BI188: 0.4 | BJ188: 0.7
A189: GGL SK08 54F Standard | B189: GGL | C189: SK08 | D189: 54F | E189: MANUAL | F189: Standard | G189: GGL 54F | H189: GPL 54F | I189: ok | J189: GPL | K189: 54F | L189: GPL SK08 54F Standard | M189: 54F | N189: 1.4 | O189: 1.9 | P189: 1.3 | Q189: 1.7 | R189: 1.2 | S189: 1.5 | T189: 1.2 | U189: 1.5 | V189: 1.7 | W189: 1.3 | X189: 1 | Y189: 1.2 | Z189: 0.39 | AA189: 0.05 | AB189: 0 | AC189: 0.39 | AD189: 0.05 | AE189: 0 | AF189: 0.07 | AG189: 0.08 | AH189: 0 | AI189: 0.15 | AJ189: 0 | AK189: 0.07 | AL189: 0 | AM189: 0.07 | AN189: 0 | AO189: 0.07 | AP189: 0 | AQ189: 0.07 | AR189: 0.59 | AS189: 0 | AT189: 0.1 | AU189: 0 | AV189: 0 | AW189: 0 | AX189: 0 | AY189: 0 | AZ189: https://base-inies.fr/consultation/infos-produit/42364 | BA189: 1163 | BB189: 1.14 | BC189: 1.4 | BD189: 1.59 | BE189: 0.96 | BF189: 1.2 | BG189: 4.33 | BH189: 1.15 | BI189: 0.44 | BJ189: 0.72
A190: GGL SK08 57 Standard | B190: GGL | C190: SK08 | D190: 57 | E190: MANUAL | F190: Standard | G190: GGL 57 | H190: GPL 70 | I190: ok | J190: GPL | K190: 70 | L190: GPL SK08 70 Standard | M190: 57 | N190: 1.3 | O190: 1.8 | P190: 1.2 | Q190: 1.7 | R190: 1.2 | S190: 1.5 | T190: 1.1 | U190: 1.4 | V190: 1.7 | W190: 1.3 | X190: 0.98 | Y190: 1.2 | Z190: 0.15 | AA190: 0.05 | AB190: 0 | AC190: 0.15 | AD190: 0.07 | AE190: 0 | AF190: 0.03 | AG190: 0.09 | AH190: 0 | AI190: 0.12 | AJ190: 0 | AK190: 0.06 | AL190: 0 | AM190: 0.06 | AN190: 0 | AO190: 0.07 | AP190: 0 | AQ190: 0.07 | AR190: 0.45 | AS190: 0 | AT190: 0.08 | AU190: 0 | AV190: 0 | AW190: 0 | AX190: 0 | AY190: 0 | AZ190: https://base-inies.fr/consultation/infos-produit/42364 | BA190: 1164 | BB190: 1.14 | BC190: 1.4 | BD190: 1.59 | BE190: 0.96 | BF190: 1.2 | BG190: 4.33 | BH190: 1.15 | BI190: 0.44 | BJ190: 0.72
A191: GGL SK08 62 Standard | B191: GGL | C191: SK08 | D191: 62 | E191: MANUAL | F191: Standard | G191: GGL 62 | H191: GPL 62 | I191: ok | J191: GPL | K191: 62 | L191: GPL SK08 62 Standard | M191: 62 | N191: 0.99 | O191: 1.2 | P191: 0.93 | Q191: 1.1 | R191: 0.88 | S191: 1.1 | T191: 0.86 | U191: 1 | V191: 1.1 | W191: 0.96 | X191: 0.78 | Y191: 0.91 | Z191: 0.27 | AA191: 0.08 | AB191: 0 | AC191: 0.27 | AD191: 0.09 | AE191: 0 | AF191: 0.05 | AG191: 0.07 | AH191: 0 | AI191: 0.12 | AJ191: 0 | AK191: 0.05 | AL191: 0 | AM191: 0.05 | AN191: 0 | AO191: 0.05 | AP191: 0 | AQ191: 0.05 | AR191: 0.49 | AS191: 0 | AT191: 0.08 | AU191: 0 | AV191: 0 | AW191: 0 | AX191: 0 | AY191: 0 | AZ191: Pas de FDES en ligne pour la solution choisie | BA191: 1165 | BB191: 1.14 | BC191: 1.4 | BD191: 1.59 | BE191: 0.96 | BF191: 1.2 | BG191: 4.33 | BH191: 1.15 | BI191: 0.44 | BJ191: 0.72
A192: GGL SK08 62 Standard | B192: GGL | C192: SK08 | D192: 62 | E192: ELECTRIC | F192: Standard | G192: GGL 62 | H192: GPL 62 | I192: ok | J192: GPL | K192: 62 | L192: GPL SK08 62 Standard | M192: 62 | N192: 0.99 | O192: 1.2 | P192: 0.93 | Q192: 1.1 | R192: 0.88 | S192: 1.1 | T192: 0.86 | U192: 1 | V192: 1.1 | W192: 0.96 | X192: 0.78 | Y192: 0.91 | Z192: 0.27 | AA192: 0.08 | AB192: 0 | AC192: 0.27 | AD192: 0.09 | AE192: 0 | AF192: 0.05 | AG192: 0.07 | AH192: 0 | AI192: 0.12 | AJ192: 0 | AK192: 0.05 | AL192: 0 | AM192: 0.05 | AN192: 0 | AO192: 0.05 | AP192: 0 | AQ192: 0.05 | AR192: 0.49 | AS192: 0 | AT192: 0.08 | AU192: 0 | AV192: 0 | AW192: 0 | AX192: 0 | AY192: 0 | AZ192: Pas de FDES en ligne pour la solution choisie | BA192: 1166 | BB192: 1.14 | BC192: 1.4 | BD192: 1.59 | BE192: 0.96 | BF192: 1.2 | BG192: 4.33 | BH192: 1.15 | BI192: 0.44 | BJ192: 0.72
A193: GGL SK08 66 Standard | B193: GGL | C193: SK08 | D193: 66 | E193: MANUAL | F193: Standard | G193: GGL 66 | H193: GPL 66 | I193: ok | J193: GPL | K193: 66 | L193: GPL SK08 66 Standard | M193: 66 | N193: 1 | O193: 1.3 | P193: 0.98 | Q193: 1.2 | R193: 0.93 | S193: 1.1 | T193: 0.9 | U193: 1.1 | V193: 1.2 | W193: 1 | X193: 0.82 | Y193: 0.94 | Z193: 0.22 | AA193: 0.09 | AB193: 0 | AC193: 0.22 | AD193: 0.09 | AE193: 0 | AF193: 0.04 | AG193: 0.08 | AH193: 0 | AI193: 0.12 | AJ193: 0 | AK193: 0.06 | AL193: 0 | AM193: 0.06 | AN193: 0 | AO193: 0.06 | AP193: 0 | AQ193: 0.06 | AR193: 0.45 | AS193: 0 | AT193: 0.08 | AU193: 0 | AV193: 0 | AW193: 0 | AX193: 0 | AY193: 0 | AZ193: Pas de FDES en ligne pour la solution choisie | BA193: 1167 | BB193: 1.14 | BC193: 1.4 | BD193: 1.59 | BE193: 0.96 | BF193: 1.2 | BG193: 4.33 | BH193: 1.15 | BI193: 0.44 | BJ193: 0.72
A194: GGL SK08 66 Standard | B194: GGL | C194: SK08 | D194: 66 | E194: ELECTRIC | F194: Standard | G194: GGL 66 | H194: GPL 66 | I194: ok | J194: GPL | K194: 66 | L194: GPL SK08 66 Standard | M194: 66 | N194: 1 | O194: 1.3 | P194: 0.98 | Q194: 1.2 | R194: 0.93 | S194: 1.1 | T194: 0.9 | U194: 1.1 | V194: 1.2 | W194: 1 | X194: 0.82 | Y194: 0.94 | Z194: 0.22 | AA194: 0.09 | AB194: 0 | AC194: 0.22 | AD194: 0.09 | AE194: 0 | AF194: 0.04 | AG194: 0.08 | AH194: 0 | AI194: 0.12 | AJ194: 0 | AK194: 0.06 | AL194: 0 | AM194: 0.06 | AN194: 0 | AO194: 0.06 | AP194: 0 | AQ194: 0.06 | AR194: 0.45 | AS194: 0 | AT194: 0.08 | AU194: 0 | AV194: 0 | AW194: 0 | AX194: 0 | AY194: 0 | AZ194: Pas de FDES en ligne pour la solution choisie | BA194: 1168 | BB194: 1.14 | BC194: 1.4 | BD194: 1.59 | BE194: 0.96 | BF194: 1.2 | BG194: 4.33 | BH194: 1.15 | BI194: 0.44 | BJ194: 0.72
A195: GGL SK08 70 Standard | B195: GGL | C195: SK08 | D195: 70 | E195: MANUAL | F195: Standard | G195: GGL 70 | H195: GPL 70 | I195: ok | J195: GPL | K195: 70 | L195: GPL SK08 70 Standard | M195: 70 | N195: 1.3 | O195: 1.8 | P195: 1.2 | Q195: 1.7 | R195: 1.2 | S195: 1.5 | T195: 1.1 | U195: 1.4 | V195: 1.7 | W195: 1.3 | X195: 0.98 | Y195: 1.2 | Z195: 0.28 | AA195: 0.07 | AB195: 0 | AC195: 0.28 | AD195: 0.07 | AE195: 0 | AF195: 0.05 | AG195: 0.09 | AH195: 0 | AI195: 0.14 | AJ195: 0 | AK195: 0.06 | AL195: 0 | AM195: 0.06 | AN195: 0 | AO195: 0.07 | AP195: 0 | AQ195: 0.07 | AR195: 0.49 | AS195: 0 | AT195: 0.09 | AU195: 0 | AV195: 0 | AW195: 0 | AX195: 0 | AY195: 0 | AZ195: Pas de FDES en ligne pour la solution choisie | BA195: 1170 | BB195: 1.14 | BC195: 1.4 | BD195: 1.59 | BE195: 0.96 | BF195: 1.2 | BG195: 4.33 | BH195: 1.15 | BI195: 0.44 | BJ195: 0.72
A196: GGL SK08 70Q Standard | B196: GGL | C196: SK08 | D196: 70Q | E196: MANUAL | F196: Standard | G196: GGL 70Q | H196: GPL 70 | I196: ok | J196: GPL | K196: 70 | L196: GPL SK08 70 Standard | M196: 70 | N196: 1.3 | O196: 1.8 | P196: 1.2 | Q196: 1.7 | R196: 1.2 | S196: 1.5 | T196: 1.1 | U196: 1.4 | V196: 1.7 | W196: 1.3 | X196: 0.98 | Y196: 1.2 | Z196: 0.28 | AA196: 0.07 | AB196: 0 | AC196: 0.28 | AD196: 0.07 | AE196: 0 | AF196: 0.05 | AG196: 0.09 | AH196: 0 | AI196: 0.14 | AJ196: 0 | AK196: 0.06 | AL196: 0 | AM196: 0.06 | AN196: 0 | AO196: 0.07 | AP196: 0 | AQ196: 0.07 | AR196: 0.49 | AS196: 0 | AT196: 0.09 | AU196: 0 | AV196: 0 | AW196: 0 | AX196: 0 | AY196: 0 | AZ196: Pas de FDES en ligne pour la solution choisie | BA196: 1171 | BB196: 1.14 | BC196: 1.4 | BD196: 1.59 | BE196: 0.96 | BF196: 1.2 | BG196: 4.33 | BH196: 1.15 | BI196: 0.44 | BJ196: 0.72
A197: GGL SK08 76F Standard | B197: GGL | C197: SK08 | D197: 76F | E197: MANUAL | F197: Standard | G197: GGL 76F | H197: GPL 70 | I197: ok | J197: GPL | K197: 70 | L197: GPL SK08 70 Standard | M197: 76 | N197: 1.3 | O197: 1.8 | P197: 1.2 | Q197: 1.7 | R197: 1.2 | S197: 1.5 | T197: 1.1 | U197: 1.4 | V197: 1.7 | W197: 1.3 | X197: 0.98 | Y197: 1.2 | Z197: 0.15 | AA197: 0.05 | AB197: 0 | AC197: 0.15 | AD197: 0.05 | AE197: 0 | AF197: 0.03 | AG197: 0.09 | AH197: 0 | AI197: 0.12 | AJ197: 0 | AK197: 0.07 | AL197: 0 | AM197: 0.07 | AN197: 0 | AO197: 0.07 | AP197: 0 | AQ197: 0.07 | AR197: 0.45 | AS197: 0 | AT197: 0.08 | AU197: 0 | AV197: 0 | AW197: 0 | AX197: 0 | AY197: 0 | AZ197: https://base-inies.fr/consultation/infos-produit/42364 | BA197: 1172 | BB197: 1.14 | BC197: 1.4 | BD197: 1.59 | BE197: 0.96 | BF197: 1.2 | BG197: 4.33 | BH197: 1.15 | BI197: 0.44 | BJ197: 0.72
A198: GGL SK08 76F Standard | B198: GGL | C198: SK08 | D198: 76F | E198: SOLAR | F198: Standard | G198: GGL 76F | H198: GPL 70 | I198: ok | J198: GPL | K198: 70 | L198: GPL SK08 70 Standard | M198: 76 | N198: 1.3 | O198: 1.8 | P198: 1.2 | Q198: 1.7 | R198: 1.2 | S198: 1.5 | T198: 1.1 | U198: 1.4 | V198: 1.7 | W198: 1.3 | X198: 0.98 | Y198: 1.2 | Z198: 0.15 | AA198: 0.05 | AB198: 0 | AC198: 0.15 | AD198: 0.05 | AE198: 0 | AF198: 0.03 | AG198: 0.09 | AH198: 0 | AI198: 0.12 | AJ198: 0 | AK198: 0.07 | AL198: 0 | AM198: 0.07 | AN198: 0 | AO198: 0.07 | AP198: 0 | AQ198: 0.07 | AR198: 0.45 | AS198: 0 | AT198: 0.08 | AU198: 0 | AV198: 0 | AW198: 0 | AX198: 0 | AY198: 0 | AZ198: https://base-inies.fr/consultation/infos-produit/42364 | BA198: 1173 | BB198: 1.14 | BC198: 1.4 | BD198: 1.59 | BE198: 0.96 | BF198: 1.2 | BG198: 4.33 | BH198: 1.15 | BI198: 0.44 | BJ198: 0.72
A199: GGL SK08 57 Standard | B199: GGL | C199: SK08 | D199: 57 | E199: ELECTRIC | F199: Standard | G199: GGL 57 | H199: GPL 70 | I199: ok | J199: GPL | K199: 70 | L199: GPL SK08 70 Standard | M199: 57 | N199: 1.3 | O199: 1.8 | P199: 1.2 | Q199: 1.7 | R199: 1.2 | S199: 1.5 | T199: 1.1 | U199: 1.4 | V199: 1.7 | W199: 1.3 | X199: 0.98 | Y199: 1.2 | Z199: 0.15 | AA199: 0.05 | AB199: 0 | AC199: 0.15 | AD199: 0.07 | AE199: 0 | AF199: 0.03 | AG199: 0.09 | AH199: 0 | AI199: 0.12 | AJ199: 0 | AK199: 0.06 | AL199: 0 | AM199: 0.06 | AN199: 0 | AO199: 0.07 | AP199: 0 | AQ199: 0.07 | AR199: 0.45 | AS199: 0 | AT199: 0.08 | AU199: 0 | AV199: 0 | AW199: 0 | AX199: 0 | AY199: 0 | AZ199: https://base-inies.fr/consultation/infos-produit/42364 | BA199: 1174 | BB199: 1.14 | BC199: 1.4 | BD199: 1.59 | BE199: 0.96 | BF199: 1.2 | BG199: 4.33 | BH199: 1.15 | BI199: 0.44 | BJ199: 0.72
A200: GGL SK08 57 Standard | B200: GGL | C200: SK08 | D200: 57 | E200: SOLAR | F200: Standard | G200: GGL 57 | H200: GPL 70 | I200: ok | J200: GPL | K200: 70 | L200: GPL SK08 70 Standard | M200: 57 | N200: 1.3 | O200: 1.8 | P200: 1.2 | Q200: 1.7 | R200: 1.2 | S200: 1.5 | T200: 1.1 | U200: 1.4 | V200: 1.7 | W200: 1.3 | X200: 0.98 | Y200: 1.2 | Z200: 0.15 | AA200: 0.05 | AB200: 0 | AC200: 0.15 | AD200: 0.07 | AE200: 0 | AF200: 0.03 | AG200: 0.09 | AH200: 0 | AI200: 0.12 | AJ200: 0 | AK200: 0.06 | AL200: 0 | AM200: 0.06 | AN200: 0 | AO200: 0.07 | AP200: 0 | AQ200: 0.07 | AR200: 0.45 | AS200: 0 | AT200: 0.08 | AU200: 0 | AV200: 0 | AW200: 0 | AX200: 0 | AY200: 0 | AZ200: https://base-inies.fr/consultation/infos-produit/42364 | BA200: 1175 | BB200: 1.14 | BC200: 1.4 | BD200: 1.59 | BE200: 0.96 | BF200: 1.2 | BG200: 4.33 | BH200: 1.15 | BI200: 0.44 | BJ200: 0.72
... 925 more rows

Sheet climate zones (hidden)
A1: Lookup | B1: Zone climatique et altitude | C1: Exposition au bruit et usage de la pièce | D1: Pente et orientation | E1: Sws max
A2: =B2&" "&C2&" "&D2 -> H2a toutes altitudes ou H1a, H1b, H2b altitude > 400 m ou H1c, H2c altitude > 800 m Exposition BR1 - locaux destinés au sommeil Pente < 60° | B2: H2a toutes altitudes ou H1a, H1b, H2b altitude > 400 m ou H1c, H2c altitude > 800 m | C2: Exposition BR1 - locaux destinés au sommeil | D2: Pente < 60° | E2: 0.25
A3: =B3&" "&C3&" "&D3 -> H2a toutes altitudes ou H1a, H1b, H2b altitude > 400 m ou H1c, H2c altitude > 800 m Exposition BR1 - locaux destinés au sommeil Pente>60° orientation autre que Nord | B3: H2a toutes altitudes ou H1a, H1b, H2b altitude > 400 m ou H1c, H2c altitude > 800 m | C3: Exposition BR1 - locaux destinés au sommeil | D3: Pente>60° orientation autre que Nord | E3: 0.45
A4: H2a toutes altitudes ou H1a, H1b, H2b altitude > 400 m ou H1c, H2c altitude > 800 m Exposition BR1 - locaux destinés au sommeil Pente>60° orientation Nord | B4: H2a toutes altitudes ou H1a, H1b, H2b altitude > 400 m ou H1c, H2c altitude > 800 m | C4: Exposition BR1 - locaux destinés au sommeil | D4: Pente>60° orientation Nord | E4: 0.65
A5: H2a toutes altitudes ou H1a, H1b, H2b altitude > 400 m ou H1c, H2c altitude > 800 m Exposition BR2 ou BR3 - locaux destinés au sommeil Pente < 60° | B5: H2a toutes altitudes ou H1a, H1b, H2b altitude > 400 m ou H1c, H2c altitude > 800 m | C5: Exposition BR2 ou BR3 - locaux destinés au sommeil | D5: Pente < 60° | E5: 0.15
A6: H2a toutes altitudes ou H1a, H1b, H2b altitude > 400 m ou H1c, H2c altitude > 800 m Exposition BR2 ou BR3 - locaux destinés au sommeil Pente>60° orientation autre que Nord | B6: H2a toutes altitudes ou H1a, H1b, H2b altitude > 400 m ou H1c, H2c altitude > 800 m | C6: Exposition BR2 ou BR3 - locaux destinés au sommeil | D6: Pente>60° orientation autre que Nord | E6: 0.25
A7: H2a toutes altitudes ou H1a, H1b, H2b altitude > 400 m ou H1c, H2c altitude > 800 m Exposition BR2 ou BR3 - locaux destinés au sommeil Pente>60° orientation Nord | B7: H2a toutes altitudes ou H1a, H1b, H2b altitude > 400 m ou H1c, H2c altitude > 800 m | C7: Exposition BR2 ou BR3 - locaux destinés au sommeil | D7: Pente>60° orientation Nord | E7: 0.45
A8: H2a toutes altitudes ou H1a, H1b, H2b altitude > 400 m ou H1c, H2c altitude > 800 m Exposition BR1 - hors locaux destinés au sommeil Pente < 60° | B8: H2a toutes altitudes ou H1a, H1b, H2b altitude > 400 m ou H1c, H2c altitude > 800 m | C8: Exposition BR1 - hors locaux destinés au sommeil | D8: Pente < 60° | E8: 0.45
A9: H2a toutes altitudes ou H1a, H1b, H2b altitude > 400 m ou H1c, H2c altitude > 800 m Exposition BR1 - hors locaux destinés au sommeil Pente>60° orientation autre que Nord | B9: H2a toutes altitudes ou H1a, H1b, H2b altitude > 400 m ou H1c, H2c altitude > 800 m | C9: Exposition BR1 - hors locaux destinés au sommeil | D9: Pente>60° orientation autre que Nord | E9: 0.65
A10: H2a toutes altitudes ou H1a, H1b, H2b altitude > 400 m ou H1c, H2c altitude > 800 m Exposition BR1 - hors locaux destinés au sommeil Pente>60° orientation Nord | B10: H2a toutes altitudes ou H1a, H1b, H2b altitude > 400 m ou H1c, H2c altitude > 800 m | C10: Exposition BR1 - hors locaux destinés au sommeil | D10: Pente>60° orientation Nord | E10: 1
A11: H2a toutes altitudes ou H1a, H1b, H2b altitude > 400 m ou H1c, H2c altitude > 800 m Exposition BR2 ou BR3 - hors locaux destinés au sommeil Pente < 60° | B11: H2a toutes altitudes ou H1a, H1b, H2b altitude > 400 m ou H1c, H2c altitude > 800 m | C11: Exposition BR2 ou BR3 - hors locaux destinés au sommeil | D11: Pente < 60° | E11: 0.25
A12: H2a toutes altitudes ou H1a, H1b, H2b altitude > 400 m ou H1c, H2c altitude > 800 m Exposition BR2 ou BR3 - hors locaux destinés au sommeil Pente>60° orientation autre que Nord | B12: H2a toutes altitudes ou H1a, H1b, H2b altitude > 400 m ou H1c, H2c altitude > 800 m | C12: Exposition BR2 ou BR3 - hors locaux destinés au sommeil | D12: Pente>60° orientation autre que Nord | E12: 0.45
A13: H2a toutes altitudes ou H1a, H1b, H2b altitude > 400 m ou H1c, H2c altitude > 800 m Exposition BR2 ou BR3 - hors locaux destinés au sommeil Pente>60° orientation Nord | B13: H2a toutes altitudes ou H1a, H1b, H2b altitude > 400 m ou H1c, H2c altitude > 800 m | C13: Exposition BR2 ou BR3 - hors locaux destinés au sommeil | D13: Pente>60° orientation Nord | E13: 1
A14: H1a, H1b, H2b altitude <= 400 m ou H1c, H2c altitude <= 800 m ou H2d, H3 altitude > 400 m Exposition BR1 - locaux destinés au sommeil Pente < 60° | B14: H1a, H1b, H2b altitude <= 400 m ou H1c, H2c altitude <= 800 m ou H2d, H3 altitude > 400 m | C14: Exposition BR1 - locaux destinés au sommeil | D14: Pente < 60° | E14: 0.15
A15: H1a, H1b, H2b altitude <= 400 m ou H1c, H2c altitude <= 800 m ou H2d, H3 altitude > 400 m Exposition BR1 - locaux destinés au sommeil Pente>60° orientation autre que Nord | B15: H1a, H1b, H2b altitude <= 400 m ou H1c, H2c altitude <= 800 m ou H2d, H3 altitude > 400 m | C15: Exposition BR1 - locaux destinés au sommeil | D15: Pente>60° orientation autre que Nord | E15: 0.25
A16: H1a, H1b, H2b altitude <= 400 m ou H1c, H2c altitude <= 800 m ou H2d, H3 altitude > 400 m Exposition BR1 - locaux destinés au sommeil Pente>60° orientation Nord | B16: H1a, H1b, H2b altitude <= 400 m ou H1c, H2c altitude <= 800 m ou H2d, H3 altitude > 400 m | C16: Exposition BR1 - locaux destinés au sommeil | D16: Pente>60° orientation Nord | E16: 0.45
A17: H1a, H1b, H2b altitude <= 400 m ou H1c, H2c altitude <= 800 m ou H2d, H3 altitude > 400 m Exposition BR2 ou BR3 - locaux destinés au sommeil Pente < 60° | B17: H1a, H1b, H2b altitude <= 400 m ou H1c, H2c altitude <= 800 m ou H2d, H3 altitude > 400 m | C17: Exposition BR2 ou BR3 - locaux destinés au sommeil | D17: Pente < 60° | E17: 0.1
A18: H1a, H1b, H2b altitude <= 400 m ou H1c, H2c altitude <= 800 m ou H2d, H3 altitude > 400 m Exposition BR2 ou BR3 - locaux destinés au sommeil Pente>60° orientation autre que Nord | B18: H1a, H1b, H2b altitude <= 400 m ou H1c, H2c altitude <= 800 m ou H2d, H3 altitude > 400 m | C18: Exposition BR2 ou BR3 - locaux destinés au sommeil | D18: Pente>60° orientation autre que Nord | E18: 0.15
A19: H1a, H1b, H2b altitude <= 400 m ou H1c, H2c altitude <= 800 m ou H2d, H3 altitude > 400 m Exposition BR2 ou BR3 - locaux destinés au sommeil Pente>60° orientation Nord | B19: H1a, H1b, H2b altitude <= 400 m ou H1c, H2c altitude <= 800 m ou H2d, H3 altitude > 400 m | C19: Exposition BR2 ou BR3 - locaux destinés au sommeil | D19: Pente>60° orientation Nord | E19: 0.25
A20: H1a, H1b, H2b altitude <= 400 m ou H1c, H2c altitude <= 800 m ou H2d, H3 altitude > 400 m Exposition BR1 - hors locaux destinés au sommeil Pente < 60° | B20: H1a, H1b, H2b altitude <= 400 m ou H1c, H2c altitude <= 800 m ou H2d, H3 altitude > 400 m | C20: Exposition BR1 - hors locaux destinés au sommeil | D20: Pente < 60° | E20: 0.25
A21: H1a, H1b, H2b altitude <= 400 m ou H1c, H2c altitude <= 800 m ou H2d, H3 altitude > 400 m Exposition BR1 - hors locaux destinés au sommeil Pente>60° orientation autre que Nord | B21: H1a, H1b, H2b altitude <= 400 m ou H1c, H2c altitude <= 800 m ou H2d, H3 altitude > 400 m | C21: Exposition BR1 - hors locaux destinés au sommeil | D21: Pente>60° orientation autre que Nord | E21: 0.45
A22: H1a, H1b, H2b altitude <= 400 m ou H1c, H2c altitude <= 800 m ou H2d, H3 altitude > 400 m Exposition BR1 - hors locaux destinés au sommeil Pente>60° orientation Nord | B22: H1a, H1b, H2b altitude <= 400 m ou H1c, H2c altitude <= 800 m ou H2d, H3 altitude > 400 m | C22: Exposition BR1 - hors locaux destinés au sommeil | D22: Pente>60° orientation Nord | E22: 1
A23: H1a, H1b, H2b altitude <= 400 m ou H1c, H2c altitude <= 800 m ou H2d, H3 altitude > 400 m Exposition BR2 ou BR3 - hors locaux destinés au sommeil Pente < 60° | B23: H1a, H1b, H2b altitude <= 400 m ou H1c, H2c altitude <= 800 m ou H2d, H3 altitude > 400 m | C23: Exposition BR2 ou BR3 - hors locaux destinés au sommeil | D23: Pente < 60° | E23: 0.15
A24: H1a, H1b, H2b altitude <= 400 m ou H1c, H2c altitude <= 800 m ou H2d, H3 altitude > 400 m Exposition BR2 ou BR3 - hors locaux destinés au sommeil Pente>60° orientation autre que Nord | B24: H1a, H1b, H2b altitude <= 400 m ou H1c, H2c altitude <= 800 m ou H2d, H3 altitude > 400 m | C24: Exposition BR2 ou BR3 - hors locaux destinés au sommeil | D24: Pente>60° orientation autre que Nord | E24: 0.25
A25: =B25&" "&C25&" "&D25 -> H1a, H1b, H2b altitude <= 400 m ou H1c, H2c altitude <= 800 m ou H2d, H3 altitude > 400 m Exposition BR2 ou BR3 - hors locaux destinés au sommeil Pente>60° orientation Nord | B25: H1a, H1b, H2b altitude <= 400 m ou H1c, H2c altitude <= 800 m ou H2d, H3 altitude > 400 m | C25: Exposition BR2 ou BR3 - hors locaux destinés au sommeil | D25: Pente>60° orientation Nord | E25: 1
A26: =B26&" "&C26&" "&D26 -> H2d ou H3 altitude <= 400 m Exposition BR1 - locaux destinés au sommeil Pente < 60° | B26: H2d ou H3 altitude <= 400 m | C26: Exposition BR1 - locaux destinés au sommeil | D26: Pente < 60° | E26: 0.1
A27: H2d ou H3 altitude <= 400 m Exposition BR1 - locaux destinés au sommeil Pente>60° orientation autre que Nord | B27: H2d ou H3 altitude <= 400 m | C27: Exposition BR1 - locaux destinés au sommeil | D27: Pente>60° orientation autre que Nord | E27: 0.15
A28: H2d ou H3 altitude <= 400 m Exposition BR1 - locaux destinés au sommeil Pente>60° orientation Nord | B28: H2d ou H3 altitude <= 400 m | C28: Exposition BR1 - locaux destinés au sommeil | D28: Pente>60° orientation Nord | E28: 0.25
A29: H2d ou H3 altitude <= 400 m Exposition BR2 ou BR3 - locaux destinés au sommeil Pente < 60° | B29: H2d ou H3 altitude <= 400 m | C29: Exposition BR2 ou BR3 - locaux destinés au sommeil | D29: Pente < 60° | E29: 0.1
A30: H2d ou H3 altitude <= 400 m Exposition BR2 ou BR3 - locaux destinés au sommeil Pente>60° orientation autre que Nord | B30: H2d ou H3 altitude <= 400 m | C30: Exposition BR2 ou BR3 - locaux destinés au sommeil | D30: Pente>60° orientation autre que Nord | E30: 0.15
A31: H2d ou H3 altitude <= 400 m Exposition BR2 ou BR3 - locaux destinés au sommeil Pente>60° orientation Nord | B31: H2d ou H3 altitude <= 400 m | C31: Exposition BR2 ou BR3 - locaux destinés au sommeil | D31: Pente>60° orientation Nord | E31: 0.25
A32: H2d ou H3 altitude <= 400 m Exposition BR1 - hors locaux destinés au sommeil Pente < 60° | B32: H2d ou H3 altitude <= 400 m | C32: Exposition BR1 - hors locaux destinés au sommeil | D32: Pente < 60° | E32: 0.15
A33: H2d ou H3 altitude <= 400 m Exposition BR1 - hors locaux destinés au sommeil Pente>60° orientation autre que Nord | B33: H2d ou H3 altitude <= 400 m | C33: Exposition BR1 - hors locaux destinés au sommeil | D33: Pente>60° orientation autre que Nord | E33: 0.25
A34: H2d ou H3 altitude <= 400 m Exposition BR1 - hors locaux destinés au sommeil Pente>60° orientation Nord | B34: H2d ou H3 altitude <= 400 m | C34: Exposition BR1 - hors locaux destinés au sommeil | D34: Pente>60° orientation Nord | E34: 1
A35: H2d ou H3 altitude <= 400 m Exposition BR2 ou BR3 - hors locaux destinés au sommeil Pente < 60° | B35: H2d ou H3 altitude <= 400 m | C35: Exposition BR2 ou BR3 - hors locaux destinés au sommeil | D35: Pente < 60° | E35: 0.15
A36: H2d ou H3 altitude <= 400 m Exposition BR2 ou BR3 - hors locaux destinés au sommeil Pente>60° orientation autre que Nord | B36: H2d ou H3 altitude <= 400 m | C36: Exposition BR2 ou BR3 - hors locaux destinés au sommeil | D36: Pente>60° orientation autre que Nord | E36: 0.25
A37: H2d ou H3 altitude <= 400 m Exposition BR2 ou BR3 - hors locaux destinés au sommeil Pente>60° orientation Nord | B37: H2d ou H3 altitude <= 400 m | C37: Exposition BR2 ou BR3 - hors locaux destinés au sommeil | D37: Pente>60° orientation Nord | E37: 1
